Workbook

Sheet Instructions
B2: Tickers | C2: <---Hover mouse over cells with this red triangle on Page 1 for instructions.
B3: Type tickers into Page 1 based on market capitalization.
B4: Spreadsheet only works on a Bloomberg terminal with Blomberg Excel add-in enabled.
B6: Author: | C6: Nathan Ramos, Chief Executive Officer
B7: Company: | C7: Logic Consulting, LLC
B8: DBA: | C8: NR Capital Management
B9: Rights: | C9: All rights reserved.
B11: Tab Colors
C12: Comparable Companies Analysis
C13: Precedent Transactions Analysis
C14: Discounted Cash Flow Analysis
C15: Company Valuation
C16: Leveraged Buyout Analysis
B18: 0.1 | C18: Input data into these cells. Leave all other cells alone unless you are CERTAIN of what you are doing.

Sheet P1
A1: =A9 -> OLD DOMINION FREIGHT LINE
A2: Benchmarking Analysis - Financial Statistics and Ratios, Page 1
A3: ($ in millions, except per share data)
C5: Market Valuation | E5: LTM Financial Statistics | J5: LTM Profitability Margins | N5: Growth Rates
J6: Gross | M6: Net | N6: Sales | P6: EBITDA | R6: EPS
C7: Equity | D7: Enterprise | F7: Gross | I7: Net | J7: Profit | K7: EBITDA | M7: Income | N7: Hist. | O7: Est. | P7: Hist. | Q7: Est. | R7: Hist. | S7: Est. | T7: Est.
A8: Company | B8: Ticker | C8: Value | D8: Value | E8: Sales | F8: Profit | G8: EBITDA | H8: EBIT | I8: Income | J8: (%) | K8: (%) | L8: EBIT (%) | M8: (%) | N8: 1-year | O8: 1-year | P8: 1-year | Q8: 1-year | R8: 1-year | S8: 1-year | T8: LT
A9: OLD DOMINION FREIGHT LINE | B9: ODFL | C9: 8877.933895 | D9: 8939.100895 | E9: 2991.517 | F9: 791.1639928 | G9: 718.756 | H9: 519.592 | I9: 318.42355 | J9: =F9/E9 -> 0.2644691616 | K9: =G9/E9 -> 0.2402647219 | L9: =H9/E9 -> 0.1736884664 | M9: =I9/E9 -> 0.1064421663 | N9: 0.04875128224 | O9: 0.09324533339 | P9: 0.01524903441 | Q9: 0.1332339818 | R9: -0.002801120448 | S9: 0.1673302718 | T9: 0.12825
A11: Tier I: Large-Cap
A12: C.H. ROBINSON WORLDWIDE INC | B12: CHRW | C12: 10814.64075 | D12: 11883.45875 | E12: 13144.413 | F12: 1170.42102 | G12: 859.597 | H12: 784.096 | I12: 490.6479 | J12: =F12/E12 -> 0.0890432323 | K12: =G12/E12 -> 0.06539637791 | L12: =H12/E12 -> 0.05965241658 | M12: =I12/E12 -> 0.03732748659 | N12: 0.06860169228 | O12: 0.1302006411 | P12: -0.01353816673 | Q12: -0.05991010743 | R12: 0.02272727273 | S12: -0.08885793872 | T12: 0.092
A13: HUNT (JB) TRANSPRT SVCS INC | B13: JBHT | C13: 11118.64202 | D13: 12195.73602 | E13: 6555.459 | F13: 934.7469943 | G13: 1045.327 | H13: 664.97 | I13: 427.70345 | J13: =F13/E13 -> 0.1425906247 | K13: =G13/E13 -> 0.1594590097 | L13: =H13/E13 -> 0.1014375958 | M13: =I13/E13 -> 0.06524386012 | N13: 0.07204141269 | O13: 0.08378940361 | P13: 0.02579628487 | Q13: -0.03580963114 | R13: 0.0406504065 | S13: -0.005049861514 | T13: 0.1345
A17: Mean | J17: =IFERROR(AVERAGE(J12:J15),"") -> 0.1158169285 | K17: 0.1124276938 | L17: 0.08054500617 | M17: 0.05128567335 | N17: 0.07032155248 | O17: 0.1069950224 | P17: 0.006129059071 | Q17: -0.04785986929 | R17: 0.03168883962 | S17: -0.04695390012 | T17: 0.11325
A18: Median | J18: =IFERROR(MEDIAN(J12:J15),"") -> 0.1158169285 | K18: 0.1124276938 | L18: 0.08054500617 | M18: 0.05128567335 | N18: 0.07032155248 | O18: 0.1069950224 | P18: 0.006129059071 | Q18: -0.04785986929 | R18: 0.03168883962 | S18: -0.04695390012 | T18: 0.11325
A20: Tier II: Mid-Cap
A21: XPO LOGISTICS INC | B21: XPO | C21: 7835.573371 | D21: 12826.27337 | E21: 14619.4 | F21: 4507.999927 | G21: 1195.6 | H21: 649.6 | I21: 211.3999975 | J21: =F21/E21 -> 0.3083573831 | K21: =G21/E21 -> 0.08178174207 | L21: =H21/E21 -> 0.0444341081 | M21: =I21/E21 -> 0.0144602376 | N21: 0.1358343514 | O21: 0.02227177586 | P21: 2.364555456 | Q21: 0.08796667201 | S21: 0.914 | T21: 0.41133
A22: LANDSTAR SYSTEM INC | B22: LSTR | C22: 4104.513363 | D22: 3984.384363 | E22: 3169.136 | F22: 471.9710068 | G22: 274.112 | H22: 234.087 | I22: 144.77585 | J22: =F22/E22 -> 0.1489273438 | K22: =G22/E22 -> 0.08649423692 | L22: =H22/E22 -> 0.07386461168 | M22: =I22/E22 -> 0.0456830663 | N22: 0.048841313 | O22: 0.1037679858 | P22: -0.04342929308 | Q22: 0.1021166043 | R22: -0.03550295858 | S22: 0.1110769231 | T22: 0.1075
A23: KNIGHT-SWIFT TRANSPORTATION | B23: KNX | C23: 6897.325002 | D23: 7790.536002 | E23: 4031.517 | F23: 710.3909872 | G23: 465.501 | H23: 176.514 | I23: 108.33925 | J23: 0.1762093493 | K23: 0.1154654687 | L23: 0.04378351871 | M23: 0.02687307284 | N23: -0.03040839038 | O23: -0.1618539622 | P23: -0.2027814791 | Q23: -0.06952342586 | R23: -0.2014388489 | S23: -0.2687868852 | T23: 0.163
A24: WERNER ENTERPRISES INC | B24: WERN | C24: 2446.446297 | D24: 2498.836297 | E24: 2008.991 | F24: 328.3159989 | G24: 344.616 | H24: 116.715 | I24: 73.339 | J24: 0.1634233299 | K24: 0.1715368561 | L24: 0.05809632796 | M24: 0.03650539002 | N24: 0.001722979351 | O24: 0.04645217425 | P24: -0.1469955419 | Q24: 0.07981584167 | R24: -0.3604651163 | S24: 0.1394495413 | T24: 0.111
A26: Mean | J26: =IFERROR(AVERAGE(J21:J24),"") -> 0.1992293515 | K26: 0.1138195759 | L26: 0.05504464161 | M26: 0.03088044169 | N26: 0.03899756334 | O26: 0.002659493441 | P26: 0.4928372856 | Q26: 0.05009392303 | R26: -0.1991356413 | S26: 0.2239348948 | T26: 0.1982075
A27: Median | J27: =IFERROR(MEDIAN(J21:J24),"") -> 0.1698163396 | K27: 0.1009798528 | L27: 0.05126521803 | M27: 0.03168923143 | N27: 0.02528214618 | O27: 0.03436197506 | P27: -0.09521241749 | Q27: 0.08389125684 | R27: -0.2014388489 | S27: 0.1252632322 | T27: 0.137
A29: Tier III: Small-Cap
A30: SAIA INC | B30: SAIA | C30: 1436.675024 | D30: 1584.644024 | E30: 1218.481 | F30: 416.5040004 | G30: 168.594 | H30: 87.184 | I30: 53.2394 | J30: =F30/E30 -> 0.3418223185 | K30: =G30/E30 -> 0.1383640779 | L30: =H30/E30 -> 0.07155138242 | M30: =I30/E30 -> 0.04369325414 | N30: 0.07064083705 | O30: 0.1089922617 | P30: 0.002458143811 | Q30: 0.1612411183 | R30: -0.1312217195 | S30: 0.1576964354 | T30: N.A.
A31: HEARTLAND EXPRESS INC | B31: HTLD | C31: 1915.12659 | D31: 1743.83459 | E31: 612.937 | F31: 116.1429985 | G31: 181.08 | H31: 65.707 | I31: 44.036 | J31: =F31/E31 -> 0.1894860296 | K31: =G31/E31 -> 0.295430036 | L31: =H31/E31 -> 0.1072002506 | M31: =I31/E31 -> 0.07184425153 | N31: -0.1936728293 | O31: 0.09888128796 | P31: -0.1632024095 | Q31: 0.007795088571 | R31: -0.1904761905 | S31: 0.01470588235 | T31: 0.1425
A32: ARCBEST CORP | B32: ARCB | C32: 778.8987993 | D32: 879.4997993 | E32: 2700.219 | F32: 769.5009956 | G32: 136.819 | H32: 45.68069231 | I32: 29.7307 | J32: =F32/E32 -> 0.2849772539 | K32: =G32/E32 -> 0.05066959384 | L32: =H32/E32 -> 0.01691740274 | M32: =I32/E32 -> 0.0110104773 | N32: 0.04443334001 | O32: 0.05439595825 | P32: -0.216657371 | Q32: -0.02143842123 | R32: -0.5789473684 | S32: 0.4010752688 | T32: 0.32835
A33: ROADRUNNER TRANSPORTATION SY | B33: RRTS | C33: 345.062934 | D33: 744.374934 | E33: 1995.019 | F33: 352.7750042 | G33: 103.397 | H33: 66.135 | I33: 27.23055 | J33: 0.176827892 | K33: 0.05182757658 | L33: 0.03315006022 | M33: 0.0136492685 | N33: -0.03160819644 | O33: -0.0100344909 | P33: 0.06879370843 | Q33: -0.2604421843 | R33: -0.0802919708 | T33: N.A.
A34: MARTEN TRANSPORT LTD | B34: MRTN | C34: 1035.742706 | D34: 1025.684706 | E34: 671.144 | F34: 117.2710012 | G34: 143.628 | H34: 49.57 | I34: 28.02465 | J34: 0.174732995 | K34: 0.2140047441 | L34: 0.0738589632 | M34: 0.04175653809 | N34: 0.0294205688 | O34: 0.03554527791 | P34: 0.03198275483 | Q34: 0.02073919345 | R34: -0.03738317757 | S34: -0.00326777451 | T34: N.A.
A35: P.A.M. TRANSPORTATION SVCS | B35: PTSI | C35: 177.5928463 | D35: 304.0348463 | E35: 432.852 | F35: 119.2608473 | G35: 53.973139 | H35: 10.979139 | I35: 7.764242 | J35: 0.2755233829 | K35: 0.1246919016 | L35: 0.02536464889 | M35: 0.01793740586 | N35: 0.02627791914 | O35: 0.1287133523 | P35: -0.1390282315 | Q35: N.A. | R35: -0.4285714286 | S35: -0.4908926688 | T35: N.A.
A36: USA TRUCK INC | B36: USAK | C36: 112.3811041 | D36: 238.7111041 | E36: 429.099 | F36: 35.41799976 | G36: 15.645 | H36: -10.65449231 | I36: -10.18394 | J36: 0.08254039222 | K36: 0.0364601176 | L36: -0.02482991642 | M36: -0.02373331096 | N36: -0.0960193082 | O36: -0.004891645052 | P36: -0.6294363429 | Q36: -0.0960372797 | R36: N.A. | S36: -0.2608695652 | T36: N.A.
A37: YRC WORLDWIDE INC | B37: YRCW | C37: 404.7340282 | D37: 1177.534028 | E37: 4697.5 | F37: 346.5 | G37: 255.6 | H37: 102.2 | I37: 1.075 | J37: 0.0737626397 | K37: 0.05441192123 | L37: 0.02175625333 | M37: 0.0002288451304 | N37: 0.01808928003 | O37: 0.04166045769 | P37: 0.1067393845 | Q37: 0.01636747624 | R37: 32 | S37: -0.09846153846 | T37: N.A.
A38: CELADON GROUP INC | B38: CGI | C38: 147.1569008 | D38: 521.4849008 | E38: 1065.356 | F38: 102.9429986 | G38: 88.903 | H38: 8.469 | I38: -1.0526 | J38: 0.09662779254 | K38: 0.08344910058 | L38: 0.007949455393 | M38: -0.0009880265376 | N38: 0.02738655748 | O38: -0.0256778016 | P38: -0.06786696745 | Q38: -0.5415942502 | R38: -0.4230769231 | S38: -1.295454545 | T38: N.A.
A39: PATRIOT TRANSPORTATION HOLDI | B39: PATI | C39: 64.0937588 | D39: 54.6867588 | E39: 120.172 | F39: 45.076 | G39: 17.519 | H39: 5.816 | I39: 3.3929 | J39: 0.3750956962 | K39: 0.1457827114 | L39: 0.04839729721 | M39: 0.02823369837 | N39: -0.02205367751 | P39: 0.1624311592 | Q39: N.A. | R39: 0.7058823529 | T39: N.A.
A40: ECHO GLOBAL LOGISTICS INC | B40: ECHO | C40: 562.8449258 | D40: 749.9976568 | E40: 1716.152159 | F40: 275.6573689 | G40: 36.528551 | H40: 3.804395 | I40: -7.426111 | J40: 0.1606252496 | K40: 0.02128514701 | L40: 0.002216816836 | M40: -0.004327186818 | N40: 0.02731706029 | O40: 0.0477986993 | P40: -0.3209616917 | Q40: -0.3003739612 | R40: -0.7931034483 | S40: -0.2963855422 | T40: 0.2
A41: UNIVERSAL LOGISTICS HOLDINGS | B41: ULH | C41: 601.5672081 | D41: 835.6452081 | E41: 1072.751 | F41: 232.6079977 | G41: 72.351 | H41: 32.159 | I41: 15.26515 | J41: 0.2168331679 | K41: 0.06744435568 | L41: 0.02997806574 | M41: 0.01422990983 | N41: 0.01604913077 | O41: 0.1065009494 | P41: -0.2307791776 | Q41: 0.02182944694 | R41: -0.3795620438 | S41: -0.1445289108 | T41: N.A.
A42: COVENANT TRANSPORT GRP-CL A | B42: CVTI | C42: 476.2107966 | D42: 668.4057966 | E42: 670.651 | F42: 89.80600092 | G42: 97.663 | H42: 23.572 | I42: 11.39285 | J42: 0.1339086961 | K42: 0.1456241771 | L42: 0.03514793835 | M42: 0.01698774773 | N42: -0.02611995459 | O42: 0.03779760263 | P42: -0.197993713 | Q42: 0.0152235875 | R42: -0.599137931 | S42: -0.2173913043 | T42: N.A.
A43: Mean | J43: =IFERROR(AVERAGE(J30:J33),"") -> 0.2482783735 | K43: 0.1340728211 | L43: 0.05720477399 | M43: 0.03504931287 | N43: -0.02755171217 | O43: 0.06305875425 | P43: -0.07715198208 | Q43: -0.02821109965 | R43: -0.2452343123 | S43: 0.1911591955 | T43: 0.235425
A44: Median | J44: =IFERROR(MEDIAN(J30:J33),"") -> 0.2372316417 | K44: 0.09509582724 | L44: 0.05235072132 | M44: 0.02867126132 | N44: 0.006412571787 | O44: 0.07663862311 | P44: -0.08037213285 | Q44: -0.00682166633 | R44: -0.160848955 | S44: 0.1576964354 | T44: 0.235425
A46: Overall
A48: Mean | J48: =IFERROR(AVERAGE(J17,J26,J43),"") -> 0.1877748845 | K48: 0.1201066969 | L48: 0.06426480726 | M48: 0.0390718093 | N48: 0.02725580122 | O48: 0.05757109002 | P48: 0.1406047875 | Q48: -0.008659015301 | R48: -0.1375603713 | S48: 0.1227133967 | T48: 0.1822941667
A49: Median | J49: =IFERROR(MEDIAN(J18,J27,J44),"") -> 0.1698163396 | K49: 0.1009798528 | L49: 0.05235072132 | M49: 0.03168923143 | N49: 0.02528214618 | O49: 0.07663862311 | P49: -0.08037213285 | Q49: -0.00682166633 | R49: -0.160848955 | S49: 0.1252632322 | T49: 0.137
A51: High | J51: =IFERROR(MIN(J12:J15,J21:J24,J30:J33),"") -> 0.0890432323 | K51: 0.05066959384 | L51: 0.01691740274 | M51: 0.0110104773 | N51: -0.1936728293 | O51: -0.1618539622 | P51: -0.216657371 | Q51: -0.2604421843 | R51: -0.5789473684 | S51: -0.2687868852 | T51: 0.092
A52: Low | J52: =IFERROR(MAX(J12:J15,J21:J24,J30:J33),"") -> 0.3418223185 | K52: 0.295430036 | L52: 0.1072002506 | M52: 0.07184425153 | N52: 0.1358343514 | O52: 0.1302006411 | P52: 2.364555456 | Q52: 0.1612411183 | R52: 0.0406504065 | S52: 0.914 | T52: 0.41133

Sheet P2
A1: =A9 -> OLD DOMINION FREIGHT LINE
A2: Benchmarking Analysis - Financial Statistics and Ratios, Page 2
A3: ($ in millions, except per share data)
C5: Market Valuation | E5: Return on Investment | I5: LTM Leverage Ratios | L5: LTM Coverage Ratios | O5: Credit Ratings
H6: Implied | I6: Debt / | J6: Debt / | K6: Net Debt / | L6: EBITDA / | M6: EBITDA | N6: EBIT /
D7: Predicted | H7: Div. Yield | I7: Tot. | J7: EBITDA | K7: EBITDA | L7: Int. Exp. | M7: - Cpx/ Int. | N7: Int. Exp.
A8: Company | B8: Ticker | C8: FYE | D8: Beta | E8: ROIC (%) | F8: ROE (%) | G8: ROA (%) | H8: (%) | I8: Cap. (%) | J8: (x) | K8: (x) | L8: (x) | M8: (x) | N8: (x) | O8: Moody's | P8: S&P
A9: OLD DOMINION FREIGHT LINE | B9: ODFL | C9: 12/2016 | D9: 1.154270626 | E9: 0.16806244 | F9: 0.1704537909 | G9: 0.1157461818 | H9: 0 | I9: 0.05366455144 | J9: 0.1321728097 | K9: 0.08510120263 | L9: 102.1689415 | M9: 38.78692751 | N9: 111.6885965
A11: Tier I: Large-Cap
A12: C.H. ROBINSON WORLDWIDE INC | B12: CHRW | C12: 12/2016 | D12: 0.6596272018 | E12: 0.1788455702 | F12: 0.3726715814 | G12: 0.1324633535 | H12: 0.02868825722 | I12: 0.4964275234 | J12: 1.5611967 | K12: 1.243394288
A13: HUNT (JB) TRANSPRT SVCS INC | B13: JBHT | C13: 12/2016 | D13: 1.057960774 | E13: 0.1472429435 | F13: 0.2929676138 | G13: 0.107532493 | H13: 0.008956693048 | I13: 0.4108911283 | J13: 1.037762346 | K13: 1.030389534 | L13: 42.79789673 | M13: 17.55752352 | N13: 28.50557444 | O13: Baa1 | P13: BBB+
A17: Mean | D17: =IFERROR(AVERAGE(D12:D15),"") -> 0.8587939877 | E17: 0.1630442568 | F17: 0.3328195976 | G17: 0.1199979232 | H17: 0.01882247513 | I17: 0.4536593258 | J17: 1.299479523 | K17: 1.136891911 | L17: 42.79789673 | M17: 17.55752352 | N17: 28.50557444
A18: Median | D18: =IFERROR(MEDIAN(D12:D15),"") -> 0.8587939877 | E18: 0.1630442568 | F18: 0.3328195976 | G18: 0.1199979232 | H18: 0.01882247513 | I18: 0.4536593258 | J18: 1.299479523 | K18: 1.136891911 | L18: 42.79789673 | M18: 17.55752352 | N18: 28.50557444
A20: Tier II: Mid-Cap
A21: XPO LOGISTICS INC | B21: XPO | C21: 12/2016 | D21: 1.913294989 | E21: 0.02504354816 | F21: 0.03916458537 | G21: 0.009695347711 | H21: 0 | I21: 0.6157660393 | J21: 4.074355972 | K21: 3.830628973 | L21: 3.13348103 | M21: 1.794793686 | N21: 1.351703129 | O21: B1 | P21: BB-
A22: LANDSTAR SYSTEM INC | B22: LSTR | C22: 12/2016 | D22: 0.9144161282 | E22: 0.2012375739 | F22: 0.2633759357 | G22: 0.135954191 | H22: 0.003679100722 | I22: 0.24341386 | J22: 0.5586767453 | K22: -0.4382478695 | L22: 68.27807064 | M22: 62.30943595 | N22: 58.84317343
A23: KNIGHT-SWIFT TRANSPORTATION | B23: KNX | C23: 12/2016 | D23: 0.9584838068 | E23: 0.04298064723 | F23: 0.1601332202 | G23: 0.03951484408 | H23: 0 | I23: 0.6300764714 | J23: 2.010721781 | K23: 1.918597382 | L23: 16.63984574 | M23: 8.814301588 | N23: 7.359892803
A24: WERNER ENTERPRISES INC | B24: WERN | C24: 12/2016 | D24: 1.063116476 | E24: -0.1150350168 | F24: 0.08018284765 | G24: 0.04624728409 | H24: 0.007385524705 | I24: 0.1532192644 | J24: 0.2176335399 | K24: 0.1520242821 | L24: 130.3057819 | M24: -78.40124175 | N24: 48.92122623
A26: Mean | D26: =IFERROR(AVERAGE(D21:D24),"") -> 1.21232785 | E26: 0.03855668811 | F26: 0.1357141472 | G26: 0.05785291671 | H26: 0.002766156357 | I26: 0.4106189088 | J26: 1.71534701 | K26: 1.365750692 | L26: 54.58929483 | M26: -1.370677632 | N26: 29.1189989
A27: Median | D27: =IFERROR(MEDIAN(D21:D24),"") -> 1.010800141 | E27: 0.0340120977 | F27: 0.1201580339 | G27: 0.04288106408 | H27: 0.001839550361 | I27: 0.4295899497 | J27: 1.284699263 | K27: 1.035310832 | L27: 42.45895819 | M27: 5.304547637 | N27: 28.14055952
A29: Tier III: Small-Cap
A30: SAIA INC | B30: SAIA | C30: 12/2016 | D30: 0.9833760003 | E30: 0.09189122949 | F30: 0.1097074276 | G30: 0.06009822313 | H30: 0 | I30: 0.1325307695 | J30: 0.8800313178 | K30: 0.8776646856 | L30: 35.36094675 | M30: 8.195493855 | N30: 18.01001365
A31: HEARTLAND EXPRESS INC | B31: HTLD | C31: 12/2016 | D31: 0.9303361592 | E31: 0.07867723284 | F31: 0.1070197657 | G31: 0.07271891987 | H31: 0.003479773849 | I31: 0 | J31: 0 | K31: -0.945946543
A32: ARCBEST CORP | B32: ARCB | C32: 12/2016 | D32: 1.652016085 | E32: 0.04647968499 | F32: 0.03834806018 | G32: 0.01764174406 | H32: 0.01056105637 | I32: 0.2892020841 | J32: 1.880718321 | K32: 0.7352853039 | L32: 25.63553398 | M32: 12.37902913 | N32: 5.625242718
A33: ROADRUNNER TRANSPORTATION SY | B33: RRTS | C33: 12/2015 | D33: 1.576434516 | E33: -0.1540452503 | F33: 0.04062104456 | G33: 0.01860444295 | H33: 0 | I33: 0.4239009343 | J33: 3.9090109 | K33: 3.86193023 | L33: 6.753485262 | M33: 3.931375071 | N33: 4.973146767
A34: MARTEN TRANSPORT LTD | B34: MRTN | C34: 12/2016 | D34: 1.128823473 | E34: 0.105961772 | F34: 0.07801336489 | G34: 0.05252900304 | H34: 0.003157894105 | I34: 0.01771243239 | J34: 0 | K34: -0.07002812822
A35: P.A.M. TRANSPORTATION SVCS | B35: PTSI | C35: 12/2016 | D35: 1.692682332 | E35: 0.06353012943 | F35: 0.08632108305 | G35: 0.02167395192 | H35: 0 | I35: 0.6397313998 | J35: 2.804487617 | K35: 2.34268383 | L35: 16.21587476 | M35: -7.439165065 | N35: 5.473221642
A36: USA TRUCK INC | B36: USAK | C36: 12/2016 | D36: 1.980960302 | E36: -0.04526474495 | F36: -0.2030384685 | G36: -0.0437162749 | H36: 0 | I36: 0.7174854304 | J36: 8.085394695 | K36: 8.074784276 | L36: 7.060415356 | M36: -11.7410321 | N36: -2.36500944
A37: YRC WORLDWIDE INC | B37: YRCW | C37: 12/2016 | D37: 2.402148627 | E37: 0.09860562315 | G37: 5.48681792e-05 | H37: 0 | I37: 1.716474436 | J37: 3.86541471 | K37: 3.023474178 | L37: 2.747582205 | M37: 1.774661509 | N37: 1.20212766 | O37: B3 | P37: B-
A38: CELADON GROUP INC | B38: CGI | C38: 06/2016 | D38: 1.95549191 | E38: 0.02711274168 | F38: 0.006743093821 | G38: 0.002311374501 | H38: 0.01538461595 | I38: 0.5419540361 | J38: 4.279563119 | K38: 4.21052158 | L38: 9.555748876 | M38: 3.20537915 | N38: 3.784688995
A39: PATRIOT TRANSPORTATION HOLDI | B39: PATI | C39: 09/2016 | D39: 0.5954999489 | E39: 0.1077490453 | F39: 0.1406072855 | G39: 0.09068150209 | H39: 0 | I39: 0 | J39: 0 | K39: -0.3427707061 | L39: 134.7615385 | M39: 46.27692308 | N39: 59.92307692
A40: ECHO GLOBAL LOGISTICS INC | B40: ECHO | C40: 12/2016 | D40: 1.241240247 | E40: 0.0197393025 | F40: -0.02127701785 | G40: -0.009747114391 | H40: 0 | I40: 0.362398133 | J40: 5.671820872 | K40: 5.12346441 | L40: 2.245629163 | M40: -1.050107206 | N40: -0.0133188105
A41: DASEKE INC | B41: DSKE | C41: 12/2016 | D41: 0.3394349653 | E41: -0.002123134293 | F41: -0.1245161166 | G41: -0.03772161196 | H41: 0.05029585629 | I41: 0
A42: UNIVERSAL LOGISTICS HOLDINGS | B42: ULH | C42: 12/2016 | D42: 1.772561618 | E42: 0.05883058479 | F42: 0.1003228226 | G42: 0.02607386861 | H42: 0.01323877092 | I42: 0.6389656664 | J42: 3.458611491 | K42: 3.235311191 | L42: 10.075248 | M42: -1.702032422 | N42: 5.635131865
A43: COVENANT TRANSPORT GRP-CL A | B43: CVTI | C43: 12/2016 | D43: 1.523944134 | E43: 0.04613759661 | F43: 0.04534373263 | G43: 0.0172150359 | H43: 0 | I43: 0.4774549763 | J43: 2.159323388 | K43: 1.967940776 | L43: 12.65426696 | M43: -1.057622174 | N43: 3.944444444
A44: Mean | D44: =IFERROR(AVERAGE(D30:D41),"") -> 1.373203714 | E44: 0.03652613598 | F44: 0.02350450203 | G44: 0.02042741904 | H44: 0.006906599713 | I44: 0.403449138 | J44: 2.852403778 | K44: 2.444642102 | L44: 26.70408387 | M44: 6.170284158 | N44: 10.7347989
A45: Median | D45: =IFERROR(MEDIAN(D30:D41),"") -> 1.408837382 | E45: 0.05500490721 | F45: 0.04062104456 | G45: 0.01812309351 | H45: 0 | I45: 0.3258001085 | J45: 2.804487617 | K45: 2.34268383 | L45: 9.555748876 | M45: 3.20537915 | N45: 4.973146767
A47: Overall
A49: Mean | D49: =IFERROR(AVERAGE(D17,D26,D44),"") -> 1.148108517 | E49: 0.07937569364 | F49: 0.164012749 | G49: 0.066092753 | H49: 0.009498410401 | I49: 0.4225757909 | J49: 1.955743437 | K49: 1.649094901 | L49: 41.36375848 | M49: 7.452376683 | N49: 22.78645741
A50: Median | D50: =IFERROR(MEDIAN(D18,D27,D45),"") -> 1.010800141 | E50: 0.05500490721 | F50: 0.1201580339 | G50: 0.04288106408 | H50: 0.001839550361 | I50: 0.4295899497 | J50: 1.299479523 | K50: 1.136891911 | L50: 42.45895819 | M50: 5.304547637 | N50: 28.14055952
A52: High | D52: =IFERROR(MIN(D12:D15,D21:D24,D30:D41),"") -> 0.3394349653 | E52: -0.1540452503 | F52: -0.2030384685 | G52: -0.0437162749 | H52: 0 | I52: 0 | J52: 0 | K52: -0.945946543 | L52: 2.245629163 | M52: -78.40124175 | N52: -2.36500944
A53: Low | D53: =IFERROR(MAX(D12:D15,D21:D24,D30:D41),"") -> 2.402148627 | E53: 0.2012375739 | F53: 0.3726715814 | G53: 0.135954191 | H53: 0.05029585629 | I53: 1.716474436 | J53: 8.085394695 | K53: 8.074784276 | L53: 134.7615385 | M53: 62.30943595 | N53: 59.92307692

Sheet CCA
A1: ='P1'!A1 -> OLD DOMINION FREIGHT LINE
A2: Comparable Companies Analysis
A3: ($ in millions, except per share data)
C5: Current | D5: % of | G5: Enterprise Value / | P5: LTM | Q5: Total | R5: Price / | U5: LT
C6: Share | D6: 52-wk. | E6: Equity | F6: Enterprise | G6: LTM | H6: =YEAR('P2'!$C$12)+1&"E" -> 2017E | I6: =YEAR('P2'!$C$12)+2&"E" -> 2018E | J6: LTM | K6: =YEAR('P2'!$C$12)+1&"E" -> 2017E | L6: =YEAR('P2'!$C$12)+2&"E" -> 2018E | M6: LTM | N6: =YEAR('P2'!$C$12)+1&"E" -> 2017E | O6: =YEAR('P2'!$C$12)+2&"E" -> 2018E | P6: EBITDA | Q6: Debt / | R6: LTM | S6: =YEAR('P2'!$C$12)+1&"E" -> 2017E | T6: =YEAR('P2'!$C$12)+2&"E" -> 2018E | U6: EPS
A7: Company | B7: Ticker | C7: Price | D7: High | E7: Value | F7: Value | G7: Sales | H7: Sales | I7: Sales | J7: EBITDA | K7: EBITDA | L7: EBITDA | M7: EBIT | N7: EBIT | O7: EBIT | P7: Margin | Q7: EBITDA | R7: EPS | S7: EPS | T7: EPS | U7: Growth
A8: OLD DOMINION FREIGHT LINE | B8: ODFL | C8: 107.76 | D8: 0.9756450883 | E8: 8877.933895 | F8: 8939.100895 | G8: =F8/'P1'!E9 -> 2.98814979 | H8: 2.735342991 | I8: 2.520897037 | J8: =F8/'P1'!G9 -> 12.43690612 | K8: 11.70039384 | L8: 10.54139256 | M8: =F8/'P1'!H9 -> 17.20407723 | N8: 15.96268017 | O8: 14.27971389 | P8: ='P1'!K9 -> 0.2402647219 | Q8: 0.1321728097 | R8: 27.98659421 | S8: 25.95375723 | T8: 22.70065304 | U8: ='P1'!T9 -> 0.12825
A10: Tier I: Large-Cap
A11: C.H. ROBINSON WORLDWIDE INC | B11: CHRW | C11: 77.035 | D11: 0.9491744702 | E11: 10814.64075 | F11: 11883.45875 | G11: =F11/'P1'!E12 -> 0.904069185 | H11: 0.8252401909 | I11: 0.7771537995 | J11: =F11/'P1'!G12 -> 13.82445349 | K11: 14.12175728 | L11: 12.82618321 | M11: =F11/'P1'!H12 -> 15.1556171 | N11: 15.7710136 | O11: 14.26585684 | P11: ='P1'!K12 -> 0.06539637791 | Q11: 1.5611967 | R11: 22.37140145 | S11: 23.55090186 | T11: 21.31571666 | U11: ='P1'!T12 -> 0.092
A12: HUNT (JB) TRANSPRT SVCS INC | B12: JBHT | C12: 101.6 | D12: 0.9073048759 | E12: 11118.64202 | F12: 12195.73602 | G12: =F12/'P1'!E13 -> 1.860393914 | H12: 1.713847109 | I12: 1.549353494 | J12: =F12/'P1'!G13 -> 11.66691 | K12: 11.65940347 | L12: 10.06248847 | M12: =F12/'P1'!H13 -> 18.34028005 | N12: 18.33945267 | O12: 15.23514806 | P12: ='P1'!K13 -> 0.1594590097 | Q12: 1.037762346 | R12: 26.48311258 | S12: 27.39282826 | T12: 22.84686305 | U12: ='P1'!T13 -> 0.1345
A16: Mean | G16: =AVERAGE(G11:G14) -> 1.382231549 | H16: =AVERAGE(H11:H14) -> 1.26954365 | I16: 1.163253647 | J16: 12.74568174 | K16: 12.89058037 | L16: 11.44433584 | M16: 16.74794858 | N16: 17.05523313 | O16: 14.75050245 | P16: =IFERROR(AVERAGE(P11:P14),"") -> 0.1124276938 | Q16: 1.299479523 | R16: 24.42725701 | S16: 25.47186506 | T16: 22.08128986 | U16: 0.11325
A17: Median | G17: =MEDIAN(G11:G14) -> 1.382231549 | H17: =MEDIAN(H11:H14) -> 1.26954365 | I17: 1.163253647 | J17: 12.74568174 | K17: 12.89058037 | L17: 11.44433584 | M17: 16.74794858 | N17: 17.05523313 | O17: 14.75050245 | P17: =IFERROR(MEDIAN(P11:P14),"") -> 0.1124276938 | Q17: 1.299479523 | R17: 24.42725701 | S17: 25.47186506 | T17: 22.08128986 | U17: 0.11325
A19: Tier II: Mid-Cap
A20: XPO LOGISTICS INC | B20: XPO | C20: 66.5 | D20: 0.9643271462 | E20: 7835.573371 | F20: 12826.27337 | G20: =F20/'P1'!E21 -> 0.8773460861 | H20: 0.8578873234 | I20: 0.8122521292 | J20: =F20/'P1'!G21 -> 10.72789676 | K20: 9.396537268 | L20: 8.016420857 | M20: =F20/'P1'!H21 -> 19.74487896 | N20: 18.65639763 | O20: 14.15703463 | P20: ='P1'!K21 -> 0.08178174207 | Q20: 4.074355972 | R20: 40.96517652 | S20: 34.74399164 | T20: 23.46506704 | U20: ='P1'!T21 -> 0.41133
A21: LANDSTAR SYSTEM INC | B21: LSTR | C21: 97.85 | D21: 0.9541686982 | E21: 4104.513363 | F21: 3984.384363 | G21: =F21/'P1'!E22 -> 1.257246254 | H21: 1.14329537 | I21: 1.07049553 | J21: =F21/'P1'!G22 -> 14.53560721 | K21: 14.05426583 | L21: 12.60881127 | M21: =F21/'P1'!H22 -> 17.0209553 | N21: 16.46439819 | O21: 15.03541269 | P21: ='P1'!K22 -> 0.08649423692 | Q21: 0.5586767453 | R21: 28.46949573 | S21: 27.09775685 | T21: 23.88332927 | U21: ='P1'!T22 -> 0.1075
A22: KNIGHT-SWIFT TRANSPORTATION | B22: KNX | C22: 38.84 | D22: 0.8737907762 | E22: 6897.325002 | F22: 7790.536002 | G22: =F22/'P1'!E23 -> 1.932408074 | H22: 3.043178126 | I22: 1.431294507 | J22: =F22/'P1'!G23 -> 16.73580938 | K22: 15.81834721 | L22: 9.208671397 | M22: =F22/'P1'!H23 -> 44.13551334 | N22: 32.73334455 | O22: 14.40025139 | P22: ='P1'!K23 -> 0.1154654687 | Q22: 2.010721781 | R22: 34.36766861 | S22: 31.34786118 | T22: 21.85706246 | U22: ='P1'!T23 -> 0.163
A23: WERNER ENTERPRISES INC | B23: WERN | C23: 33.85 | D23: 0.9148648649 | E23: 2446.446297 | F23: 2498.836297 | G23: =F23/'P1'!E24 -> 1.243826526 | H23: 1.189072708 | I23: 1.123577472 | J23: =F23/'P1'!G24 -> 7.25107452 | K23: 6.902862698 | L23: 6.192902842 | M23: =F23/'P1'!H24 -> 21.40972709 | N23: 17.35302984 | O23: 13.95997931 | P23: ='P1'!K24 -> 0.1715368561 | Q23: 0.2176335399 | R23: 33.56526434 | S23: 27.25442834 | T23: 22.08088715 | U23: ='P1'!T24 -> 0.111
A25: Mean | G25: =AVERAGE(G20:G23) -> 1.327706735 | H25: =AVERAGE(H20:H23) -> 1.558358382 | I25: 1.109404909 | J25: 12.31259697 | K25: 11.54300325 | L25: 9.006701593 | M25: 25.57776867 | N25: 21.30179255 | O25: 14.3881695 | P25: =IFERROR(AVERAGE(P20:P23),"") -> 0.1138195759 | Q25: 1.71534701 | R25: 34.3419013 | S25: 30.1110095 | T25: 22.82158648 | U25: 0.1982075
A26: Median | G26: =MEDIAN(G20:G23) -> 1.25053639 | H26: =MEDIAN(H20:H23) -> 1.166184039 | I26: 1.097036501 | J26: 12.63175199 | K26: 11.72540155 | L26: 8.612546127 | M26: 20.57730302 | N26: 18.00471373 | O26: 14.27864301 | P26: =IFERROR(MEDIAN(P20:P23),"") -> 0.1009798528 | Q26: 1.284699263 | R26: 33.96646647 | S26: 29.30114476 | T26: 22.7729771 | U26: 0.137
A28: Tier III: Small-Cap
A29: SAIA INC | B29: SAIA | C29: 56.45 | D29: 0.8953211737 | E29: 1436.675024 | F29: 1584.644024 | G29: =F29/'P1'!E30 -> 1.300507783 | H29: 1.172941542 | I29: 1.067100353 | J29: =F29/'P1'!G30 -> 9.399172115 | K29: 8.754939357 | L29: 7.47473596 | M29: =F29/'P1'!H30 -> 18.17585823 | N29: 16.79537916 | O29: 13.31633633 | P29: ='P1'!K30 -> 0.1383640779 | Q29: 0.8800313178 | R29: 27.36439031 | S29: 26.073903 | T29: 20.44549076 | U29: ='P1'!T30 -> N.A.
A30: HEARTLAND EXPRESS INC | B30: HTLD | C30: 22.99 | D30: 0.9117588737 | E30: 1915.12659 | F30: 1743.83459 | G30: =F30/'P1'!E31 -> 2.845047028 | H30: 2.630218085 | I30: 2.155543375 | J30: =F30/'P1'!G31 -> 9.630188812 | K30: 9.130024032 | L30: 7.54906749 | M30: =F30/'P1'!H31 -> 26.53955576 | N30: 20.30075192 | O30: 15.29679465 | P30: ='P1'!K31 -> 0.295430036 | Q30: 0 | R30: 43.51628174 | S30: 33.31884058 | T30: 26.15472127 | U30: ='P1'!T31 -> 0.1425
A31: ARCBEST CORP | B31: ARCB | C31: 30.3 | D31: 0.8846715328 | E31: 778.8987993 | F31: 879.4997993 | G31: =F31/'P1'!E32 -> 0.3257142474 | H31: 0.307894206 | I31: 0.2904556801 | J31: =F31/'P1'!G32 -> 6.428199295 | K31: 5.462731673 | L31: 4.779890214 | M31: =F31/'P1'!H32 -> 19.25320644 | N31: 14.21988358 | O31: 10.27453037 | P31: ='P1'!K32 -> 0.05066959384 | Q31: 1.880718321 | R31: 27.02372401 | S31: 23.25402916 | T31: 16.88963211 | U31: ='P1'!T32 -> 0.32835
A32: ROADRUNNER TRANSPORTATION SY | B32: RRTS | C32: 9 | D32: 0.7575757576 | E32: 345.062934 | F32: 744.374934 | G32: =F32/'P1'!E33 -> 0.3731167142 | H32: 0.3768987008 | I32: 0.3710742443 | J32: =F32/'P1'!G33 -> 7.199192762 | K32: 7.802672264 | L32: 6.308262153 | M32: =F32/'P1'!H33 -> 11.25538571 | N32: 11.87200852 | O32: 9.717688433 | P32: ='P1'!K33 -> 0.05182757658 | Q32: 3.9090109 | R32: 12.66109485 | S32: #N/A N/A | T32: 14.12872841 | U32: ='P1'!T33 -> N.A.
A33: MARTEN TRANSPORT LTD | B33: MRTN | C33: 19 | D33: 0.8983451537 | E33: 1035.742706 | F33: 1025.684706 | G33: =F33/'P1'!E34 -> 1.528263243 | H33: 1.465263866 | I33: 1.35942307 | J33: =F33/'P1'!G34 -> 7.14125871 | K33: 7.122810458 | L33: 6.471196883 | M33: =F33/'P1'!H34 -> 20.69164224 | N33: 17.91589006 | O33: 15.24048597 | P33: ='P1'!K34 -> 0.2140047441 | Q33: 0 | R33: 37.11657376 | S33: 31.14754098 | T33: 25.33333333 | U33: ='P1'!T34 -> N.A.
A34: P.A.M. TRANSPORTATION SVCS | B34: PTSI | C34: 28.0001 | D34: 0.9780225154 | E34: 177.5928463 | F34: 304.0348463 | G34: =F34/'P1'!E35 -> 0.7023990793 | H34: 0.7037843663 | I34: 0.6756329917 | J34: =F34/'P1'!G35 -> 5.633076969 | K34: 5.651205321 | L34: 4.663111139 | M34: =F34/'P1'!H35 -> 27.69204819 | N34: 26.20990054 | O34: 19.36527683 | P34: ='P1'!K35 -> 0.1246919016 | Q34: 2.804487617 | R34: 23.30329647 | S34: 32.94129412 | T34: 23.33341667 | U34: ='P1'!T35 -> N.A.
A35: USA TRUCK INC | B35: USAK | C35: 13.545 | D35: 0.9096709201 | E35: 112.3811041 | F35: 238.7111041 | G35: =F35/'P1'!E36 -> 0.5563077615 | H35: 0.5590423985 | I35: 0.5128058091 | J35: =F35/'P1'!G36 -> 15.25798045 | K35: 9.111110845 | L35: 5.865137694 | M35: =F35/'P1'!H36 -> -22.40473758 | N35: -101.5791933 | O35: 21.31349144 | P35: ='P1'!K36 -> 0.0364601176 | Q35: 8.085394695 | R35: #N/A N/A | S35: #N/A N/A | T35: 22.575 | U35: ='P1'!T36 -> N.A.
A36: YRC WORLDWIDE INC | B36: YRCW | C36: 12.07 | D36: 0.7112551562 | E36: 404.7340282 | F36: 1177.534028 | G36: =F36/'P1'!E37 -> 0.2506724914 | H36: 0.24021502 | I36: 0.2279833549 | J36: =F36/'P1'!G37 -> 4.606940642 | K36: 4.117251847 | L36: 3.413142111 | M36: =F36/'P1'!H37 -> 11.52185938 | N36: 8.658338442 | O36: 7.00913112 | P36: ='P1'!K37 -> 0.05441192123 | Q36: 3.86541471 | R36: 1367.240564 | S36: 20.59726962 | T36: 7.639240506 | U36: ='P1'!T37 -> N.A.
A37: CELADON GROUP INC | B37: CGI | C37: 5.2 | D37: 0.5333333333 | E37: 147.1569008 | F37: 521.4849008 | G37: =F37/'P1'!E38 -> 0.4894935597 | H37: 0.5019103954 | I37: 0.4833038932 | J37: =F37/'P1'!G38 -> 5.865773942 | K37: 8.633855974 | L37: 5.771830667 | M37: =F37/'P1'!H38 -> 61.57573513 | N37: -162.9640315 | O37: 28.97138338 | P37: ='P1'!K38 -> 0.08344910058 | Q37: 4.279563119 | R37: #N/A N/A | S37: #N/A N/A | T37: 27.65957447 | U37: ='P1'!T38 -> N.A.
A38: PATRIOT TRANSPORTATION HOLDI | B38: PATI | C38: 19.4 | D38: 0.7101206839 | E38: 64.0937588 | F38: 54.6867588 | G38: =F38/'P1'!E39 -> 0.455070722 | H38: N.A. | I38: N.A. | J38: =F38/'P1'!G39 -> 3.121568514 | K38: N.A. | L38: N.A. | M38: =F38/'P1'!H39 -> 9.402812724 | N38: N.A. | O38: N.A. | P38: ='P1'!K39 -> 0.1457827114 | Q38: 0 | R38: 18.77161965 | S38: #N/A N/A | T38: #N/A N/A | U38: ='P1'!T39 -> N.A.
A39: ECHO GLOBAL LOGISTICS INC | B39: ECHO | C39: 19.725 | D39: 0.6825259516 | E39: 562.8449258 | F39: 749.9976568 | G39: =F39/'P1'!E40 -> 0.4370228204 | H39: 0.4166653649 | I39: 0.3787866954 | J39: =F39/'P1'!G40 -> 20.53182063 | K39: 14.79285319 | L39: 12.0967364 | M39: =F39/'P1'!H40 -> 197.1397967 | N39: 26.22369429 | O39: 20.83326825 | P39: ='P1'!K40 -> 0.02128514701 | Q39: 5.671820872 | R39: #N/A N/A | S39: 33.77568493 | T39: 21.62828947 | U39: ='P1'!T40 -> 0.2
A40: DASEKE INC | B40: DSKE | C40: 13.52 | D40: 0.9467787115 | E40: 589.4523825 | F40: 954.7223825 | G40: =F40/'P1'!E41 -> 0.8899757562 | H40: 1.219313388 | I40: 0.9471452207 | J40: =F40/'P1'!G41 -> 13.19570403 | K40: 8.679294386 | L40: 6.472694119 | M40: =F40/'P1'!H41 -> 29.68756437 | N40: 33.26558824 | O40: 18.98056426 | P40: ='P1'!K41 -> 0.06744435568 | Q40: #N/A N/A | R40: #N/A N/A | S40: #N/A N/A | T40: 60.08888889 | U40: ='P1'!T41 -> N.A.
A41: UNIVERSAL LOGISTICS HOLDINGS | B41: ULH | C41: 21.15 | D41: 0.942513369 | E41: 601.5672081 | F41: 835.6452081 | G41: =F41/'P1'!E42 -> 1.246020968 | H41: 0.7039976479 | I41: 0.6574706594 | J41: =F41/'P1'!G42 -> 8.556415512 | K41: 9.819567663 | L41: 7.883445359 | M41: =F41/'P1'!H42 -> 35.45075548 | N41: 19.99151216 | O41: 13.74416461 | P41: ='P1'!K42 -> 0.1456241771 | Q41: 3.458611491 | R41: 39.51926563 | S41: 28.97260274 | T41: 18.8 | U41: ='P1'!T42 -> N.A.
A42: COVENANT TRANSPORT GRP-CL A | B42: CVTI | C42: 26.04 | D42: 0.8803245436 | E42: 476.2107966 | F42: 668.4057966 | G42: =F42/'P1'!E43 ->  | H42: 0.9631207444 | I42: 0.9008164375 | J42: =F42/'P1'!G43 ->  | K42: 6.335599968 | L42: 5.434193468 | M42: =F42/'P1'!H43 ->  | N42: 26.00800765 | O42: 20.07224614 | P42: ='P1'!K43 -> 0.1340728211 | Q42: 2.159323388 | R42: 41.92980287 | S42: 36.16666667 | T42: 22.25641026 | U42: ='P1'!T43 -> 0.235425
A43: Mean | G43: =AVERAGE(G29:G41) -> 0.8768932441 | H43: =AVERAGE(H29:H41) -> 0.8581787483 | I43: 0.7605604455 | J43: 8.966714799 | K43: 8.256526418 | L43: 6.562437516 | M43: 34.3062679 | N43: -5.757523154 | O43: 16.1719263 | P43: 0.1099573431 | Q43: 2.902921087 | R43: 177.3907567 | S43: 28.76014564 | T43: 23.72302632 | U43: =[2]!BError(AVERAGE(U29:U41)) -> 
A44: Median | G44: =MEDIAN(G29:G41) -> 0.5563077615 | H44: =MEDIAN(H29:H41) -> 0.6314133824 | I44: 0.5851382343 | J44: 7.199192762 | K44: 8.65657518 | L44: 6.389729518 | M44: 20.69164224 | N44: 17.35563461 | O44: 15.26864031 | P44: 0.08344910058 | Q44: 3.131549554 | R44: 27.36439031 | S44: 30.06007186 | T44: 22.10164474 | U44: =[2]!BError(MEDIAN(U29:U41)) -> 
A46: Overall
A48: Mean | G48: =IFERROR(AVERAGE(G11:G14,G20:G23,G29:G41),"") -> 1.024994853 | H48: =IFERROR(AVERAGE(H11:H14,H20:H23,H29:H41),"") -> 1.059481434 | I48: 0.8828251265 | J48: 10.06889704 | K48: 9.501749487 | L48: 7.648040458 | M48: 30.62044498 | N48: 2.790408813 | O48: 15.61759992 | P48: 0.1110304817 | Q48: 2.460855563 | R48: 118.8492619 | S48: 28.67635238 | T48: 23.3402912 | U48: 0.1877977778
A49: Median | G49: =IFERROR(MEDIAN(G11:G14,G20:G23,G29:G41),"") -> 0.8899757562 | H49: =IFERROR(MEDIAN(H11:H14,H20:H23,H29:H41),"") -> 0.8415637571 | I49: 0.7947029643 | J49: 9.399172115 | K49: 8.933025101 | L49: 6.973715039 | M49: 19.74487896 | N49: 17.63445995 | O49: 14.71783204 | P49: 0.08649423692 | Q49: 1.945720051 | R49: 28.46949573 | S49: 28.1827155 | T49: 22.32794357 | U49: 0.1425
A51: High | G51: =IFERROR(MAX(G11:G14,G20:G23,G29:G41),"") -> 2.845047028 | H51: =IFERROR(MAX(H11:H14,H20:H23,H29:H41),"") -> 3.043178126 | I51: 2.155543375 | J51: 20.53182063 | K51: 15.81834721 | L51: 12.82618321 | M51: 197.1397967 | N51: 33.26558824 | O51: 28.97138338 | P51: 0.295430036 | Q51: 8.085394695 | R51: 1367.240564 | S51: 34.74399164 | T51: 60.08888889 | U51: 0.41133
A52: Low | G52: =IFERROR(MIN(G11:G14,G20:G23,G29:G41),"") -> 0.2506724914 | H52: =IFERROR(MIN(H11:H14,H20:H23,H29:H41),"") -> 0.24021502 | I52: 0.2279833549 | J52: 3.121568514 | K52: 4.117251847 | L52: 3.413142111 | M52: -22.40473758 | N52: -162.9640315 | O52: 7.00913112 | P52: 0.02128514701 | Q52: 0 | R52: 12.66109485 | S52: 20.59726962 | T52: 7.639240506 | U52: 0.092

Sheet V1
A1: ='P1'!A1 -> OLD DOMINION FREIGHT LINE
A2: Comparable Companies Analysis
A3: =CONCATENATE("($ in millions, LTM ",_xll.BDP("luv equity","fundamental database date"),")") -> 
G5: Implied Range | J5: Implied Enterprise Value
A6: Sales | B6: Metric | C6: Multiple Range | E6: Average | F6: Median | G6: Enterprise Value Range | J6: Average / Median
A7: LTM | B7: ='P1'!E9 -> 2991.517 | C7: =CCA!G52 -> 0.2506724914 | D7: =CCA!G51 -> 2.845047028 | E7: =CCA!G48 -> 1.024994853 | F7: =CCA!G49 -> 0.8899757562 | G7: =B7*C7 -> 749.8910193 | H7: - | I7: =B7*D7 -> 8511.006549 | J7: =B7*E7 -> 3066.289528 | K7: / | L7: =B7*F7 -> 2662.377604
A8: =YEAR('P2'!$C$12)+1&"E" -> 2017E | B8: =_xll.BDP('P1'!$B$9&" Equity","BEST SALES MEDIAN","BEST FPERIOD OVERRIDE=1FY") ->  | C8: =CCA!H52 -> 0.24021502 | D8: =CCA!H51 -> 3.043178126 | E8: =CCA!H48 -> 1.059481434 | F8: =CCA!H49 -> 0.8415637571 | G8: =B8*C8 ->  | H8: - | I8: =B8*D8 ->  | J8: =B8*E8 ->  | K8: / | L8: =B8*F8 -> 
A9: =YEAR('P2'!$C$12)+2&"E" -> 2018E | B9: =_xll.BDP('P1'!$B$9&" Equity","BEST SALES MEDIAN","BEST FPERIOD OVERRIDE=2FY") ->  | C9: =CCA!I52 -> 0.2279833549 | D9: =CCA!I51 -> 2.155543375 | E9: =CCA!I48 -> 0.8828251265 | F9: =CCA!I49 -> 0.7947029643 | G9: =B9*C9 ->  | H9: - | I9: =B9*D9 ->  | J9: =B9*E9 ->  | K9: / | L9: =B9*F9 -> 
G11: Implied Range | J11: Implied Enterprise Value
A12: EBITDA | B12: Metric | C12: Multiple Range | E12: Average | F12: Median | G12: Enterprise Value | J12: Average / Median
A13: LTM | B13: ='P1'!G9 -> 718.756 | C13: =CCA!J52 -> 3.121568514 | D13: =CCA!J51 -> 20.53182063 | E13: =CCA!J48 -> 10.06889704 | F13: =CCA!J49 -> 9.399172115 | G13: =B13*C13 -> 2243.646099 | H13: - | I13: =B13*D13 -> 14757.36927 | J13: =B13*E13 -> 7237.08016 | K13: / | L13: =B13*F13 -> 6755.711353
A14: =YEAR('P2'!$C$12)+1&"E" -> 2017E | B14: =_xll.BDP('P1'!$B$9&" Equity","BEST EBITDA MEDIAN","BEST FPERIOD OVERRIDE=1FY") ->  | C14: =CCA!K52 -> 4.117251847 | D14: =CCA!K51 -> 15.81834721 | E14: =CCA!K48 -> 9.501749487 | F14: =CCA!K49 -> 8.933025101 | G14: =B14*C14 ->  | H14: - | I14: =B14*D14 ->  | J14: =B14*E14 ->  | K14: / | L14: =B14*F14 -> 
A15: =YEAR('P2'!$C$12)+2&"E" -> 2018E | B15: =_xll.BDP('P1'!$B$9&" Equity","BEST EBITDA MEDIAN","BEST FPERIOD OVERRIDE=2FY") ->  | C15: =CCA!L52 -> 3.413142111 | D15: =CCA!L51 -> 12.82618321 | E15: =CCA!L48 -> 7.648040458 | F15: =CCA!L49 -> 6.973715039 | H15: - | K15: /
G17: Implied | J17: Implied Enterprise Value
A18: EBIT | B18: Metric | C18: Multiple Range | E18: Average | F18: Median | G18: Enterprise Value | J18: Average / Median
A19: LTM | B19: ='P1'!H9 -> 519.592 | C19: =CCA!M52 -> -22.40473758 | D19: =CCA!M51 -> 197.1397967 | E19: =CCA!M48 -> 30.62044498 | F19: =CCA!M49 -> 19.74487896 | G19: =B19*C19 -> -11641.32241 | H19: - | I19: =B19*D19 -> 102432.2612 | J19: =B19*E19 -> 15910.13825 | K19: / | L19: =B19*F19 -> 10259.28115
A20: =YEAR('P2'!$C$12)+1&"E" -> 2017E | B20: =_xll.BDP('P1'!$B$9&" Equity","BEST EBIT MEDIAN","BEST FPERIOD OVERRIDE=1FY") ->  | C20: =CCA!N52 -> -162.9640315 | D20: =CCA!N51 -> 33.26558824 | E20: =CCA!N48 -> 2.790408813 | F20: =CCA!N49 -> 17.63445995 | G20: =B20*C20 ->  | H20: - | I20: =B20*D20 ->  | J20: =B20*E20 ->  | K20: / | L20: =B20*F20 -> 
A21: =YEAR('P2'!$C$12)+2&"E" -> 2018E | B21: =_xll.BDP('P1'!$B$9&" Equity","BEST EBIT MEDIAN","BEST FPERIOD OVERRIDE=2FY") ->  | C21: =CCA!O52 -> 7.00913112 | D21: =CCA!O51 -> 28.97138338 | E21: =CCA!O48 -> 15.61759992 | F21: =CCA!O49 -> 14.71783204 | G21: =B21*C21 ->  | H21: - | I21: =B21*D21 ->  | J21: =B21*E21 ->  | K21: / | L21: =B21*F21 -> 

Sheet PTA
A1: ='P1'!A1 -> OLD DOMINION FREIGHT LINE
A2: Precedent Transactions Analysis
A3: ($ in millions)
H5: Enterprise Value / | K5: LTM | L5: Equity Value / | M5: Premiums Paid
A6: Date | D6: Deal | E6: Payment | F6: Equity | G6: Enterprise | H6: LTM | I6: LTM | J6: LTM | K6: EBITDA | L6: LTM | M6: Days Prior to Unaffected
A7: Announced | B7: Acquirer | C7: Target | D7: Attributes | E7: Type | F7: Value | G7: Value | H7: Sales | I7: EBITDA | J7: EBIT | K7: Margin | L7: Net Income | M7: 1 | N7: 7 | O7: 30
A8: 2014-07-10 | B8: ZF Friedrichshafen AG | C8: ZF TRW Automotive Holdings Corp | D8: Cross Border, Company Takeover | E8: Cash | F8: ='D#1'!F15 ->  | G8: ='D#1'!F23 ->  | H8: =IFERROR(G8/'D#1'!F26,"") ->  | I8: =IFERROR(G8/'D#1'!F27,"") ->  | J8: =IFERROR(G8/'D#1'!F28,"") ->  | K8: =IFERROR('D#1'!F27/'D#1'!F26,"") ->  | L8: =IFERROR(F8/'D#1'!F29,"") ->  | M8: ='D#1'!G34 ->  | N8: ='D#1'!G35 ->  | O8: ='D#1'!G36 -> 
A9: 2016-11-03 | B9: Metaldyne Performance Group Inc | C9: American Axle & Manufacturing Holdings Inc | D9: Company Takeover | E9: Cash & Stock | F9: ='D#2'!F15 ->  | G9: ='D#2'!F23 ->  | H9: =IFERROR(G9/'D#2'!F26,"") ->  | I9: =IFERROR(G9/'D#2'!F27,"") ->  | J9: =IFERROR(G9/'D#2'!F28,"") ->  | K9: =IFERROR('D#2'!F27/'D#2'!F26,"") ->  | L9: =IFERROR(F9/'D#2'!F29,"") ->  | M9: ='D#2'!G34 ->  | N9: ='D#2'!G35 ->  | O9: ='D#2'!G36 -> 
F10: =[2]!BError('D#3'!F15) ->  | G10: =[2]!BError('D#3'!F23) ->  | H10: =IFERROR(G10/'D#3'!F26,"") ->  | I10: =IFERROR(G10/'D#3'!F27,"") ->  | J10: =IFERROR(G10/'D#3'!F28,"") ->  | K10: =IFERROR('D#3'!F27/'D#3'!F26,"") ->  | L10: =IFERROR(F10/'D#3'!F29,"") ->  | M10: =[2]!BError('D#3'!G34) ->  | N10: =[2]!BError('D#3'!G35) ->  | O10: =[2]!BError('D#3'!G36) -> 
F11: =[2]!BError('D#4'!F15) ->  | G11: =[2]!BError('D#4'!F23) ->  | H11: =IFERROR(G11/'D#4'!F26,"") ->  | I11: =IFERROR(G11/'D#4'!F27,"") ->  | J11: =IFERROR(G11/'D#4'!F28,"") ->  | K11: =IFERROR('D#4'!F27/'D#4'!F26,"") ->  | L11: =IFERROR(F11/'D#4'!F29,"") ->  | M11: =[2]!BError('D#4'!G34) ->  | N11: =[2]!BError('D#4'!G35) ->  | O11: =[2]!BError('D#4'!G36) -> 
F12: =[2]!BError('D#5'!F15) ->  | G12: =[2]!BError('D#5'!F23) ->  | H12: =IFERROR(G12/'D#5'!$F$26,"") ->  | I12: =IFERROR(G12/'D#5'!$F$27,"") ->  | J12: =IFERROR(G12/'D#5'!$F$28,"") ->  | K12: =IFERROR('D#5'!$F$27/'D#5'!$F$26,"") ->  | L12: =IFERROR(F12/'D#5'!$F$29,"") ->  | M12: =[2]!BError('D#5'!$G$34) ->  | N12: =[2]!BError('D#5'!$G$35) ->  | O12: =[2]!BError('D#5'!$G$36) -> 
F13: =[2]!BError('D#6'!$F$15) ->  | G13: =[2]!BError('D#6'!$F$23) ->  | H13: =IFERROR(G13/'D#6'!$F$26,"") ->  | I13: =IFERROR(G13/'D#6'!$F$27,"") ->  | J13: =IFERROR(G13/'D#6'!$F$28,"") ->  | K13: =IFERROR('D#6'!$F$27/'D#6'!$F$26,"") ->  | L13: =IFERROR(F13/'D#6'!$F$29,"") ->  | M13: =[2]!BError('D#6'!$G$34) ->  | N13: =[2]!BError('D#6'!$G$35) ->  | O13: =[2]!BError('D#6'!$G$36) -> 
F14: =[2]!BError('D#7'!$F$15) ->  | G14: =[2]!BError('D#7'!$F$23) ->  | H14: =IFERROR(G14/'D#7'!$F$26,"") ->  | I14: =IFERROR(G14/'D#7'!$F$27,"") ->  | J14: =IFERROR(G14/'D#7'!$F$28,"") ->  | K14: =IFERROR('D#7'!$F$27/'D#7'!$F$26,"") ->  | L14: =IFERROR(F14/'D#7'!$F$29,"") ->  | M14: =[2]!BError('D#7'!$G$34) ->  | N14: =[2]!BError('D#7'!$G$35) ->  | O14: =[2]!BError('D#7'!$G$36) -> 
F15: =[2]!BError('D#8'!$F$15) ->  | G15: =[2]!BError('D#8'!$F$23) ->  | H15: =IFERROR(G15/'D#8'!$F$26,"") ->  | I15: =IFERROR(G15/'D#8'!$F$27,"") ->  | J15: =IFERROR(G15/'D#8'!$F$28,"") ->  | K15: =IFERROR('D#8'!$F$27/'D#8'!$F$26,"") ->  | L15: =IFERROR(F15/'D#8'!$F$29,"") ->  | M15: =[2]!BError('D#8'!$G$34) ->  | N15: =[2]!BError('D#8'!$G$35) ->  | O15: =[2]!BError('D#8'!$G$36) -> 
F16: =[2]!BError('D#9'!$F$15) ->  | G16: =[2]!BError('D#9'!$F$23) ->  | H16: =IFERROR(G16/'D#9'!$F$26,"") ->  | I16: =IFERROR(G16/'D#9'!$F$27,"") ->  | J16: =IFERROR(G16/'D#9'!$F$28,"") ->  | K16: =IFERROR('D#9'!$F$27/'D#9'!$F$26,"") ->  | L16: =IFERROR(F16/'D#9'!$F$29,"") ->  | M16: =[2]!BError('D#9'!$G$34) ->  | N16: =[2]!BError('D#9'!$G$35) ->  | O16: =[2]!BError('D#9'!$G$36) -> 
F17: =[2]!BError('D#10'!$F$15) ->  | G17: =[2]!BError('D#10'!$F$23) ->  | H17: =IFERROR(G17/'D#10'!$F$26,"") ->  | I17: =IFERROR(G17/'D#10'!$F$27,"") ->  | J17: =IFERROR(G17/'D#10'!$F$28,"") ->  | K17: =IFERROR('D#10'!$F$27/'D#10'!$F$26,"") ->  | L17: =IFERROR(F17/'D#10'!$F$29,"") ->  | M17: =[2]!BError('D#10'!$G$34) ->  | N17: =[2]!BError('D#10'!$G$35) ->  | O17: =[2]!BError('D#10'!$G$36) -> 
A19: Mean | G19: =IFERROR(AVERAGE(#REF!,#REF!,G9),"") ->  | H19: =AVERAGE(H8:H17) ->  | I19: =AVERAGE(I8:I17) ->  | M19: =[2]!BError(AVERAGE(M8:M17)) ->  | N19: =[2]!BError(AVERAGE(N8:N17)) ->  | O19: =[2]!BError(AVERAGE(O8:O17)) -> 
A20: Median | G20: =IFERROR(MEDIAN(#REF!,G1,G10),"") ->  | H20: =MEDIAN(H8:H17) ->  | I20: =MEDIAN(I8:I17) ->  | M20: =[2]!BError(MEDIAN(M8:M17)) ->  | N20: =[2]!BError(MEDIAN(N8:N17)) ->  | O20: =[2]!BError(MEDIAN(O8:O17)) -> 
A22: High | G22: =IFERROR(MIN(#REF!,#REF!,G4:G7),"") ->  | H22: =MAX(H8:H17) -> 0 | I22: =MAX(I8:I17) -> 0 | J22: 0 | K22: 0 | L22: 0 | M22: =[2]!BError(MAX(M8:M17)) ->  | N22: =[2]!BError(MAX(N8:N17)) ->  | O22: =[2]!BError(MAX(O8:O17)) -> 
A23: Low | G23: =IFERROR(MAX(#REF!,#REF!,G4:G7),"") ->  | H23: =MIN(H8:H17) -> 0 | I23: =MIN(I8:I17) -> 0 | J23: 0 | K23: 0 | L23: 0 | M23: =[2]!BError(MIN(M8:M17)) ->  | N23: =[2]!BError(MIN(N8:N17)) ->  | O23: =[2]!BError(MIN(O8:O17)) -> 

Sheet V2
A1: ='P1'!A1 -> OLD DOMINION FREIGHT LINE
A2: Implied Valuation Range
A3: =CONCATENATE("($ in millions, LTM ",_xll.BDP("luv equity","fundamental database date"),")") -> 
G5: Implied | J5: Implied Enterprise Value
A6: Sales | B6: Metric | C6: Multiple Range | E6: Average | F6: Median | G6: Enterprise Value Range | J6: Average / Median
A7: LTM | B7: ='P1'!E9 -> 2991.517 | C7: =PTA!H23 -> 0 | D7: =PTA!H22 -> 0 | E7: =PTA!H19 ->  | F7: =PTA!H20 ->  | G7: =B7*C7 -> 0 | H7: - | I7: =B7*D7 -> 0 | J7: =B7*E7 ->  | K7: / | L7: =B7*F7 -> 
H9: Implied | J9: Implied Enterprise Value
A10: EBITDA | B10: Metric | C10: Multiple Range | E10: Average | F10: Median | G10: Enterprise Value | J10: Average / Median
A11: LTM | B11: ='P1'!G9 -> 718.756 | C11: =PTA!I23 -> 0 | D11: =PTA!I22 -> 0 | E11: =PTA!I19 ->  | F11: =PTA!I20 ->  | G11: =B11*C11 -> 0 | H11: - | I11: =B11*D11 -> 0 | J11: =B11*E11 ->  | K11: / | L11: =B11*F11 -> 
H13: Implied | J13: Implied Enterprise Value
A14: EBIT | B14: Metric | C14: Multiple Range | E14: Average | F14: Median | G14: Enterprise Value | J14: Average / Median
A15: LTM | B15: ='P1'!H9 -> 519.592 | C15: =PTA!J23 -> 0 | D15: =PTA!J22 -> 0 | E15: =PTA!J19 ->  | F15: =PTA!J20 ->  | G15: =B15*C15 -> 0 | H15: - | I15: =B15*D15 -> 0 | J15: =B15*E15 ->  | K15: / | L15: =B15*F15 -> 

Sheet D#1
A1: =PTA!D8&" of "&PTA!C8&" by "&PTA!B8 -> Cross Border, Company Takeover of ZF TRW Automotive Holdings Corp by ZF Friedrichshafen AG
A2: Deal Analysis
A3: ($ in millions, except per share data)
A4: Target Company Ticker | D4: TRW | M4: Quarter | N4: Year
A5: Target Company Name | D5: =_xll.BDP(D4&" Equity","Security Name") ->  | L5: Prior Quarter Before Deal Announcement | M5: =IF(MONTH(EOMONTH(E33,-3))<=3,"Q1",IF(MONTH(EOMONTH(E33,-3))<=6,"Q2",IF(MONTH(EOMONTH(E33,-3))<=9,"Q3",IF(MONTH(EOMONTH(E33,-3))<=12,"Q4")))) -> Q2 | N5: =YEAR(EOMONTH(E33,-3)) -> 2014
A7: Offer Price per Share
A8: Cash Offer Price per Share | F8: 105.6
A9: Stock Offer Price per Share | F9: =E10*E11 -> 0
A10: Exchange Ratio | E10: 0
A11: Acquirer Share Price | E11: 0
A12: Offer Price per Share | F12: =SUM(F8:F9) -> 105.6
A14: Fully Diluted Shares Outstanding | F14: =_xll.BDP($D$4&" Equity","IS SH FOR DILUTED EPS","FUND PER="&M5,"EQY FUND YEAR="&N5) -> 
A15: Implied Equity Value | F15: =F12*F14 -> 
A17: Implied Enterprise Value
A18: Plus: Total Debt | F18: =_xll.BDP($D$4&" Equity","SHORT AND LONG TERM DEBT","FUND PER="&M5,"EQY FUND YEAR="&N5) -> 
A19: Plus: Preferred Securities | F19: =IFERROR(_xll.BDP($D$4&" Equity","BS PFD EQY","FUND PER="&M5,"EQY FUND YEAR="&N5),0) -> 0
A20: Plus: Noncontrolling Interest | F20: =IFERROR(_xll.BDP($D$4&" Equity","MINORITY_NONCONTROLLING_INTEREST","FUND PER="&M5,"EQY FUND YEAR="&N5),0) -> 0
A21: Minus: Financial Subsidiary Adjustment | F21: =-IF(_xll.BDP($D$4&" Equity","ENTERPRISE VALUE ADJUSTMENT","FUND PER="&M5,"EQY FUND YEAR="&N5)="#N/A N/A",0,_xll.BDP($D$4&" Equity","ENTERPRISE VALUE ADJUSTMENT","FUND PER="&M5,"EQY FUND YEAR="&N5)) -> 
A22: Minus: Cash and Cash Equivalents | F22: =-_xll.BDP($D$4&" Equity","CASH_AND_MARKETABLE_SECURITIES","FUND PER="&M5,"EQY FUND YEAR="&N5) -> 
A23: Implied Enterprise Value | F23: =F15+SUM(F18:F22) -> 
A25: Income Statement
A26: Sales | F26: =_xll.BDP($D$4&" Equity","TRAIL 12M NET SALES","FUND PER="&$M$5,"EQY FUND YEAR="&$N$5) -> 
A27: EBITDA | F27: =_xll.BDP($D$4&" Equity","TRAIL 12M EBITDA","FUND PER="&$M$5,"EQY FUND YEAR="&$N$5,"FA ADJUSTED=ADJUSTED") -> 
A28: EBIT | F28: =_xll.BDP($D$4&" Equity","TRAIL 12M OPER INC","FUND PER="&$M$5,"EQY FUND YEAR="&$N$5,"FA ADJUSTED=ADJUSTED") -> 
A29: Net Income | F29: =_xll.BDP($D$4&" Equity","TRAIL 12M NET INC","FUND PER="&$M$5,"EQY FUND YEAR="&$N$5,"FA ADJUSTED=ADJUSTED") -> 
A31: Premiums Paid
E32: Date | F32: Stock Price on Day | G32: Premiums Paid
A33: Deal Announcement | E33: =PTA!A8 -> 2014-07-10 | F33: =_xll.BDH($D$4&" Equity","px last",E33,E33,"dts=h") ->  | G33: =$F$12/F33-1 -> 
A34: 1 Day Prior to Announcement | E34: =WORKDAY($E$33,-1) -> 2014-07-09 | F34: =_xll.BDH($D$4&" Equity","px last",E34,E34,"dts=h") ->  | G34: =$F$12/F34-1 -> 
A35: 7 Day Prior to Announcement | E35: =WORKDAY($E$33,-7) -> 2014-07-01 | F35: =_xll.BDH($D$4&" Equity","px last",E35,E35,"dts=h") ->  | G35: =$F$12/F35-1 -> 
A36: 30 Day Prior to Announcement | E36: =WORKDAY($E$33,-30) -> 2014-05-29 | F36: =_xll.BDH($D$4&" Equity","px last",E36,E36,"dts=h") -> 

Sheet D#2
A1: =PTA!D9&" of "&PTA!C9&" by "&PTA!B9 -> Company Takeover of American Axle & Manufacturing Holdings Inc by Metaldyne Performance Group Inc
A2: Deal Analysis
A3: ($ in millions, except per share data)
A4: Target Company Ticker | D4: MPG | M4: Quarter | N4: Year
A5: Target Company Name | D5: =_xll.BDP(D4&" Equity","Security Name") ->  | L5: Prior Quarter Before Deal Announcement | M5: =IF(MONTH(EOMONTH(E33,-3))<=3,"Q1",IF(MONTH(EOMONTH(E33,-3))<=6,"Q2",IF(MONTH(EOMONTH(E33,-3))<=9,"Q3",IF(MONTH(EOMONTH(E33,-3))<=12,"Q4")))) -> Q3 | N5: =YEAR(EOMONTH(E33,-3)) -> 2016
A7: Offer Price per Share
A8: Cash Offer Price per Share | F8: 13.5
A9: Stock Offer Price per Share | F9: =E10*E11 -> 8.5
A10: Exchange Ratio | E10: 0.5
A11: Acquirer Share Price | E11: 17
A12: Offer Price per Share | F12: =SUM(F8:F9) -> 22
A14: Fully Diluted Shares Outstanding | F14: =_xll.BDP($D$4&" Equity","IS SH FOR DILUTED EPS","FUND PER="&M5,"EQY FUND YEAR="&N5) -> 
A15: Implied Equity Value | F15: =F12*F14 -> 
A17: Implied Enterprise Value
A18: Plus: Total Debt | F18: =_xll.BDP($D$4&" Equity","SHORT AND LONG TERM DEBT","FUND PER="&M5,"EQY FUND YEAR="&N5) -> 
A19: Plus: Preferred Securities | F19: =IFERROR(_xll.BDP($D$4&" Equity","BS PFD EQY","FUND PER="&M5,"EQY FUND YEAR="&N5),0) -> 0
A20: Plus: Noncontrolling Interest | F20: =IFERROR(_xll.BDP($D$4&" Equity","MINORITY_NONCONTROLLING_INTEREST","FUND PER="&M5,"EQY FUND YEAR="&N5),0) -> 0
A21: Minus: Financial Subsidiary Adjustment | F21: =-IF(_xll.BDP($D$4&" Equity","ENTERPRISE VALUE ADJUSTMENT","FUND PER="&M5,"EQY FUND YEAR="&N5)="#N/A N/A",0,_xll.BDP($D$4&" Equity","ENTERPRISE VALUE ADJUSTMENT","FUND PER="&M5,"EQY FUND YEAR="&N5)) -> 
A22: Minus: Cash and Cash Equivalents | F22: =-_xll.BDP($D$4&" Equity","CASH_AND_MARKETABLE_SECURITIES","FUND PER="&M5,"EQY FUND YEAR="&N5) -> 
A23: Implied Enterprise Value | F23: =F15+SUM(F18:F22) -> 
A25: Income Statement
A26: Sales | F26: =_xll.BDP($D$4&" Equity","TRAIL 12M NET SALES","FUND PER="&$M$5,"EQY FUND YEAR="&$N$5) -> 
A27: EBITDA | F27: =_xll.BDP($D$4&" Equity","TRAIL 12M EBITDA","FUND PER="&$M$5,"EQY FUND YEAR="&$N$5,"FA ADJUSTED=ADJUSTED") -> 
A28: EBIT | F28: =_xll.BDP($D$4&" Equity","TRAIL 12M OPER INC","FUND PER="&$M$5,"EQY FUND YEAR="&$N$5,"FA ADJUSTED=ADJUSTED") -> 
A29: Net Income | F29: =_xll.BDP($D$4&" Equity","TRAIL 12M NET INC","FUND PER="&$M$5,"EQY FUND YEAR="&$N$5,"FA ADJUSTED=ADJUSTED") -> 
A31: Premiums Paid
E32: Date | F32: Stock Price on Day | G32: Premiums Paid
A33: Deal Announcement | E33: =PTA!A9 -> 2016-11-03 | F33: =_xll.BDH($D$4&" Equity","px last",E33,E33,"dts=h") ->  | G33: =$F$12/F33-1 -> 
A34: 1 Day Prior to Announcement | E34: =WORKDAY($E$33,-1) -> 2016-11-02 | F34: =_xll.BDH($D$4&" Equity","px last",E34,E34,"dts=h") ->  | G34: =$F$12/F34-1 -> 
A35: 7 Day Prior to Announcement | E35: =WORKDAY($E$33,-7) -> 2016-10-25 | F35: =_xll.BDH($D$4&" Equity","px last",E35,E35,"dts=h") ->  | G35: =$F$12/F35-1 -> 
A36: 30 Day Prior to Announcement | E36: =WORKDAY($E$33,-30) -> 2016-09-22 | F36: =_xll.BDH($D$4&" Equity","px last",E36,E36,"dts=h") -> 

Sheet D#3
A1: =PTA!D10&" of "&PTA!C10&" by "&PTA!B10 -> of by
A2: Deal Analysis
A3: ($ in millions, except per share data)
A4: Target Company Ticker | D4: HAYL | M4: Quarter | N4: Year
A5: Target Company Name | D5: =_xll.BDP(D4&" Equity","Security Name") ->  | L5: Prior Quarter Before Deal Announcement | M5: =IF(MONTH(EOMONTH(E33,-3))<=3,"Q1",IF(MONTH(EOMONTH(E33,-3))<=6,"Q2",IF(MONTH(EOMONTH(E33,-3))<=9,"Q3",IF(MONTH(EOMONTH(E33,-3))<=12,"Q4")))) ->  | N5: =YEAR(EOMONTH(E33,-3)) -> 
A7: Offer Price per Share
A8: Cash Offer Price per Share | F8: 15.54
A9: Stock Offer Price per Share | F9: =E10*E11 -> 0
A10: Exchange Ratio | E10: 0
A11: Acquirer Share Price | E11: 0
A12: Offer Price per Share | F12: =SUM(F8:F9) -> 15.54
A14: Fully Diluted Shares Outstanding | F14: =_xll.BDP($D$4&" Equity","IS SH FOR DILUTED EPS","FUND PER="&M5,"EQY FUND YEAR="&N5) -> 
A15: Implied Equity Value | F15: =F12*F14 -> 
A17: Implied Enterprise Value
A18: Plus: Total Debt | F18: =_xll.BDP($D$4&" Equity","SHORT AND LONG TERM DEBT","FUND PER="&M5,"EQY FUND YEAR="&N5) -> 
A19: Plus: Preferred Securities | F19: =IFERROR(_xll.BDP($D$4&" Equity","BS PFD EQY","FUND PER="&M5,"EQY FUND YEAR="&N5),0) -> 0
A20: Plus: Noncontrolling Interest | F20: =IFERROR(_xll.BDP($D$4&" Equity","MINORITY_NONCONTROLLING_INTEREST","FUND PER="&M5,"EQY FUND YEAR="&N5),0) -> 0
A21: Minus: Financial Subsidiary Adjustment | F21: =-IF(_xll.BDP($D$4&" Equity","ENTERPRISE VALUE ADJUSTMENT","FUND PER="&M5,"EQY FUND YEAR="&N5)="#N/A N/A",0,_xll.BDP($D$4&" Equity","ENTERPRISE VALUE ADJUSTMENT","FUND PER="&M5,"EQY FUND YEAR="&N5)) -> 
A22: Minus: Cash and Cash Equivalents | F22: =-_xll.BDP($D$4&" Equity","CASH_AND_MARKETABLE_SECURITIES","FUND PER="&M5,"EQY FUND YEAR="&N5) -> 
A23: Implied Enterprise Value | F23: =F15+SUM(F18:F22) -> 
A25: Income Statement
A26: Sales | F26: =_xll.BDP($D$4&" Equity","TRAIL 12M NET SALES","FUND PER="&$M$5,"EQY FUND YEAR="&$N$5) -> 
A27: EBITDA | F27: =[2]!BError(_xll.BDP($D$4&" Equity","TRAIL 12M EBITDA","FUND PER="&$M$5,"EQY FUND YEAR="&$N$5,"FA ADJUSTED=ADJUSTED")) -> 
A28: EBIT | F28: =_xll.BDP($D$4&" Equity","TRAIL 12M OPER INC","FUND PER="&$M$5,"EQY FUND YEAR="&$N$5,"FA ADJUSTED=ADJUSTED") -> 
A29: Net Income | F29: =_xll.BDP($D$4&" Equity","TRAIL 12M NET INC","FUND PER="&$M$5,"EQY FUND YEAR="&$N$5,"FA ADJUSTED=ADJUSTED") -> 
A31: Premiums Paid
E32: Date | F32: Stock Price on Day | G32: Premiums Paid
A33: Deal Announcement | E33: =PTA!A10 -> 00:00:00 | F33: =_xll.BDH($D$4&" Equity","px last",E33,E33,"dts=h") ->  | G33: =$F$12/F33-1 -> 
A34: 1 Day Prior to Announcement | E34: =WORKDAY($E$33,-1) ->  | F34: =_xll.BDH($D$4&" Equity","px last",E34,E34,"dts=h") ->  | G34: =$F$12/F34-1 -> 
A35: 7 Day Prior to Announcement | E35: =WORKDAY($E$33,-7) ->  | F35: =_xll.BDH($D$4&" Equity","px last",E35,E35,"dts=h") ->  | G35: =$F$12/F35-1 -> 
A36: 30 Day Prior to Announcement | E36: =WORKDAY($E$33,-30) ->  | F36: =_xll.BDH($D$4&" Equity","px last",E36,E36,"dts=h") -> 

Sheet D#4
A1: =PTA!D11&" of "&PTA!C11&" by "&PTA!B11 -> of by
A2: Deal Analysis
A3: ($ in millions, except per share data)
A4: Target Company Ticker | D4: GLBC | M4: Quarter | N4: Year
A5: Target Company Name | D5: =_xll.BDP(D4&" Equity","Security Name") ->  | L5: Prior Quarter Before Deal Announcement | M5: =IF(MONTH(EOMONTH(E33,-3))<=3,"Q1",IF(MONTH(EOMONTH(E33,-3))<=6,"Q2",IF(MONTH(EOMONTH(E33,-3))<=9,"Q3",IF(MONTH(EOMONTH(E33,-3))<=12,"Q4")))) ->  | N5: =YEAR(EOMONTH(E33,-3)) -> 
A7: Offer Price per Share
A8: Cash Offer Price per Share | F8: 0
A9: Stock Offer Price per Share | F9: =E10*E11 -> 20.51078697
A10: Exchange Ratio | E10: 0.8995959197
A11: Acquirer Share Price | E11: 22.8
A12: Offer Price per Share | F12: =SUM(F8:F9) -> 20.51078697
A14: Fully Diluted Shares Outstanding | F14: =_xll.BDP($D$4&" Equity","IS SH FOR DILUTED EPS","FUND PER="&M5,"EQY FUND YEAR="&N5) -> 
A15: Implied Equity Value | F15: =F12*F14 -> 
A17: Implied Enterprise Value
A18: Plus: Total Debt | F18: =_xll.BDP($D$4&" Equity","SHORT AND LONG TERM DEBT","FUND PER="&M5,"EQY FUND YEAR="&N5) -> 
A19: Plus: Preferred Securities | F19: =IFERROR(_xll.BDP($D$4&" Equity","BS PFD EQY","FUND PER="&M5,"EQY FUND YEAR="&N5),0) -> 0
A20: Plus: Noncontrolling Interest | F20: =IFERROR(_xll.BDP($D$4&" Equity","MINORITY_NONCONTROLLING_INTEREST","FUND PER="&M5,"EQY FUND YEAR="&N5),0) -> 0
A21: Minus: Financial Subsidiary Adjustment | F21: =-IF(_xll.BDP($D$4&" Equity","ENTERPRISE VALUE ADJUSTMENT","FUND PER="&M5,"EQY FUND YEAR="&N5)="#N/A N/A",0,_xll.BDP($D$4&" Equity","ENTERPRISE VALUE ADJUSTMENT","FUND PER="&M5,"EQY FUND YEAR="&N5)) -> 
A22: Minus: Cash and Cash Equivalents | F22: =-_xll.BDP($D$4&" Equity","CASH_AND_MARKETABLE_SECURITIES","FUND PER="&M5,"EQY FUND YEAR="&N5) -> 
A23: Implied Enterprise Value | F23: =F15+SUM(F18:F22) -> 
A25: Income Statement
A26: Sales | F26: =_xll.BDP($D$4&" Equity","TRAIL 12M NET SALES","FUND PER="&$M$5,"EQY FUND YEAR="&$N$5) -> 
A27: EBITDA | F27: =_xll.BDP($D$4&" Equity","TRAIL 12M EBITDA","FUND PER="&$M$5,"EQY FUND YEAR="&$N$5,"FA ADJUSTED=ADJUSTED") -> 
A28: EBIT | F28: =_xll.BDP($D$4&" Equity","TRAIL 12M OPER INC","FUND PER="&$M$5,"EQY FUND YEAR="&$N$5,"FA ADJUSTED=ADJUSTED") -> 
A29: Net Income | F29: =_xll.BDP($D$4&" Equity","TRAIL 12M NET INC","FUND PER="&$M$5,"EQY FUND YEAR="&$N$5,"FA ADJUSTED=ADJUSTED") -> 
A31: Premiums Paid
E32: Date | F32: Stock Price on Day | G32: Premiums Paid
A33: Deal Announcement | E33: =PTA!A11 -> 00:00:00 | F33: =_xll.BDH($D$4&" Equity","px last",E33,E33,"dts=h") ->  | G33: =$F$12/F33-1 -> 
A34: 1 Day Prior to Announcement | E34: =WORKDAY($E$33,-1) ->  | F34: =_xll.BDH($D$4&" Equity","px last",E34,E34,"dts=h") ->  | G34: =$F$12/F34-1 -> 
A35: 7 Day Prior to Announcement | E35: =WORKDAY($E$33,-7) ->  | F35: =_xll.BDH($D$4&" Equity","px last",E35,E35,"dts=h") ->  | G35: =$F$12/F35-1 -> 
A36: 30 Day Prior to Announcement | E36: =WORKDAY($E$33,-30) ->  | F36: =_xll.BDH($D$4&" Equity","px last",E36,E36,"dts=h") -> 

Sheet D#5
A1: =PTA!D12&" of "&PTA!C12&" by "&PTA!B12 -> of by
A2: Deal Analysis
A3: ($ in millions, except per share data)
A4: Target Company Ticker | D4: PAET | M4: Quarter | N4: Year
A5: Target Company Name | D5: =_xll.BDP(D4&" Equity","Security Name") ->  | L5: Prior Quarter Before Deal Announcement | M5: =IF(MONTH(EOMONTH(E33,-3))<=3,"Q1",IF(MONTH(EOMONTH(E33,-3))<=6,"Q2",IF(MONTH(EOMONTH(E33,-3))<=9,"Q3",IF(MONTH(EOMONTH(E33,-3))<=12,"Q4")))) ->  | N5: =YEAR(EOMONTH(E33,-3)) -> 
A7: Offer Price per Share
A8: Cash Offer Price per Share | F8: 0
A9: Stock Offer Price per Share | F9: =E10*E11 -> 8.69446
A10: Exchange Ratio | E10: 0.46
A11: Acquirer Share Price | E11: 18.901
A12: Offer Price per Share | F12: =SUM(F8:F9) -> 8.69446
A14: Fully Diluted Shares Outstanding | F14: =_xll.BDP($D$4&" Equity","IS SH FOR DILUTED EPS","FUND PER="&M5,"EQY FUND YEAR="&N5) -> 
A15: Implied Equity Value | F15: =F12*F14 -> 
A17: Implied Enterprise Value
A18: Plus: Total Debt | F18: =_xll.BDP($D$4&" Equity","SHORT AND LONG TERM DEBT","FUND PER="&M5,"EQY FUND YEAR="&N5) -> 
A19: Plus: Preferred Securities | F19: =IFERROR(_xll.BDP($D$4&" Equity","BS PFD EQY","FUND PER="&M5,"EQY FUND YEAR="&N5),0) -> 0
A20: Plus: Noncontrolling Interest | F20: =IFERROR(_xll.BDP($D$4&" Equity","MINORITY_NONCONTROLLING_INTEREST","FUND PER="&M5,"EQY FUND YEAR="&N5),0) -> 0
A21: Minus: Financial Subsidiary Adjustment | F21: =-IF(_xll.BDP($D$4&" Equity","ENTERPRISE VALUE ADJUSTMENT","FUND PER="&M5,"EQY FUND YEAR="&N5)="#N/A N/A",0,_xll.BDP($D$4&" Equity","ENTERPRISE VALUE ADJUSTMENT","FUND PER="&M5,"EQY FUND YEAR="&N5)) -> 
A22: Minus: Cash and Cash Equivalents | F22: =-_xll.BDP($D$4&" Equity","CASH_AND_MARKETABLE_SECURITIES","FUND PER="&M5,"EQY FUND YEAR="&N5) -> 
A23: Implied Enterprise Value | F23: =F15+SUM(F18:F22) -> 
A25: Income Statement
A26: Sales | F26: =_xll.BDP($D$4&" Equity","TRAIL 12M NET SALES","FUND PER="&$M$5,"EQY FUND YEAR="&$N$5) -> 
A27: EBITDA | F27: =_xll.BDP($D$4&" Equity","TRAIL 12M EBITDA","FUND PER="&$M$5,"EQY FUND YEAR="&$N$5,"FA ADJUSTED=ADJUSTED") -> 
A28: EBIT | F28: =_xll.BDP($D$4&" Equity","TRAIL 12M OPER INC","FUND PER="&$M$5,"EQY FUND YEAR="&$N$5,"FA ADJUSTED=ADJUSTED") -> 
A29: Net Income | F29: =_xll.BDP($D$4&" Equity","TRAIL 12M NET INC","FUND PER="&$M$5,"EQY FUND YEAR="&$N$5,"FA ADJUSTED=ADJUSTED") -> 
A31: Premiums Paid
E32: Date | F32: Stock Price on Day | G32: Premiums Paid
A33: Deal Announcement | E33: =PTA!A12 -> 00:00:00 | F33: =_xll.BDH($D$4&" Equity","px last",E33,E33,"dts=h") ->  | G33: =$F$12/F33-1 -> 
A34: 1 Day Prior to Announcement | E34: =WORKDAY($E$33,-1) ->  | F34: =_xll.BDH($D$4&" Equity","px last",E34,E34,"dts=h") ->  | G34: =$F$12/F34-1 -> 
A35: 7 Day Prior to Announcement | E35: =WORKDAY($E$33,-7) ->  | F35: =_xll.BDH($D$4&" Equity","px last",E35,E35,"dts=h") ->  | G35: =$F$12/F35-1 -> 
A36: 30 Day Prior to Announcement | E36: =WORKDAY($E$33,-30) ->  | F36: =_xll.BDH($D$4&" Equity","px last",E36,E36,"dts=h") -> 

Sheet D#6
A1: =PTA!D13&" of "&PTA!C13&" by "&PTA!B13 -> of by
A2: Deal Analysis
A3: ($ in millions, except per share data)
A4: Target Company Ticker | D4: HUGH | M4: Quarter | N4: Year
A5: Target Company Name | D5: =_xll.BDP(D4&" Equity","Security Name") ->  | L5: Prior Quarter Before Deal Announcement | M5: =IF(MONTH(EOMONTH(E33,-3))<=3,"Q1",IF(MONTH(EOMONTH(E33,-3))<=6,"Q2",IF(MONTH(EOMONTH(E33,-3))<=9,"Q3",IF(MONTH(EOMONTH(E33,-3))<=12,"Q4")))) ->  | N5: =YEAR(EOMONTH(E33,-3)) -> 
A7: Offer Price per Share
A8: Cash Offer Price per Share | F8: 60.7
A9: Stock Offer Price per Share | F9: =E10*E11 -> 0
A10: Exchange Ratio | E10: 0
A11: Acquirer Share Price | E11: 0
A12: Offer Price per Share | F12: =SUM(F8:F9) -> 60.7
A14: Fully Diluted Shares Outstanding | F14: =_xll.BDP($D$4&" Equity","IS SH FOR DILUTED EPS","FUND PER="&M5,"EQY FUND YEAR="&N5) -> 
A15: Implied Equity Value | F15: =F12*F14 -> 
A17: Implied Enterprise Value
A18: Plus: Total Debt | F18: =_xll.BDP($D$4&" Equity","SHORT AND LONG TERM DEBT","FUND PER="&M5,"EQY FUND YEAR="&N5) -> 
A19: Plus: Preferred Securities | F19: =IFERROR(_xll.BDP($D$4&" Equity","BS PFD EQY","FUND PER="&M5,"EQY FUND YEAR="&N5),0) -> 0
A20: Plus: Noncontrolling Interest | F20: =IFERROR(_xll.BDP($D$4&" Equity","MINORITY_NONCONTROLLING_INTEREST","FUND PER="&M5,"EQY FUND YEAR="&N5),0) -> 0
A21: Minus: Financial Subsidiary Adjustment | F21: =-IF(_xll.BDP($D$4&" Equity","ENTERPRISE VALUE ADJUSTMENT","FUND PER="&M5,"EQY FUND YEAR="&N5)="#N/A N/A",0,_xll.BDP($D$4&" Equity","ENTERPRISE VALUE ADJUSTMENT","FUND PER="&M5,"EQY FUND YEAR="&N5)) -> 
A22: Minus: Cash and Cash Equivalents | F22: =-_xll.BDP($D$4&" Equity","CASH_AND_MARKETABLE_SECURITIES","FUND PER="&M5,"EQY FUND YEAR="&N5) -> 
A23: Implied Enterprise Value | F23: =F15+SUM(F18:F22) -> 
A25: Income Statement
A26: Sales | F26: =_xll.BDP($D$4&" Equity","TRAIL 12M NET SALES","FUND PER="&$M$5,"EQY FUND YEAR="&$N$5) -> 
A27: EBITDA | F27: =_xll.BDP($D$4&" Equity","TRAIL 12M EBITDA","FUND PER="&$M$5,"EQY FUND YEAR="&$N$5,"FA ADJUSTED=ADJUSTED") -> 
A28: EBIT | F28: =_xll.BDP($D$4&" Equity","TRAIL 12M OPER INC","FUND PER="&$M$5,"EQY FUND YEAR="&$N$5,"FA ADJUSTED=ADJUSTED") -> 
A29: Net Income | F29: =_xll.BDP($D$4&" Equity","TRAIL 12M NET INC","FUND PER="&$M$5,"EQY FUND YEAR="&$N$5,"FA ADJUSTED=ADJUSTED") -> 
A31: Premiums Paid
E32: Date | F32: Stock Price on Day | G32: Premiums Paid
A33: Deal Announcement | E33: =PTA!A13 -> 00:00:00 | F33: =_xll.BDH($D$4&" Equity","px last",E33,E33,"dts=h") ->  | G33: =$F$12/F33-1 -> 
A34: 1 Day Prior to Announcement | E34: =WORKDAY($E$33,-1) ->  | F34: =_xll.BDH($D$4&" Equity","px last",E34,E34,"dts=h") ->  | G34: =$F$12/F34-1 -> 
A35: 7 Day Prior to Announcement | E35: =WORKDAY($E$33,-7) ->  | F35: =_xll.BDH($D$4&" Equity","px last",E35,E35,"dts=h") ->  | G35: =$F$12/F35-1 -> 
A36: 30 Day Prior to Announcement | E36: =WORKDAY($E$33,-30) ->  | F36: =_xll.BDH($D$4&" Equity","px last",E36,E36,"dts=h") -> 

Sheet D#7
A1: =PTA!D14&" of "&PTA!C14&" by "&PTA!B14 -> of by
A2: Deal Analysis
A3: ($ in millions, except per share data)
A4: Target Company Ticker | D4: FRP | M4: Quarter | N4: Year
A5: Target Company Name | D5: =_xll.BDP(D4&" Equity","Security Name") ->  | L5: Prior Quarter Before Deal Announcement | M5: =IF(MONTH(EOMONTH(E33,-3))<=3,"Q1",IF(MONTH(EOMONTH(E33,-3))<=6,"Q2",IF(MONTH(EOMONTH(E33,-3))<=9,"Q3",IF(MONTH(EOMONTH(E33,-3))<=12,"Q4")))) ->  | N5: =YEAR(EOMONTH(E33,-3)) -> 
A7: Offer Price per Share
A8: Cash Offer Price per Share | F8: 0
A9: Stock Offer Price per Share | F9: =E10*E11 -> 16.0892
A10: Exchange Ratio | E10: 0.73
A11: Acquirer Share Price | E11: 22.04
A12: Offer Price per Share | F12: =SUM(F8:F9) -> 16.0892
A14: Fully Diluted Shares Outstanding | F14: =_xll.BDP($D$4&" Equity","IS SH FOR DILUTED EPS","FUND PER="&M5,"EQY FUND YEAR="&N5) -> 
A15: Implied Equity Value | F15: =F12*F14 -> 
A17: Implied Enterprise Value
A18: Plus: Total Debt | F18: =_xll.BDP($D$4&" Equity","SHORT AND LONG TERM DEBT","FUND PER="&M5,"EQY FUND YEAR="&N5) -> 
A19: Plus: Preferred Securities | F19: =IFERROR(_xll.BDP($D$4&" Equity","BS PFD EQY","FUND PER="&M5,"EQY FUND YEAR="&N5),0) -> 0
A20: Plus: Noncontrolling Interest | F20: =IFERROR(_xll.BDP($D$4&" Equity","MINORITY_NONCONTROLLING_INTEREST","FUND PER="&M5,"EQY FUND YEAR="&N5),0) -> 0
A21: Minus: Financial Subsidiary Adjustment | F21: =-IF(_xll.BDP($D$4&" Equity","ENTERPRISE VALUE ADJUSTMENT","FUND PER="&M5,"EQY FUND YEAR="&N5)="#N/A N/A",0,_xll.BDP($D$4&" Equity","ENTERPRISE VALUE ADJUSTMENT","FUND PER="&M5,"EQY FUND YEAR="&N5)) -> 
A22: Minus: Cash and Cash Equivalents | F22: =-_xll.BDP($D$4&" Equity","CASH_AND_MARKETABLE_SECURITIES","FUND PER="&M5,"EQY FUND YEAR="&N5) -> 
A23: Implied Enterprise Value | F23: =F15+SUM(F18:F22) -> 
A25: Income Statement
A26: Sales | F26: =_xll.BDP($D$4&" Equity","TRAIL 12M NET SALES","FUND PER="&$M$5,"EQY FUND YEAR="&$N$5) -> 
A27: EBITDA | F27: =_xll.BDP($D$4&" Equity","TRAIL 12M EBITDA","FUND PER="&$M$5,"EQY FUND YEAR="&$N$5,"FA ADJUSTED=ADJUSTED") -> 
A28: EBIT | F28: =_xll.BDP($D$4&" Equity","TRAIL 12M OPER INC","FUND PER="&$M$5,"EQY FUND YEAR="&$N$5,"FA ADJUSTED=ADJUSTED") -> 
A29: Net Income | F29: =_xll.BDP($D$4&" Equity","TRAIL 12M NET INC","FUND PER="&$M$5,"EQY FUND YEAR="&$N$5,"FA ADJUSTED=ADJUSTED") -> 
A31: Premiums Paid
E32: Date | F32: Stock Price on Day | G32: Premiums Paid
A33: Deal Announcement | E33: =PTA!A14 -> 00:00:00 | F33: =_xll.BDH($D$4&" Equity","px last",E33,E33,"dts=h") ->  | G33: =$F$12/F33-1 -> 
A34: 1 Day Prior to Announcement | E34: =WORKDAY($E$33,-1) ->  | F34: =_xll.BDH($D$4&" Equity","px last",E34,E34,"dts=h") ->  | G34: =$F$12/F34-1 -> 
A35: 7 Day Prior to Announcement | E35: =WORKDAY($E$33,-8) ->  | F35: =_xll.BDH($D$4&" Equity","px last",E35,E35,"dts=h") ->  | G35: =$F$12/F35-1 -> 
A36: 30 Day Prior to Announcement | E36: =WORKDAY($E$33,-30) ->  | F36: =_xll.BDH($D$4&" Equity","px last",E36,E36,"dts=h") -> 

Sheet D#8
A1: =PTA!D15&" of "&PTA!C15&" by "&PTA!B15 -> of by
A2: Deal Analysis
A3: ($ in millions, except per share data)
A4: Target Company Ticker | D4: RCNI | M4: Quarter | N4: Year
A5: Target Company Name | D5: =_xll.BDP(D4&" Equity","Security Name") ->  | L5: Prior Quarter Before Deal Announcement | M5: =IF(MONTH(EOMONTH(E33,-3))<=3,"Q1",IF(MONTH(EOMONTH(E33,-3))<=6,"Q2",IF(MONTH(EOMONTH(E33,-3))<=9,"Q3",IF(MONTH(EOMONTH(E33,-3))<=12,"Q4")))) ->  | N5: =YEAR(EOMONTH(E33,-3)) -> 
A7: Offer Price per Share
A8: Cash Offer Price per Share | F8: 15
A9: Stock Offer Price per Share | F9: =E10*E11 -> 0
A10: Exchange Ratio | E10: 0
A11: Acquirer Share Price | E11: 0
A12: Offer Price per Share | F12: =SUM(F8:F9) -> 15
A14: Fully Diluted Shares Outstanding | F14: =_xll.BDP($D$4&" Equity","IS SH FOR DILUTED EPS","FUND PER="&M5,"EQY FUND YEAR="&N5) -> 
A15: Implied Equity Value | F15: =F12*F14 -> 
A17: Implied Enterprise Value
A18: Plus: Total Debt | F18: =_xll.BDP($D$4&" Equity","SHORT AND LONG TERM DEBT","FUND PER="&M5,"EQY FUND YEAR="&N5) -> 
A19: Plus: Preferred Securities | F19: =IFERROR(_xll.BDP($D$4&" Equity","BS PFD EQY","FUND PER="&M5,"EQY FUND YEAR="&N5),0) -> 0
A20: Plus: Noncontrolling Interest | F20: =IFERROR(_xll.BDP($D$4&" Equity","MINORITY_NONCONTROLLING_INTEREST","FUND PER="&M5,"EQY FUND YEAR="&N5),0) -> 0
A21: Minus: Financial Subsidiary Adjustment | F21: =-IF(_xll.BDP($D$4&" Equity","ENTERPRISE VALUE ADJUSTMENT","FUND PER="&M5,"EQY FUND YEAR="&N5)="#N/A N/A",0,_xll.BDP($D$4&" Equity","ENTERPRISE VALUE ADJUSTMENT","FUND PER="&M5,"EQY FUND YEAR="&N5)) -> 
A22: Minus: Cash and Cash Equivalents | F22: =-_xll.BDP($D$4&" Equity","CASH_AND_MARKETABLE_SECURITIES","FUND PER="&M5,"EQY FUND YEAR="&N5) -> 
A23: Implied Enterprise Value | F23: =F15+SUM(F18:F22) -> 
A25: Income Statement
A26: Sales | F26: =_xll.BDP($D$4&" Equity","TRAIL 12M NET SALES","FUND PER="&$M$5,"EQY FUND YEAR="&$N$5) -> 
A27: EBITDA | F27: =_xll.BDP($D$4&" Equity","TRAIL 12M EBITDA","FUND PER="&$M$5,"EQY FUND YEAR="&$N$5,"FA ADJUSTED=ADJUSTED") -> 
A28: EBIT | F28: =_xll.BDP($D$4&" Equity","TRAIL 12M OPER INC","FUND PER="&$M$5,"EQY FUND YEAR="&$N$5,"FA ADJUSTED=ADJUSTED") -> 
A29: Net Income | F29: =_xll.BDP($D$4&" Equity","TRAIL 12M NET INC","FUND PER="&$M$5,"EQY FUND YEAR="&$N$5,"FA ADJUSTED=ADJUSTED") -> 
A31: Premiums Paid
E32: Date | F32: Stock Price on Day | G32: Premiums Paid
A33: Deal Announcement | E33: =PTA!A15 -> 00:00:00 | F33: =_xll.BDH($D$4&" Equity","px last",E33,E33,"dts=h") ->  | G33: =$F$12/F33-1 -> 
A34: 1 Day Prior to Announcement | E34: =WORKDAY($E$33,-1) ->  | F34: =_xll.BDH($D$4&" Equity","px last",E34,E34,"dts=h") ->  | G34: =$F$12/F34-1 -> 
A35: 7 Day Prior to Announcement | E35: =WORKDAY($E$33,-7) ->  | F35: =_xll.BDH($D$4&" Equity","px last",E35,E35,"dts=h") ->  | G35: =$F$12/F35-1 -> 
A36: 30 Day Prior to Announcement | E36: =WORKDAY($E$33,-30) ->  | F36: =_xll.BDH($D$4&" Equity","px last",E36,E36,"dts=h") -> 

Sheet D#9
A1: =PTA!D16&" of "&PTA!C16&" by "&PTA!B16 -> of by
A2: Deal Analysis
A3: ($ in millions, except per share data)
A4: Target Company Ticker | D4: IWA | M4: Quarter | N4: Year
A5: Target Company Name | D5: =_xll.BDP(D4&" Equity","Security Name") ->  | L5: Prior Quarter Before Deal Announcement | M5: =IF(MONTH(EOMONTH(E33,-3))<=3,"Q1",IF(MONTH(EOMONTH(E33,-3))<=6,"Q2",IF(MONTH(EOMONTH(E33,-3))<=9,"Q3",IF(MONTH(EOMONTH(E33,-3))<=12,"Q4")))) ->  | N5: =YEAR(EOMONTH(E33,-3)) -> 
A7: Offer Price per Share
A8: Cash Offer Price per Share | F8: 7.9
A9: Stock Offer Price per Share | F9: =E10*E11 -> 13.8705276
A10: Exchange Ratio | E10: 0.804
A11: Acquirer Share Price | E11: 17.2519
A12: Offer Price per Share | F12: =SUM(F8:F9) -> 21.7705276
A14: Fully Diluted Shares Outstanding | F14: =_xll.BDP($D$4&" Equity","IS SH FOR DILUTED EPS","FUND PER="&M5,"EQY FUND YEAR="&N5) -> 
A15: Implied Equity Value | F15: =F12*F14 -> 
A17: Implied Enterprise Value
A18: Plus: Total Debt | F18: =_xll.BDP($D$4&" Equity","SHORT AND LONG TERM DEBT","FUND PER="&M5,"EQY FUND YEAR="&N5) -> 
A19: Plus: Preferred Securities | F19: =IFERROR(_xll.BDP($D$4&" Equity","BS PFD EQY","FUND PER="&M5,"EQY FUND YEAR="&N5),0) -> 0
A20: Plus: Noncontrolling Interest | F20: =IFERROR(_xll.BDP($D$4&" Equity","MINORITY_NONCONTROLLING_INTEREST","FUND PER="&M5,"EQY FUND YEAR="&N5),0) -> 0
A21: Minus: Financial Subsidiary Adjustment | F21: =-IF(_xll.BDP($D$4&" Equity","ENTERPRISE VALUE ADJUSTMENT","FUND PER="&M5,"EQY FUND YEAR="&N5)="#N/A N/A",0,_xll.BDP($D$4&" Equity","ENTERPRISE VALUE ADJUSTMENT","FUND PER="&M5,"EQY FUND YEAR="&N5)) -> 
A22: Minus: Cash and Cash Equivalents | F22: =-_xll.BDP($D$4&" Equity","CASH_AND_MARKETABLE_SECURITIES","FUND PER="&M5,"EQY FUND YEAR="&N5) -> 
A23: Implied Enterprise Value | F23: =F15+SUM(F18:F22) -> 
A25: Income Statement
A26: Sales | F26: =_xll.BDP($D$4&" Equity","TRAIL 12M NET SALES","FUND PER="&$M$5,"EQY FUND YEAR="&$N$5) -> 
A27: EBITDA | F27: =_xll.BDP($D$4&" Equity","TRAIL 12M EBITDA","FUND PER="&$M$5,"EQY FUND YEAR="&$N$5,"FA ADJUSTED=ADJUSTED") -> 
A28: EBIT | F28: =_xll.BDP($D$4&" Equity","TRAIL 12M OPER INC","FUND PER="&$M$5,"EQY FUND YEAR="&$N$5,"FA ADJUSTED=ADJUSTED") -> 
A29: Net Income | F29: =_xll.BDP($D$4&" Equity","TRAIL 12M NET INC","FUND PER="&$M$5,"EQY FUND YEAR="&$N$5,"FA ADJUSTED=ADJUSTED") -> 
A31: Premiums Paid
E32: Date | F32: Stock Price on Day | G32: Premiums Paid
A33: Deal Announcement | E33: =PTA!A16 -> 00:00:00 | F33: =_xll.BDH($D$4&" Equity","px last",E33,E33,"dts=h") ->  | G33: =$F$12/F33-1 -> 
A34: 1 Day Prior to Announcement | E34: =WORKDAY($E$33,-1) ->  | F34: =_xll.BDH($D$4&" Equity","px last",E34,E34,"dts=h") ->  | G34: =$F$12/F34-1 -> 
A35: 7 Day Prior to Announcement | E35: =WORKDAY($E$33,-7) ->  | F35: =_xll.BDH($D$4&" Equity","px last",E35,E35,"dts=h") ->  | G35: =$F$12/F35-1 -> 
A36: 30 Day Prior to Announcement | E36: =WORKDAY($E$33,-30) ->  | F36: =_xll.BDH($D$4&" Equity","px last",E36,E36,"dts=h") -> 

Sheet D#10
A1: =PTA!D17&" of "&PTA!C17&" by "&PTA!B17 -> of by
A2: Deal Analysis
A3: ($ in millions, except per share data)
A4: Target Company Ticker | D4: ELNK | M4: Quarter | N4: Year
A5: Target Company Name | D5: =_xll.BDP(D4&" Equity","Security Name") ->  | L5: Prior Quarter Before Deal Announcement | M5: =IF(MONTH(EOMONTH(E33,-3))<=3,"Q1",IF(MONTH(EOMONTH(E33,-3))<=6,"Q2",IF(MONTH(EOMONTH(E33,-3))<=9,"Q3",IF(MONTH(EOMONTH(E33,-3))<=12,"Q4")))) ->  | N5: =YEAR(EOMONTH(E33,-3)) -> 
A7: Offer Price per Share
A8: Cash Offer Price per Share | F8: 0
A9: Stock Offer Price per Share | F9: =E10*E11 -> 6.0507
A10: Exchange Ratio | E10: 0.81
A11: Acquirer Share Price | E11: 7.47
A12: Offer Price per Share | F12: =SUM(F8:F9) -> 6.0507
A14: Fully Diluted Shares Outstanding | F14: =_xll.BDP($D$4&" Equity","IS SH FOR DILUTED EPS","FUND PER="&M5,"EQY FUND YEAR="&N5) -> 
A15: Implied Equity Value | F15: =F12*F14 -> 
A17: Implied Enterprise Value
A18: Plus: Total Debt | F18: =_xll.BDP($D$4&" Equity","SHORT AND LONG TERM DEBT","FUND PER="&M5,"EQY FUND YEAR="&N5) -> 
A19: Plus: Preferred Securities | F19: =IFERROR(_xll.BDP($D$4&" Equity","BS PFD EQY","FUND PER="&M5,"EQY FUND YEAR="&N5),0) -> 0
A20: Plus: Noncontrolling Interest | F20: =IFERROR(_xll.BDP($D$4&" Equity","MINORITY_NONCONTROLLING_INTEREST","FUND PER="&M5,"EQY FUND YEAR="&N5),0) -> 0
A21: Minus: Financial Subsidiary Adjustment | F21: =-IF(_xll.BDP($D$4&" Equity","ENTERPRISE VALUE ADJUSTMENT","FUND PER="&M5,"EQY FUND YEAR="&N5)="#N/A N/A",0,_xll.BDP($D$4&" Equity","ENTERPRISE VALUE ADJUSTMENT","FUND PER="&M5,"EQY FUND YEAR="&N5)) -> 
A22: Minus: Cash and Cash Equivalents | F22: =-_xll.BDP($D$4&" Equity","CASH_AND_MARKETABLE_SECURITIES","FUND PER="&M5,"EQY FUND YEAR="&N5) -> 
A23: Implied Enterprise Value | F23: =F15+SUM(F18:F22) -> 
A25: Income Statement
A26: Sales | F26: =_xll.BDP($D$4&" Equity","TRAIL 12M NET SALES","FUND PER="&$M$5,"EQY FUND YEAR="&$N$5) -> 
A27: EBITDA | F27: =_xll.BDP($D$4&" Equity","TRAIL 12M EBITDA","FUND PER="&$M$5,"EQY FUND YEAR="&$N$5,"FA ADJUSTED=ADJUSTED") -> 
A28: EBIT | F28: =_xll.BDP($D$4&" Equity","TRAIL 12M OPER INC","FUND PER="&$M$5,"EQY FUND YEAR="&$N$5,"FA ADJUSTED=ADJUSTED") -> 
A29: Net Income | F29: =_xll.BDP($D$4&" Equity","TRAIL 12M NET INC","FUND PER="&$M$5,"EQY FUND YEAR="&$N$5,"FA ADJUSTED=ADJUSTED") -> 
A31: Premiums Paid
E32: Date | F32: Stock Price on Day | G32: Premiums Paid
A33: Deal Announcement | E33: =PTA!A17 -> 00:00:00 | F33: =_xll.BDH($D$4&" Equity","px last",E33,E33,"dts=h") ->  | G33: =$F$12/F33-1 -> 
A34: 1 Day Prior to Announcement | E34: =WORKDAY($E$33,-1) ->  | F34: =_xll.BDH($D$4&" Equity","px last",E34,E34,"dts=h") ->  | G34: =$F$12/F34-1 -> 
A35: 7 Day Prior to Announcement | E35: =WORKDAY($E$33,-7) ->  | F35: =_xll.BDH($D$4&" Equity","px last",E35,E35,"dts=h") ->  | G35: =$F$12/F35-1 -> 
A36: 30 Day Prior to Announcement | E36: =WORKDAY($E$33,-30) ->  | F36: =_xll.BDH($D$4&" Equity","px last",E36,E36,"dts=h") -> 

Sheet CAPEX
A1: =TS!A1 -> OLD DOMINION FREIGHT LINE
A2: Capital Expenditures Adjustments
A3: =CONCATENATE("$ in millions, fiscal year ending ",_xll.BDP('P1'!B9&" Equity","CURRENT FULL FISCAL YEAR END")) -> 
E4: LTM | F4: Pro Forma
B5: =IS!B6 ->  | C5: =IS!C6 ->  | D5: =IS!D6 ->  | E5: =IS!E6 ->  | F5: =IS!F6 -> 
A6: Sales | B6: =IS!B7 ->  | C6: =IS!C7 ->  | D6: =IS!D7 ->  | E6: =IS!E7 ->  | F6: =IS!F7 -> 
A7: Capital Expenditures | B7: =_xll.BDP('P1'!$B$9&" Equity","CHG IN FXD & INTANG AST DETAILED","EQY FUND YEAR="&B$5) ->  | C7: =_xll.BDP('P1'!$B$9&" Equity","CHG IN FXD & INTANG AST DETAILED","EQY FUND YEAR="&C$5) ->  | D7: =_xll.BDP('P1'!$B$9&" Equity","CHG IN FXD & INTANG AST DETAILED","EQY FUND YEAR="&D$5) ->  | E7: =_xll.BDP('P1'!$B$9&" Equity","TRAIL 12M CAP EXPEND") ->  | F7: =-F6*F15 -> 
A8: Depreciation & Amortization | B8: =IS!B21 ->  | C8: =IS!C21 ->  | D8: =IS!D21 ->  | E8: =IS!E21 ->  | F8: =IS!F21 -> 
A10: Adjustments to Capital Expenditures
A11: Growth CAPEX Estimate | B11: =-B7-B8 ->  | C11: =-C7-C8 ->  | D11: =-D7-D8 ->  | E11: =-E7-E8 ->  | F11: =-F7-F8 -> 
A12: Adjusted Capital Expenditures | B12: =B7+SUM(B11:B11) ->  | C12: =C7+SUM(C11:C11) ->  | D12: =D7+SUM(D11:D11) ->  | E12: =E7+SUM(E11:E11) ->  | F12: =F7+SUM(F11:F11) -> 
A14: % of sales
A15: =IF(A7="",0,A7) -> Capital Expenditures | B15: =IF(B7="","",-B7/B$6) ->  | C15: =IF(C7="","",-C7/C$6) ->  | D15: =IF(D7="","",-D7/D$6) ->  | E15: =IF(E7="","",-E7/E$6) ->  | F15: =E15 -> 
A16: =IF(A8="",0,A8) -> Depreciation & Amortization | B16: =IF(B8="","",B8/B$6) ->  | C16: =IF(C8="","",C8/C$6) ->  | D16: =IF(D8="","",D8/D$6) ->  | E16: =IF(E8="","",E8/E$6) ->  | F16: =E16 -> 
A17: Adjusted Capital Expenditures | B17: =IF(B11="","",B11/B$6) ->  | C17: =IF(C11="","",C11/C$6) ->  | E17: =IF(E11="","",E11/E$6) -> 

Sheet V
B1: Enterprise Value
A2: Method | B2: Pessimistic Valuation | C2: Base Valuation | D2: Optimistic Valuation | H2: Existing Short-Term Debt | I2: =BS!B23 -> 
A3: Comparable Companies Analysis | B3: =CCA!L11*'P1'!G9 -> 9218.896143 | C3: =CCA!K11*'P1'!G9 -> 10150.09777 | D3: =CCA!J11*'P1'!G9 -> 9936.408894 | H3: Existing Long Term Borrowing | I3: =BS!B33 -> 
A4: Precedent Transactions Analysis | B4: ='V2'!G11 -> 0 | C4: ='V2'!L11 ->  | D4: ='V2'!I11 -> 0 | H4: Noncontrolling Interest | I4: =BS!B37 -> 
A5: Discounted Cash Flow Analysis | B5: 5065 | C5: 5773 | D5: 6538 | H5: Financial Subsidiary Adjustment | I5: =IFERROR(-_xll.BDP('P1'!$B$9&" Equity","ENTERPRISE VALUE ADJUSTMENT","FUND PER=Q"),0) -> 0
A6: Consensus Analyst Target Price | B6: =_xll.BDP('P1'!$B$9&" Equity","BEST TARGET LO")*'A3'!$L$27+SUM(I2:I4)-SUM(I5:I6) ->  | C6: =_xll.BDP('P1'!$B$9&" Equity","BEST TARGET MEDIAN")*'A3'!$L$27+SUM(I2:I4)-SUM(I5:I6) ->  | D6: =_xll.BDP('P1'!$B$9&" Equity","BEST TARGET HI")*'A3'!$L$27+SUM(I2:I4)-SUM(I5:I6) ->  | H6: Cash and Marketable Securities | I6: =BS!B8 -> 
A7: Median Value Estimate | B7: =MEDIAN(B3:B6) ->  | C7: =MEDIAN(C3:C6) -> 
B9: Equity Value
A10: Method | B10: Pessimistic Valuation | C10: Base Valuation | D10: Optimistic Valuation
A11: Comparable Companies Analysis | B11: =B3-SUM(I2:I4)+SUM(I5:I6) ->  | C11: =C3-SUM(I2:I4)+SUM(I5:I6) ->  | D11: =D3-SUM(I2:I4)+SUM(I5:I6) -> 
A12: Precedent Transactions Analysis | B12: =IF(B4-SUM(I2:I4)+SUM(I5:I6)<0,0,B4-SUM(I2:I4)+SUM(I5:I6)) ->  | C12: =C4-SUM(I2:I4)+SUM(I5:I6) ->  | D12: =D4-SUM(I2:I4)+SUM(I5:I6) -> 
A13: Discounted Cash Flow Analysis | B13: 5821 | C13: 6529 | D13: 7294
A14: Consensus Analyst Target Price | B14: =B6-SUM(I2:I4)+SUM(I5:I6) ->  | C14: =C6-SUM(I2:I4)+SUM(I5:I6) ->  | D14: =D6-SUM(I2:I4)+SUM(I5:I6) -> 
A15: Median Value Estimate | B15: =MEDIAN(B11:B14) ->  | C15: =MEDIAN(C11:C14) ->  | D15: =MEDIAN(D11:D14) -> 

Sheet TS
A1: ='P1'!A1 -> OLD DOMINION FREIGHT LINE
A2: Leveraged Buyout Analysis
A3: =CONCATENATE("$ in millions, fiscal year ending ",_xll.BDP('P1'!B9&" Equity","CURRENT FULL FISCAL YEAR END")) -> 
A5: Transaction Summary
A7: Source of Funds | G7: Use of Funds | K7: Purchase Price | N7: Return Analysis
C8: % of Total | D8: Multiple of EBITDA | J8: % of Total | K8: Offer Price per Share | M8: ='A3'!L20 -> 18.72961794 | N8: Exit Year | P8: =RA!K6 -> 
B9: Amount | C9: Sources | D9: =_xll.BDP('P1'!B9&" Equity","CURRENT FULL FISCAL YEAR END") ->  | E9: Cumulative | F9: Pricing | I9: Amount | J9: Uses | K9: Fully Diluted Shares | M9: ='A3'!L27 ->  | N9: Entry Multiple | P9: =M19 -> 0
A10: Revolving Credit Facility | B10: =CHOOSE($P$15,'A3'!B8,'A3'!C8,'A3'!D8,'A3'!E8,'A3'!F8) -> 0 | C10: =B10/$B$20 ->  | D10: =IF(ISERROR(B10/$E$30),0,B10/$E$30) -> 0 | E10: =D10 -> 0 | F10: =IF(DS!F19*10000=0,"NA",DS!F19*10000) -> 250 | G10: ="Purchase "&_xll.BDP('P1'!B9&" Equity","SHORT NAME")&" Equity" ->  | I10: =CHOOSE($P$15,'A3'!B22,'A3'!C22,'A3'!D22,'A3'!E22,'A3'!F22) ->  | J10: =I10/$I$20 ->  | K10: Equity Purchase Price | M10: =I10 ->  | N10: Exit Multiple | P10: =RA!C10 -> 8
A11: Term Loan A | B11: =CHOOSE($P$15,'A3'!B9,'A3'!C9,'A3'!D9,'A3'!E9,'A3'!F9) -> 0 | D11: 0 | E11: =E10+D11 -> 0 | F11: =IF(DS!F33*10000=0,"NA",DS!F33*10000) -> NA | G11: Repay Existing ST Debt | I11: =CHOOSE($P$15,'A3'!B23,'A3'!C23,'A3'!D23,'A3'!E23,'A3'!F23) ->  | J11: =I11/$I$20 ->  | K11: Plus: Existing Net Debt | M11: =IF('A3'!$L$4=1,SUM('A3'!L11:L16),-SUM('A3'!L10:L16)) ->  | N11: IRR | P11: =RA!K43 -> NA
A12: Term Loan B | B12: =CHOOSE($P$15,'A3'!B10,'A3'!C10,'A3'!D10,'A3'!E10,'A3'!F10) -> 3289.047618 | D12: 0 | E12: =E11+D12 -> 0 | F12: =IF(DS!F47*10000=0,"NA",DS!F47*10000) -> 100 | G12: Repay Existing LT Debt | I12: =CHOOSE($P$15,'A3'!B24,'A3'!C24,'A3'!D24,'A3'!E24,'A3'!F24) ->  | J12: =I12/$I$20 ->  | K12: Enterprise Value | M12: =SUM(M10:M11) ->  | N12: Cash Return | P12: =RA!K28 -> 3.920127519
A13: Term Loan C | B13: =CHOOSE($P$15,'A3'!B11,'A3'!C11,'A3'!D11,'A3'!E11,'A3'!F11) -> 0 | D13: 0 | E13: =E12+D13 -> 0 | F13: =IF(DS!F61*10000=0,"NA",DS!F61*10000) -> NA | G13: Preferred Securities | I13: =CHOOSE($P$15,'A3'!B25,'A3'!C25,'A3'!D25,'A3'!E25,'A3'!F25) ->  | J13: =I13/$I$20 -> 
A14: 2nd Lien | B14: =CHOOSE($P$15,'A3'!B12,'A3'!C12,'A3'!D12,'A3'!E12,'A3'!F12) -> 0 | D14: 0 | E14: =E13+D14 -> 0 | F14: =IF(DS!F103*10000=0,"NA",DS!F103*10000) -> NA | G14: Noncontrolling Interest | I14: =CHOOSE($P$15,'A3'!B26,'A3'!C26,'A3'!D26,'A3'!E26,'A3'!F26) ->  | J14: =I14/$I$20 ->  | K14: Transaction Multiples | N14: Options
A15: Senior Notes | B15: =CHOOSE($P$15,'A3'!B13,'A3'!C13,'A3'!D13,'A3'!E13,'A3'!F13) -> 0 | D15: 0 | E15: =E14+D15 -> 0 | F15: =IF(DS!F115=0,"NA",DS!F115) -> NA | G15: Tender / Call Premiums | I15: =CHOOSE($P$15,'A3'!B27,'A3'!C27,'A3'!D27,'A3'!E27,'A3'!F27) -> 0 | J15: =I15/$I$20 ->  | K15: Enterprise Value / Sales | N15: Financing Structure | P15: 1
A16: Senior Subordinated Notes | B16: =CHOOSE($P$15,'A3'!B14,'A3'!C14,'A3'!D14,'A3'!E14,'A3'!F14) -> 0 | D16: 0 | E16: =E15+D16 -> 0 | F16: =IF(DS!F126=0,"NA",DS!F126) -> NA | G16: Financing Fees | I16: =CHOOSE($P$15,'A3'!B28,'A3'!C28,'A3'!D28,'A3'!E28,'A3'!F28) -> 80.05833331 | K16: ="LTM "&E25 ->  | L16: =E26 ->  | M16: =IF(ISERROR(M12/L16),0,M12/L16) -> 0 | N16: Operating Scenario | P16: 1
A17: Equity Contribution | B17: =CHOOSE($P$15,'A3'!B15,'A3'!C15,'A3'!D15,'A3'!E15,'A3'!F15) ->  | D17: 0 | E17: 0 | G17: Other Fees and Expenses | I17: =CHOOSE($P$15,'A3'!B29,'A3'!C29,'A3'!D29,'A3'!E29,'A3'!F29) -> 15 | K17: =F25&"E" ->  | L17: =F26 ->  | M17: =IF(ISERROR(M12/L17),0,M12/L17) -> 0 | N17: Cash Flow Sweep | P17: 1
A18: Rollover Equity | B18: =CHOOSE($P$15,'A3'!B16,'A3'!C16,'A3'!D16,'A3'!E16,'A3'!F16) -> 0 | D18: 0 | E18: 0 | K18: Enterprise Value / EBITDA | N18: Cash Balance | P18: 1
A19: Cash on Hand | B19: =CHOOSE($P$15,'A3'!B17,'A3'!C17,'A3'!D17,'A3'!E17,'A3'!F17) ->  | D19: 0 | E19: 0 | K19: ="LTM "&E25 ->  | L19: =E30 ->  | M19: =IF(ISERROR(M12/L19),0,M12/L19) -> 0 | N19: Average Interest | P19: 1
A20: Total Sources | B20: =SUM(B10:B19) ->  | C20: =SUM(C10:C19) ->  | D20: =SUM(D10:D19) -> 0 | E20: =IF(ISERROR(B20/E30),0,B20/E30) -> 0 | G20: Total Uses | I20: =SUM(I10:I19) ->  | J20: =SUM(J10:J19) ->  | K20: =F25&"E" ->  | L20: =F30 ->  | M20: =IF(ISERROR(M12/L20),0,M12/L20) -> 0 | N20: Financing Fees | P20: 1
A22: Summary Financial Data
B23: Historical Period | G23: Projection Period
E24: LTM | F24: Pro Forma | G24: Year 1 | H24: Year 2 | I24: Year 3 | J24: Year 4 | K24: Year 5 | L24: Year 6 | M24: Year 7 | N24: Year 8 | O24: Year 9 | P24: Year 10
B25: =C25-1 ->  | C25: =D25-1 ->  | D25: =YEAR(E25)-1 ->  | E25: =_xll.BDP('P1'!B9&" Equity","MOST RECENT PERIOD END DT") ->  | F25: =YEAR(E25) ->  | G25: =F25+1 -> 
A26: Sales | B26: =IS!B7 ->  | C26: =IS!C7 ->  | D26: =IS!D7 ->  | E26: =IS!E7 ->  | F26: =IS!F7 ->  | G26: =IS!G7 ->  | H26: =IS!H7 ->  | I26: =IS!I7 ->  | J26: =IS!J7 ->  | K26: =IS!K7 ->  | L26: =IS!L7 ->  | M26: =IS!M7 ->  | N26: =IS!N7 ->  | O26: =IS!O7 ->  | P26: =IS!P7 -> 
A27: % growth | B27: =IS!B8 -> N/A | C27: =IS!C8 ->  | D27: =IS!D8 ->  | E27: =IS!E8 -> N/A | F27: =IS!F8 ->  | G27: =IS!G8 ->  | H27: =IS!H8 ->  | I27: =IS!I8 ->  | J27: =IS!J8 ->  | K27: =IS!K8 ->  | L27: =IS!L8 ->  | M27: =IS!M8 ->  | N27: =IS!N8 ->  | O27: =IS!O8 ->  | P27: =IS!P8 -> 
A28: Gross Profit | B28: =IS!B11 ->  | C28: =IS!C11 ->  | D28: =IS!D11 ->  | E28: =IS!E11 ->  | F28: =IS!F11 ->  | G28: =IS!G11 ->  | H28: =IS!H11 ->  | I28: =IS!I11 ->  | J28: =IS!J11 ->  | K28: =IS!K11 ->  | L28: =IS!L11 ->  | M28: =IS!M11 ->  | N28: =IS!N11 ->  | O28: =IS!O11 ->  | P28: =IS!P11 -> 
A29: % margin | B29: =IS!B12 ->  | C29: =IS!C12 ->  | D29: =IS!D12 ->  | E29: =IS!E12 ->  | F29: =IS!F12 ->  | G29: =IS!G12 ->  | H29: =IS!H12 ->  | I29: =IS!I12 ->  | J29: =IS!J12 ->  | K29: =IS!K12 ->  | L29: =IS!L12 ->  | M29: =IS!M12 ->  | N29: =IS!N12 ->  | O29: =IS!O12 ->  | P29: =IS!P12 -> 
A30: EBITDA | B30: =IS!B18 ->  | C30: =IS!C18 ->  | D30: =IS!D18 ->  | E30: =IS!E18 ->  | F30: =IS!F18 ->  | G30: =IS!G18 ->  | H30: =IS!H18 ->  | I30: =IS!I18 ->  | J30: =IS!J18 ->  | K30: =IS!K18 ->  | L30: =IS!L18 ->  | M30: =IS!M18 ->  | N30: =IS!N18 ->  | O30: =IS!O18 ->  | P30: =IS!P18 -> 
A31: % margin | B31: =IS!B19 ->  | C31: =IS!C19 ->  | D31: =IS!D19 ->  | E31: =IS!E19 ->  | F31: =IS!F19 ->  | G31: =IS!G19 ->  | H31: =IS!H19 ->  | I31: =IS!I19 ->  | J31: =IS!J19 ->  | K31: =IS!K19 ->  | L31: =IS!L19 ->  | M31: =IS!M19 ->  | N31: =IS!N19 ->  | O31: =IS!O19 ->  | P31: =IS!P19 -> 
A32: Capital Expenditures | B32: =-CAPEX!B12 ->  | C32: =-CAPEX!C12 ->  | D32: =-CAPEX!D12 ->  | E32: =-CAPEX!E12 ->  | F32: =-CAPEX!F12 ->  | G32: =-CF!G25 ->  | H32: =-CF!H25 ->  | I32: =-CF!I25 ->  | J32: =-CF!J25 ->  | K32: =-CF!K25 ->  | L32: =-CF!L25 ->  | M32: =-CF!M25 ->  | N32: =-CF!N25 ->  | O32: =-CF!O25 ->  | P32: =-CF!P25 -> 
A33: % sales | B33: =IF(ISERROR(B32/B26),0,B32/B26) -> 0 | C33: 0 | D33: 0 | E33: 0 | F33: 0 | G33: 0 | H33: 0 | I33: 0 | J33: 0 | K33: 0 | L33: 0 | M33: 0 | N33: 0 | O33: 0 | P33: 0
A34: Cash Interest Expense | F34: =IS!F37 ->  | G34: =IS!G37 -> 81.92485173 | H34: =IS!H37 -> 77.49120162 | I34: =IS!I37 -> 70.87011337 | J34: =IS!J37 -> 62.40238593 | K34: =IS!K37 -> 52.39717497 | L34: =IS!L37 -> 40.76123944 | M34: =IS!M37 -> 27.93165774 | N34: =IS!N37 -> 13.40785637 | O34: =IS!O37 -> 5.420220563 | P34: =IS!P37 -> 5.15
A35: Total Interest Expense | F35: =IS!F39 ->  | G35: =IS!G39 -> 91.73688876 | H35: =IS!H39 -> 87.30323865 | I35: =IS!I39 -> 80.6821504 | J35: =IS!J39 -> 72.21442296 | K35: =IS!K39 -> 62.209212 | L35: =IS!L39 -> 50.57327647 | M35: =IS!M39 -> 34.82702811 | N35: =IS!N39 -> 20.30322674 | O35: =IS!O39 -> 12.31559093 | P35: =IS!P39 -> 5.65
A37: Free Cash Flow
A38: EBITDA | G38: =IS!G18 ->  | H38: =IS!H18 ->  | I38: =IS!I18 ->  | J38: =IS!J18 ->  | K38: =IS!K18 ->  | L38: =IS!L18 ->  | M38: =IS!M18 ->  | N38: =IS!N18 ->  | O38: =IS!O18 ->  | P38: =IS!P18 -> 
A39: Less: Cash Interest Expense | G39: =-IS!G37 -> -81.92485173 | H39: =-IS!H37 -> -77.49120162 | I39: =-IS!I37 -> -70.87011337 | J39: =-IS!J37 -> -62.40238593 | K39: =-IS!K37 -> -52.39717497 | L39: =-IS!L37 -> -40.76123944 | M39: =-IS!M37 -> -27.93165774 | N39: =-IS!N37 -> -13.40785637 | O39: =-IS!O37 -> -5.420220563 | P39: =-IS!P37 -> -5.15
A40: Plus: Interest Income | G40: =-IS!G40 ->  | H40: =-IS!H40 -> 0 | I40: =-IS!I40 -> 0 | J40: =-IS!J40 -> 0 | K40: =-IS!K40 -> 0 | L40: =-IS!L40 -> 0 | M40: =-IS!M40 -> 0 | N40: =-IS!N40 -> 0 | O40: =-IS!O40 -> 3.346486391 | P40: =-IS!P40 -> 10.30627324
A41: Less: Income Taxes | G41: =-IS!G44 -> -156.9385683 | H41: =-IS!H44 -> -174.1619614 | I41: =-IS!I44 -> -191.9408048 | J41: =-IS!J44 -> -209.9223611 | K41: =-IS!K44 -> -227.7436279 | L41: =-IS!L44 -> -241.7968795 | M41: =-IS!M44 -> -257.6879674 | N41: =-IS!N44 -> -273.566395 | O41: =-IS!O44 -> -288.7602388 | P41: =-IS!P44 -> -305.205098
A42: Less: Capital Expenditures | G42: =CF!G25 ->  | H42: =CF!H25 ->  | I42: =CF!I25 ->  | J42: =CF!J25 ->  | K42: =CF!K25 ->  | L42: =CF!L25 ->  | M42: =CF!M25 ->  | N42: =CF!N25 ->  | O42: =CF!O25 ->  | P42: =CF!P25 -> 
A43: Less: Increase in Net Working Capital | G43: =BS!F45 ->  | H43: =BS!G45 ->  | I43: =BS!H45 ->  | J43: =BS!I45 ->  | K43: =BS!J45 ->  | L43: =BS!K45 ->  | M43: =BS!L45 ->  | N43: =BS!M45 ->  | O43: =BS!N45 ->  | P43: =BS!O45 -> 
A44: Free Cash Flow | G44: =G38+SUM(G39:G43) -> 323.1171732 | H44: 348.9010881 | I44: 373.2833446 | J44: 396.5748441 | K44: 418.1686518 | L44: 443.683714 | M44: 469.671881 | N44: 498.528915 | O44: 526.0893201 | P44: 549.5514
A45: Cumulative Free Cash Flow | G45: =G44 -> 323.1171732 | H45: =H44+G45 -> 672.0182613 | I45: 1045.301606 | J45: 1441.87645 | K45: 1860.045102 | L45: 2303.728816 | M45: 2773.400697 | N45: 3271.929612 | O45: 3798.018932 | P45: 4347.570332
A47: Capitalization
A48: Cash | F48: =BS!E8 ->  | G48: =BS!F8 -> 0 | H48: =BS!G8 -> 0 | I48: =BS!H8 -> 0 | J48: =BS!I8 -> 0 | K48: =BS!J8 -> 0 | L48: =BS!K8 -> 0 | M48: =BS!L8 -> 0 | N48: =BS!M8 -> 0 | O48: =BS!N8 -> 508.9713142 | P48: =BS!O8 -> 1058.522714
A49: Revolving Credit Facility | F49: =BS!E26 -> 0 | G49: =BS!F26 -> 0 | H49: =BS!G26 -> 0 | I49: =BS!H26 -> 0 | J49: =BS!I26 -> 0 | K49: =BS!J26 -> 0 | L49: =BS!K26 -> 0 | M49: =BS!L26 -> 0 | N49: =BS!M26 -> 0 | O49: =BS!N26 -> 0 | P49: =BS!O26 -> 0
A50: Term Loan A | F50: =BS!E27 -> 0 | G50: =BS!F27 -> 0 | H50: =BS!G27 -> 0 | I50: =BS!H27 -> 0 | J50: =BS!I27 -> 0 | K50: =BS!J27 -> 0 | L50: =BS!K27 -> 0 | M50: =BS!L27 -> 0 | N50: =BS!M27 -> 0 | O50: =BS!N27 -> 0 | P50: =BS!O27 -> 0
A51: Term Loan B | F51: =BS!E28 -> 3289.047618 | G51: =BS!F28 -> 2965.930444 | H51: =BS!G28 -> 2617.029356 | I51: =BS!H28 -> 2243.746012 | J51: =BS!I28 -> 1847.171168 | K51: =BS!J28 -> 1429.002516 | L51: =BS!K28 -> 985.318802 | M51: =BS!L28 -> 515.646921 | N51: =BS!M28 -> 17.11800599 | O51: =BS!N28 -> 0 | P51: =BS!O28 -> 0
A52: Term Loan C | F52: =BS!E29 -> 0 | G52: =BS!F29 -> 0 | H52: =BS!G29 -> 0 | I52: =BS!H29 -> 0 | J52: =BS!I29 -> 0 | K52: =BS!J29 -> 0 | L52: =BS!K29 -> 0 | M52: =BS!L29 -> 0 | N52: =BS!M29 -> 0 | O52: =BS!N29 -> 0 | P52: =BS!O29 -> 0
A53: 2nd Lien | F53: =BS!E30 -> 0 | G53: =BS!F30 -> 0 | H53: =BS!G30 -> 0 | I53: =BS!H30 -> 0 | J53: =BS!I30 -> 0 | K53: =BS!J30 -> 0 | L53: =BS!K30 -> 0 | M53: =BS!L30 -> 0 | N53: =BS!M30 -> 0 | O53: =BS!N30 -> 0 | P53: =BS!O30 -> 0
A54: Existing Short & Long-Term Debt | F54: =BS!E33 ->  | G54: =BS!F33 ->  | H54: =BS!G33 ->  | I54: =BS!H33 ->  | J54: =BS!I33 ->  | K54: =BS!J33 ->  | L54: =BS!K33 ->  | M54: =BS!L33 ->  | N54: =BS!M33 ->  | O54: =BS!N33 ->  | P54: =BS!O33 -> 
A55: Other Long-Term Liabilities | F55: =BS!E34 ->  | G55: =BS!F34 ->  | H55: =BS!G34 ->  | I55: =BS!H34 ->  | J55: =BS!I34 ->  | K55: =BS!J34 ->  | L55: =BS!K34 ->  | M55: =BS!L34 ->  | N55: =BS!M34 ->  | O55: =BS!N34 ->  | P55: =BS!O34 -> 
A56: Total Senior Secured Debt | F56: =SUM(F49:F55) ->  | G56: 3037.143064 | H56: 2688.241976 | I56: 2314.958632 | J56: 1918.383788 | K56: 1500.215136 | L56: 1056.531422 | M56: 586.859541 | N56: 88.33062599 | O56: 71.21262 | P56: 71.21262
A57: Senior Notes | F57: =BS!E31 -> 0 | G57: =BS!F31 -> 0 | H57: =BS!G31 -> 0 | I57: =BS!H31 -> 0 | J57: =BS!I31 -> 0 | K57: =BS!J31 -> 0 | L57: =BS!K31 -> 0 | M57: =BS!L31 -> 0 | N57: =BS!M31 -> 0 | O57: =BS!N31 -> 0 | P57: =BS!O31 -> 0
A58: Total Senior Debt | F58: =F56+F57 ->  | G58: 3037.143064 | H58: 2688.241976 | I58: 2314.958632 | J58: 1918.383788 | K58: 1500.215136 | L58: 1056.531422 | M58: 586.859541 | N58: 88.33062599 | O58: 71.21262 | P58: 71.21262
A59: Senior Subordinated Notes | F59: =BS!E32 -> 0 | G59: =BS!F32 -> 0 | H59: =BS!G32 -> 0 | I59: =BS!H32 -> 0 | J59: =BS!I32 -> 0 | K59: =BS!J32 -> 0 | L59: =BS!K32 -> 0 | M59: =BS!L32 -> 0 | N59: =BS!M32 -> 0 | O59: =BS!N32 -> 0 | P59: =BS!O32 -> 0
A60: Total Debt | F60: =SUM(F58:F59) ->  | G60: 3037.143064 | H60: 2688.241976 | I60: 2314.958632 | J60: 1918.383788 | K60: 1500.215136 | L60: 1056.531422 | M60: 586.859541 | N60: 88.33062599 | O60: 71.21262 | P60: 71.21262
A61: Shareholders' Equity | F61: =BS!E38 ->  | G61: =BS!F38 -> 2039.538859 | H61: =BS!G38 -> 2398.148806 | I61: =BS!H38 -> 2779.853095 | J61: =BS!I38 -> 3183.202169 | K61: =BS!J38 -> 3606.15462 | L61: =BS!K38 -> 4055.205968 | M61: =BS!L38 -> 4533.769336 | N61: =BS!M38 -> 5041.821213 | O61: =BS!N38 -> 5578.090227 | P61: =BS!O38 -> 6144.899695
A62: Total Capitalization | F62: =SUM(F60:F61) ->  | G62: 5076.681924 | H62: 5086.390782 | I62: 5094.811727 | J62: 5101.585956 | K62: 5106.369756 | L62: 5111.73739 | M62: 5120.628877 | N62: 5130.151839 | O62: 5649.302847 | P62: 6216.112315
A63: % of Bank Debt Repaid | F63: =IF(ISERROR(1-(SUM(F49:F52,F54)/(SUM($F$49:$F$52,$F$54)))),0,1-(SUM(F49:F52,F54)/(SUM($F$49:$F$52,$F$54)))) -> 0 | G63: 0.09824034516 | H63: 0.2043200158 | I63: 0.3178128527 | J63: 0.4383872226 | K63: 0.5655269604 | L63: 0.7004242819 | M63: 0.8432230296 | N63: 0.9947954521 | O63: 1 | P63: 1
A65: Credit Statistics
A66: % Debt / Total Capitalization | F66: =IF(ISERROR(F60/F62),0,F60/F62) -> 0 | G66: 0.598253566 | H66: 0.5285166027 | I66: 0.4543756975 | J66: 0.376036747 | K66: 0.2937928915 | L66: 0.2066873435 | M66: 0.1146069272 | N66: 0.01721793599 | O66: 0.01260555894 | P66: 0.0114561347
A67: EBITDA / Cash Interest Expense | F67: =IF(ISERROR(F30/F34),0,F30/F34) -> 0 | G67: 8.378252251 | H67: 9.414384248 | I67: 10.86255196 | J67: 12.92401028 | K67: 16.00751645 | L67: 21.40019779 | M67: 32.47893619 | N67: 70.36756098 | O67: 181.0290311 | P67: 198.1487316
A68: (EBITDA - Capex) / Cash Interest Expense | F68: =IF(ISERROR((F30-F32)/F34),0,(F30-F32)/F34) -> 0 | G68: 7.12120423 | H68: 8.001878068 | I68: 9.232767006 | J68: 10.98493026 | K68: 13.60579635 | L68: 18.18937583 | M68: 27.60589331 | N68: 59.80982165 | O68: 153.8679743 | P68: 168.4190859
A69: EBITDA / Total Interest Expense | F69: =IF(ISERROR(F30/F35),0,F30/F35) -> 0 | G69: 7.48212723 | H69: 8.356298794 | I69: 9.541519219 | J69: 11.16797787 | K69: 13.482708 | L69: 17.24821184 | M69: 26.04846232 | N69: 46.46936976 | O69: 79.67277268 | P69: 180.6134456
A70: (EBITDA - Capex) / Total Interest Expense | F70: =IF(ISERROR((F30-F32)/F35),0,(F30-F32)/F35) -> 0 | G70: 6.359531139 | H70: 7.102544605 | I70: 8.109938086 | J70: 9.492367721 | K70: 11.45980264 | L70: 14.66034149 | M70: 22.14022859 | N70: 39.49724389 | O70: 67.7189071 | P70: 153.514742
A71: Senior Secured Debt / EBITDA | F71: =IF(ISERROR(F56/F30),0,F56/F30) -> 0 | G71: 4.424825557 | H71: 3.684885883 | I71: 3.00710256 | J71: 2.378685393 | K71: 1.788634954 | L71: 1.211203869 | M71: 0.6468977816 | N71: 0.09362233342 | O71: 0.072575791 | P71: 0.06978441443
A72: Senior Debt / EBITDA | F72: =IF(ISERROR(F58/F30),0,F58/F30) -> 0 | G72: 4.424825557 | H72: 3.684885883 | I72: 3.00710256 | J72: 2.378685393 | K72: 1.788634954 | L72: 1.211203869 | M72: 0.6468977816 | N72: 0.09362233342 | O72: 0.072575791 | P72: 0.06978441443
A73: Total Debt / EBITDA | F73: =IF(ISERROR(F60/F30),0,F60/F30) -> 0 | G73: 4.424825557 | H73: 3.684885883 | I73: 3.00710256 | J73: 2.378685393 | K73: 1.788634954 | L73: 1.211203869 | M73: 0.6468977816 | N73: 0.09362233342 | O73: 0.072575791 | P73: 0.06978441443
A74: Net Debt / EBITDA | F74: =IF(F60=0,"NM",(F60-F48)/F30) ->  | G74: 4.424825557 | H74: 3.684885883 | I74: 3.00710256 | J74: 2.378685393 | K74: 1.788634954 | L74: 1.211203869 | M74: 0.6468977816 | N74: 0.09362233342 | O74: -0.4461383881 | P74: -0.9675090845

Sheet IS
A1: ='P1'!A1 -> OLD DOMINION FREIGHT LINE
A2: Income Statement
A3: =CONCATENATE("$ in millions, fiscal year ending ",_xll.BDP('P1'!B9&" Equity","CURRENT FULL FISCAL YEAR END")) -> 
B4: Historical Period | G4: Projection Period
E5: LTM | F5: Pro Forma | G5: Year 1 | H5: Year 2 | I5: Year 3 | J5: Year 4 | K5: Year 5 | L5: Year 6 | M5: Year 7 | N5: Year 8 | O5: Year 9 | P5: Year 10
B6: =TS!B25 ->  | C6: =TS!C25 ->  | D6: =TS!D25 ->  | E6: =TS!E25 ->  | F6: =YEAR(E6) ->  | G6: =F6+1 -> 
A7: Sales | B7: =IFERROR(IF(_xll.BDP('P1'!$B$9&" Equity","IS ADJ SALES REVENUE TURNOVER","EQY FUND YEAR="&B$6)="#N/A N/A",_xll.BDP('P1'!$B$9&" Equity","IS ADJUSTED NET REVENUE","EQY FUND YEAR="&B$6),_xll.BDP('P1'!$B$9&" Equity","IS ADJ SALES REVENUE TURNOVER","EQY FUND YEAR="&B$6))*100/100,_xll.BDP('P1'!$B$9&" Equity","SALES REV TURN","EQY FUND YEAR="&B$6)) ->  | C7: =IFERROR(IF(_xll.BDP('P1'!$B$9&" Equity","IS ADJ SALES REVENUE TURNOVER","EQY FUND YEAR="&C$6)="#N/A N/A",_xll.BDP('P1'!$B$9&" Equity","IS ADJUSTED NET REVENUE","EQY FUND YEAR="&C$6),_xll.BDP('P1'!$B$9&" Equity","IS ADJ SALES REVENUE TURNOVER","EQY FUND YEAR="&C$6))*100/100,_xll.BDP('P1'!$B$9&" Equity","SALES REV TURN","EQY FUND YEAR="&C$6)) ->  | D7: =IFERROR(IF(_xll.BDP('P1'!$B$9&" Equity","IS ADJ SALES REVENUE TURNOVER","EQY FUND YEAR="&D$6)="#N/A N/A",_xll.BDP('P1'!$B$9&" Equity","IS ADJUSTED NET REVENUE","EQY FUND YEAR="&D$6),_xll.BDP('P1'!$B$9&" Equity","IS ADJ SALES REVENUE TURNOVER","EQY FUND YEAR="&D$6))*100/100,_xll.BDP('P1'!$B$9&" Equity","SALES REV TURN","EQY FUND YEAR="&D$6)) ->  | E7: =_xll.BDP('P1'!$B$9&" Equity","TRAIL 12M NET SALES") ->  | F7: =_xll.BDP('P1'!$B$9&" Equity","BEST SALES MEDIAN","BEST FPERIOD OVERRIDE=1FY") ->  | G7: =F7*(1+G49) -> 
A8: % growth | B8: N/A | C8: =C7/B7-1 ->  | D8: =D7/C7-1 ->  | E8: N/A | F8: =F7/D7-1 ->  | G8: =G7/F7-1 -> 
A10: Cost of Goods Sold | B10: =[2]!BError(IF('A3'!$L$5=1,_xll.BDP('P1'!$B$9&" Equity","IS COGS TO FE AND PP AND G","EQY FUND YEAR="&B$6),0)) ->  | C10: =[2]!BError(IF('A3'!$L$5=1,_xll.BDP('P1'!$B$9&" Equity","IS COGS TO FE AND PP AND G","EQY FUND YEAR="&C$6),0)) ->  | D10: =[2]!BError(IF('A3'!$L$5=1,_xll.BDP('P1'!$B$9&" Equity","IS COGS TO FE AND PP AND G","EQY FUND YEAR="&D$6),0)) ->  | E10: =[2]!BError(IF('A3'!$L$5=1,_xll.BDP('P1'!$B$9&" Equity","TRAIL 12M COGS"),0)) ->  | F10: =[2]!BError(IF('A3'!$L$5=1,F7*F50,0)) ->  | G10: =[2]!BError(IF('A3'!$L$5=1,G7*G50,0)) ->  | H10: =[2]!BError(IF('A3'!$L$5=1,H7*H50,0)) ->  | I10: =[2]!BError(IF('A3'!$L$5=1,I7*I50,0)) ->  | J10: =[2]!BError(IF('A3'!$L$5=1,J7*J50,0)) ->  | K10: =[2]!BError(IF('A3'!$L$5=1,K7*K50,0)) ->  | L10: =[2]!BError(IF('A3'!$L$5=1,L7*L50,0)) ->  | M10: =[2]!BError(IF('A3'!$L$5=1,M7*M50,0)) ->  | N10: =[2]!BError(IF('A3'!$L$5=1,N7*N50,0)) ->  | O10: =[2]!BError(IF('A3'!$L$5=1,O7*O50,0)) ->  | P10: =[2]!BError(IF('A3'!$L$5=1,P7*P50,0)) -> 
A11: Gross Profit | B11: =[2]!BError(B7-B10) ->  | C11: =[2]!BError(C7-C10) ->  | D11: =[2]!BError(D7-D10) ->  | E11: =[2]!BError(E7-E10) ->  | F11: =[2]!BError(F7-F10) ->  | G11: =G7-G10 -> 
A12: % margin | B12: =[2]!BError(B11/B7) ->  | C12: =[2]!BError(C11/C7) ->  | D12: =[2]!BError(D11/D7) ->  | E12: =[2]!BError(E11/E7) ->  | F12: =[2]!BError(F11/F7) ->  | G12: =G11/G7 -> 
A14: Selling, General & Administrative | B14: =[2]!BError(IF('A3'!$L$5=1,_xll.BDP('P1'!$B$9&" Equity","IS SG&A EXPENSE","EQY FUND YEAR="&B$6),0)) ->  | C14: =[2]!BError(IF('A3'!$L$5=1,_xll.BDP('P1'!$B$9&" Equity","IS SG&A EXPENSE","EQY FUND YEAR="&C$6),0)) ->  | D14: =[2]!BError(IF('A3'!$L$5=1,_xll.BDP('P1'!$B$9&" Equity","IS SG&A EXPENSE","EQY FUND YEAR="&D$6),0)) ->  | E14: =[2]!BError(IF('A3'!$L$5=1,_xll.BDP('P1'!$B$9&" Equity","TRAILING 12 MONTH SG&A EXPENSE"),0)) ->  | F14: =[2]!BError(IF('A3'!$L$5=1,F7*F51,0)) ->  | G14: =[2]!BError(IF('A3'!$L$5=1,G7*G51,0)) ->  | H14: =[2]!BError(IF('A3'!$L$5=1,H7*H51,0)) ->  | I14: =[2]!BError(IF('A3'!$L$5=1,I7*I51,0)) ->  | J14: =[2]!BError(IF('A3'!$L$5=1,J7*J51,0)) ->  | K14: =[2]!BError(IF('A3'!$L$5=1,K7*K51,0)) ->  | L14: =[2]!BError(IF('A3'!$L$5=1,L7*L51,0)) ->  | M14: =[2]!BError(IF('A3'!$L$5=1,M7*M51,0)) ->  | N14: =[2]!BError(IF('A3'!$L$5=1,N7*N51,0)) ->  | O14: =[2]!BError(IF('A3'!$L$5=1,O7*O51,0)) ->  | P14: =[2]!BError(IF('A3'!$L$5=1,P7*P51,0)) -> 
A15: % sales | B15: =[2]!BError(B14/B7) ->  | C15: =[2]!BError(C14/C7) ->  | D15: =[2]!BError(D14/D7) ->  | E15: =[2]!BError(E14/E7) ->  | F15: =[2]!BError(F14/F7) ->  | G15: =G14/G7 -> 
A17: Other Expense / (Income) | B17: =_xll.BDP('P1'!$B$9&" Equity","IS OTHER OPERATING EXPENSES","EQY FUND YEAR="&B$6,"FA ADJUSTED=YES")-_xll.BDP('P1'!$B$9&" Equity","IS OTHER OPER INC","EQY FUND YEAR="&B$6,"FA ADJUSTED=YES") ->  | C17: =_xll.BDP('P1'!$B$9&" Equity","IS OTHER OPERATING EXPENSES","EQY FUND YEAR="&C$6,"FA ADJUSTED=YES")-_xll.BDP('P1'!$B$9&" Equity","IS OTHER OPER INC","EQY FUND YEAR="&C$6,"FA ADJUSTED=YES") ->  | D17: =_xll.BDP('P1'!$B$9&" Equity","IS OTHER OPERATING EXPENSES","EQY FUND YEAR="&D$6,"FA ADJUSTED=YES")-_xll.BDP('P1'!$B$9&" Equity","IS OTHER OPER INC","EQY FUND YEAR="&D$6,"FA ADJUSTED=YES") ->  | E17: =SUM(_xll.BDH('P1'!$B$9&" Equity","IS OTHER OPERATING EXPENSES","-4FQ"," ","dts=h","array=true","points=4","FA ADJUSTED=YES"))-SUM(_xll.BDH('P1'!$B$9&" Equity","IS OTHER OPER INC","-4FQ"," ","dts=h","array=true","points=4","FA ADJUSTED=YES")) ->  | F17: =F7*F52 -> 
A18: EBITDA | B18: =[2]!BError(B11-B14-B17) ->  | C18: =[2]!BError(C11-C14-C17) ->  | D18: =[2]!BError(D11-D14-D17) ->  | E18: =[2]!BError(E11-E14-E17) ->  | F18: =[2]!BError(F11-F14-F17) ->  | G18: =[2]!BError(G11-G14-G17) ->  | H18: =[2]!BError(H11-H14-H17) ->  | I18: =[2]!BError(I11-I14-I17) ->  | J18: =[2]!BError(J11-J14-J17) ->  | K18: =[2]!BError(K11-K14-K17) ->  | L18: =[2]!BError(L11-L14-L17) ->  | M18: =[2]!BError(M11-M14-M17) ->  | N18: =[2]!BError(N11-N14-N17) ->  | O18: =[2]!BError(O11-O14-O17) ->  | P18: =[2]!BError(P11-P14-P17) -> 
A19: % margin | B19: =[2]!BError(B18/B7) ->  | C19: =[2]!BError(C18/C7) ->  | D19: =[2]!BError(D18/D7) ->  | E19: =[2]!BError(E18/E7) ->  | F19: =[2]!BError(F18/F7) ->  | G19: =[2]!BError(F19) ->  | H19: =[2]!BError(G19) ->  | I19: =[2]!BError(H19) ->  | J19: =[2]!BError(I19) ->  | K19: =[2]!BError(J19) ->  | L19: =[2]!BError(K19) ->  | M19: =[2]!BError(L19) ->  | N19: =[2]!BError(M19) ->  | O19: =[2]!BError(N19) ->  | P19: =[2]!BError(O19) -> 
A21: Depreciation & Amortization | B21: =_xll.BDP('P1'!$B$9&" Equity","CF DEPR AMORT","EQY FUND YEAR="&B$6) ->  | C21: =_xll.BDP('P1'!$B$9&" Equity","CF DEPR AMORT","EQY FUND YEAR="&C$6) ->  | D21: =_xll.BDP('P1'!$B$9&" Equity","CF DEPR AMORT","EQY FUND YEAR="&D$6) ->  | E21: =_xll.BDP('P1'!$B$9&" Equity","TRAIL 12M AMORT AND DEPR") ->  | F21: =F7*F53 -> 
A22: EBIT | B22: =[2]!BError(B18-B21) ->  | C22: =[2]!BError(C18-C21) ->  | D22: =[2]!BError(D18-D21) ->  | E22: =[2]!BError(E18-E21) ->  | F22: =[2]!BError(F18-F21) ->  | G22: =G18-G21 -> 
A23: % margin | B23: =[2]!BError(B22/B7) ->  | C23: =[2]!BError(C22/C7) ->  | D23: =[2]!BError(D22/D7) ->  | E23: =[2]!BError(E22/E7) ->  | F23: =[2]!BError(F22/F7) ->  | G23: =[2]!BError(F23) ->  | H23: =[2]!BError(G23) ->  | I23: =[2]!BError(H23) ->  | J23: =[2]!BError(I23) ->  | K23: =[2]!BError(J23) ->  | L23: =[2]!BError(K23) ->  | M23: =[2]!BError(L23) ->  | N23: =[2]!BError(M23) ->  | O23: =[2]!BError(N23) ->  | P23: =[2]!BError(O23) -> 
A25: Interest Expense
A26: Revolving Credit Facility | F26: =BS!E26*(DS!F7+DS!F19) -> 0 | G26: =DS!G28 -> 0 | H26: =DS!H28 -> 0 | I26: =DS!I28 -> 0 | J26: =DS!J28 -> 0 | K26: =DS!K28 -> 0 | L26: =DS!L28 -> 0 | M26: =DS!M28 -> 0 | N26: =DS!N28 -> 0 | O26: =DS!O28 -> 0 | P26: =DS!P28 -> 0
A27: Term Loan A | F27: =BS!B27*(DS!F7+DS!F33) -> 0 | G27: =DS!G43 -> 0 | H27: =DS!H43 -> 0 | I27: =DS!I43 -> 0 | J27: =DS!J43 -> 0 | K27: =DS!K43 -> 0 | L27: =DS!L43 -> 0 | M27: =DS!M43 -> 0 | N27: =DS!N43 -> 0 | O27: =DS!O43 -> 0 | P27: =DS!P43 -> 0
A28: Term Loan B | F28: =BS!E28*(DS!F7+DS!F47) -> 80.58166663 | G28: =DS!G57 -> 76.77485173 | H28: =DS!H57 -> 72.34120162 | I28: =DS!I57 -> 65.72011337 | J28: =DS!J57 -> 57.25238593 | K28: =DS!K57 -> 47.24717497 | L28: =DS!L57 -> 35.61123944 | M28: =DS!M57 -> 22.78165774 | N28: =DS!N57 -> 8.257856369 | O28: =DS!O57 -> 0.2702205631 | P28: =DS!P57 -> 0
A29: Term Loan C | F29: =BS!E29*(DS!F7+DS!F61) -> 0 | G29: =DS!G71 -> 0 | H29: =DS!H71 -> 0 | I29: =DS!I71 -> 0 | J29: =DS!J71 -> 0 | K29: =DS!K71 -> 0 | L29: =DS!L71 -> 0 | M29: =DS!M71 -> 0 | N29: =DS!N71 -> 0 | O29: =DS!O71 -> 0 | P29: =DS!P71 -> 0
A30: Existing Short-Term Debt | F30: =G30 ->  | G30: =DS!G85 ->  | H30: =DS!H85 ->  | I30: =DS!I85 ->  | J30: =DS!J85 ->  | K30: =DS!K85 ->  | L30: =DS!L85 ->  | M30: =DS!M85 ->  | N30: =DS!N85 ->  | O30: =DS!O85 ->  | P30: =DS!P85 -> 
A31: Existing Long-Term Debt | F31: =G31 ->  | G31: =DS!G99 ->  | H31: =DS!H99 ->  | I31: =DS!I99 ->  | J31: =DS!J99 ->  | K31: =DS!K99 ->  | L31: =DS!L99 ->  | M31: =DS!M99 ->  | N31: =DS!N99 ->  | O31: =DS!O99 ->  | P31: =DS!P99 -> 
A32: 2nd Lien | F32: =BS!E30*(DS!F7+DS!F103) -> 0 | G32: =DS!G111 -> 0 | H32: =DS!H111 -> 0 | I32: =DS!I111 -> 0 | J32: =DS!J111 -> 0 | K32: =DS!K111 -> 0 | L32: =DS!L111 -> 0 | M32: =DS!M111 -> 0 | N32: =DS!N111 -> 0 | O32: =DS!O111 -> 0 | P32: =DS!P111 -> 0
A33: Senior Notes | F33: =G33 -> 0 | G33: =DS!G122 -> 0 | H33: =DS!H122 -> 0 | I33: =DS!I122 -> 0 | J33: =DS!J122 -> 0 | K33: =DS!K122 -> 0 | L33: =DS!L122 -> 0 | M33: =DS!M122 -> 0 | N33: =DS!N122 -> 0 | O33: =DS!O122 -> 0 | P33: =DS!P122 -> 0
A34: Senior Subordinated Notes | F34: =G34 -> 0 | G34: =DS!G133 -> 0 | H34: =DS!H133 -> 0 | I34: =DS!I133 -> 0 | J34: =DS!J133 -> 0 | K34: =DS!K133 -> 0 | L34: =DS!L133 -> 0 | M34: =DS!M133 -> 0 | N34: =DS!N133 -> 0 | O34: =DS!O133 -> 0 | P34: =DS!P133 -> 0
A35: Commitment Fee on Unused Revolver | F35: =G35 -> 5 | G35: =DS!G29 -> 5 | H35: =DS!H29 -> 5 | I35: =DS!I29 -> 5 | J35: =DS!J29 -> 5 | K35: =DS!K29 -> 5 | L35: =DS!L29 -> 5 | M35: =DS!M29 -> 5 | N35: =DS!N29 -> 5 | O35: =DS!O29 -> 5 | P35: =DS!P29 -> 5
A36: Administrative Agent Fee | F36: =G36 -> 0.15 | G36: ='A3'!C65 -> 0.15 | H36: ='A3'!D65 -> 0.15 | I36: ='A3'!E65 -> 0.15 | J36: ='A3'!F65 -> 0.15 | K36: ='A3'!G65 -> 0.15 | L36: ='A3'!H65 -> 0.15 | M36: ='A3'!I65 -> 0.15 | N36: ='A3'!J65 -> 0.15 | O36: ='A3'!K65 -> 0.15 | P36: ='A3'!L65 -> 0.15
A37: Cash Interest Expense | F37: =SUM(F26:F36) ->  | G37: 81.92485173 | H37: 77.49120162 | I37: 70.87011337 | J37: 62.40238593 | K37: 52.39717497 | L37: 40.76123944 | M37: 27.93165774 | N37: 13.40785637 | O37: 5.420220563 | P37: 5.15
A38: Amortization of Deferred Financing Fees | F38: =G38 ->  | G38: ='A3'!C63 ->  | H38: ='A3'!D63 ->  | I38: ='A3'!E63 ->  | J38: ='A3'!F63 ->  | K38: ='A3'!G63 ->  | L38: ='A3'!H63 ->  | M38: ='A3'!I63 ->  | N38: ='A3'!J63 ->  | O38: ='A3'!K63 ->  | P38: ='A3'!L63 -> 
A39: Total Interest Expense | F39: =SUM(F37:F38) ->  | G39: 91.73688876 | H39: 87.30323865 | I39: 80.6821504 | J39: 72.21442296 | K39: 62.209212 | L39: 50.57327647 | M39: 34.82702811 | N39: 20.30322674 | O39: 12.31559093 | P39: 5.65
A40: Interest Income | G40: =-G54*AVERAGE(BS!E8:F8) ->  | H40: =-H54*AVERAGE(BS!F8:G8) -> 0 | I40: =-I54*AVERAGE(BS!G8:H8) -> 0 | J40: =-J54*AVERAGE(BS!H8:I8) -> 0 | K40: =-K54*AVERAGE(BS!I8:J8) -> 0 | L40: =-L54*AVERAGE(BS!J8:K8) -> 0 | M40: =-M54*AVERAGE(BS!K8:L8) -> 0 | N40: =-N54*AVERAGE(BS!L8:M8) -> 0 | O40: =-O54*AVERAGE(BS!M8:N8) -> -3.346486391 | P40: =-P54*AVERAGE(BS!N8:O8) -> -10.30627324
A41: Net Interest Expense | G41: =SUM(G39:G40) -> 91.73688876 | H41: 87.30323865 | I41: 80.6821504 | J41: 72.21442296 | K41: 62.209212 | L41: 50.57327647 | M41: 34.82702811 | N41: 20.30322674 | O41: 8.96910454 | P41: -4.656273236
A43: Earnings Before Taxes | G43: =G22-G41 -> 491.6667119 | H43: 532.771908 | I43: 573.645094 | J43: 613.2714346 | K43: 650.6960798 | L43: 690.848227 | M43: 736.2513355 | N43: 781.6182715 | O43: 825.0292536 | P43: 872.0145657
A44: Income Tax Expense | G44: =G43*G55 -> 156.9385683 | H44: 174.1619614 | I44: 191.9408048 | J44: 209.9223611 | K44: 227.7436279 | L44: 241.7968795 | M44: 257.6879674 | N44: 273.566395 | O44: 288.7602388 | P44: 305.205098
A45: Net Income | G45: =G43-G44 -> 334.7281437 | H45: 358.6099466 | I45: 381.7042892 | J45: 403.3490735 | K45: 422.9524519 | L45: 449.0513476 | M45: 478.5633681 | N45: 508.0518764 | O45: 536.2690148 | P45: 566.8094677
A46: % margin | G46: =IF(ISERROR(G45/G7),0,G45/G7) -> 0.1735241802 | H46: 0.1749100984 | I46: 0.17642857 | J46: 0.1779587891 | K46: 0.1794306317 | L46: 0.1831756342 | M46: 0.1877058521 | N46: 0.1916077543 | O46: 0.1944707936 | P46: 0.19764027
A48: Income Statement Assumptions
A49: Sales (% YoY growth) | B49: =B8 -> N/A | C49: =C8 ->  | D49: =D8 ->  | E49: =E8 -> N/A | F49: =F8 ->  | G49: ='A1'!D8 ->  | H49: ='A1'!E8 ->  | I49: ='A1'!F8 ->  | J49: ='A1'!G8 ->  | K49: ='A1'!H8 -> 0.04 | L49: ='A1'!I8 -> 0.04 | M49: ='A1'!J8 -> 0.04 | N49: ='A1'!K8 -> 0.04 | O49: ='A1'!L8 -> 0.04 | P49: ='A1'!M8 -> 0.04
A50: COGS (% margin) | B50: =[2]!BError(B10/B7) ->  | C50: =[2]!BError(C10/C7) ->  | D50: =[2]!BError(D10/D7) ->  | E50: =[2]!BError(E10/E7) ->  | F50: =E50 ->  | G50: ='A1'!D15 ->  | H50: ='A1'!E15 ->  | I50: ='A1'!F15 ->  | J50: ='A1'!G15 ->  | K50: ='A1'!H15 ->  | L50: ='A1'!I15 ->  | M50: ='A1'!J15 ->  | N50: ='A1'!K15 ->  | O50: ='A1'!L15 ->  | P50: ='A1'!M15 -> 
A51: SG&A (% sales) | B51: =[2]!BError(B14/B7) ->  | C51: =[2]!BError(C14/C7) ->  | D51: =[2]!BError(D14/D7) ->  | E51: =[2]!BError(E14/E7) ->  | F51: =E51 ->  | G51: ='A1'!D22 ->  | H51: ='A1'!E22 ->  | I51: ='A1'!F22 ->  | J51: ='A1'!G22 ->  | K51: ='A1'!H22 ->  | L51: ='A1'!I22 ->  | M51: ='A1'!J22 ->  | N51: ='A1'!K22 ->  | O51: ='A1'!L22 ->  | P51: ='A1'!M22 -> 
A52: Other Expense / (Income) (% of sales) | B52: =B17/B7 ->  | C52: =C17/C7 ->  | D52: =D17/D7 ->  | E52: =E17/E7 ->  | F52: =E52 ->  | G52: ='A1'!D29 ->  | H52: ='A1'!E29 ->  | I52: ='A1'!F29 ->  | J52: ='A1'!G29 ->  | K52: ='A1'!H29 ->  | L52: ='A1'!I29 ->  | M52: ='A1'!J29 ->  | N52: ='A1'!K29 ->  | O52: ='A1'!L29 ->  | P52: ='A1'!M29 -> 
A53: Depreciation & Amortization (% sales) | B53: =B21/B7 ->  | C53: =C21/C7 ->  | D53: =D21/D7 ->  | E53: =E21/E7 ->  | F53: =E53 ->  | G53: ='A1'!D36 ->  | H53: ='A1'!E36 ->  | I53: ='A1'!F36 ->  | J53: ='A1'!G36 ->  | K53: ='A1'!H36 ->  | L53: ='A1'!I36 ->  | M53: ='A1'!J36 ->  | N53: ='A1'!K36 ->  | O53: ='A1'!L36 ->  | P53: ='A1'!M36 -> 
A54: Interest Income | F54: =_xll.BDP("US0003M INDEX","PX LAST")/100 ->  | G54: ='A1'!D43 ->  | H54: ='A1'!E43 ->  | I54: ='A1'!F43 ->  | J54: ='A1'!G43 ->  | K54: ='A1'!H43 ->  | L54: ='A1'!I43 ->  | M54: ='A1'!J43 ->  | N54: ='A1'!K43 ->  | O54: ='A1'!L43 ->  | P54: ='A1'!M43 -> 
A55: Tax Rate | G55: =_xll.BDP('P1'!B9&" Equity","EFF TAX RATE")/100 ->  | H55: =G55+($K$55-$G$55)/4 ->  | I55: =H55+($K$55-$G$55)/4 ->  | K55: =_xll.BDP('P1'!B9&" Equity","IS STATUTORY TAX RATE") ->  | L55: =K55 -> 

Sheet BS
A1: ='P1'!A1 -> OLD DOMINION FREIGHT LINE
A2: Balance Sheet
A3: =CONCATENATE("$ in millions, fiscal year ending ",_xll.BDP('P1'!B9&" Equity","CURRENT FULL FISCAL YEAR END")) -> 
F4: Projection Period
B5: Opening | C5: Adjustments | E5: Pro Forma | F5: Year 1 | G5: Year 2 | H5: Year 3 | I5: Year 4 | J5: Year 5 | K5: Year 6 | L5: Year 7 | M5: Year 8 | N5: Year 9 | O5: Year 10
B6: =IS!F6 ->  | C6: + | D6: - | E6: =B6 ->  | F6: =E6+1 -> 
A8: Cash and Cash Equivalents | B8: =_xll.BDP('P1'!$B$9&" Equity","CASH AND MARKETABLE SECURITIES","EQY FUND YEAR="&IS!$D$6) ->  | D8: =-TS!B19 ->  | E8: =SUM(B8:D8) ->  | F8: =CF!G45 -> 0 | G8: =CF!H45 -> 0 | H8: =CF!I45 -> 0 | I8: =CF!J45 -> 0 | J8: =CF!K45 -> 0 | K8: =CF!L45 -> 0 | L8: =CF!M45 -> 0 | M8: =CF!N45 -> 0 | N8: =CF!O45 -> 508.9713142 | O8: =CF!P45 -> 1058.522714
A9: Accounts Receivable | B9: =_xll.BDP('P1'!$B$9&" Equity","BS ACCT NOTE RCV","EQY FUND YEAR="&IS!$D$6) ->  | E9: =SUM(B9:D9) ->  | F9: =IS!G7/365*F50 ->  | G9: =IS!H7/365*G50 ->  | H9: =IS!I7/365*H50 ->  | I9: =IS!J7/365*I50 ->  | J9: =IS!K7/365*J50 ->  | K9: =IS!L7/365*K50 ->  | L9: =IS!M7/365*L50 ->  | M9: =IS!N7/365*M50 ->  | N9: =IS!O7/365*N50 ->  | O9: =IS!P7/365*O50 -> 
A10: Inventories | B10: =_xll.BDP('P1'!$B$9&" Equity","BS INVENTORIES","EQY FUND YEAR="&IS!$D$6) ->  | E10: =SUM(B10:D10) ->  | F10: =IF('A3'!$L$5=1,IS!G10/365*F52,F51*IS!G7) ->  | G10: =IF('A3'!$L$5=1,IS!H10/365*G52,G51*IS!H7) ->  | H10: =IF('A3'!$L$5=1,IS!I10/365*H52,H51*IS!I7) ->  | I10: =IF('A3'!$L$5=1,IS!J10/365*I52,I51*IS!J7) ->  | J10: =IF('A3'!$L$5=1,IS!K10/365*J52,J51*IS!K7) ->  | K10: =IF('A3'!$L$5=1,IS!L10/365*K52,K51*IS!L7) ->  | L10: =IF('A3'!$L$5=1,IS!M10/365*L52,L51*IS!M7) ->  | M10: =IF('A3'!$L$5=1,IS!N10/365*M52,M51*IS!N7) ->  | N10: =IF('A3'!$L$5=1,IS!O10/365*N52,N51*IS!O7) ->  | O10: =IF('A3'!$L$5=1,IS!P10/365*O52,O51*IS!P7) -> 
A11: Prepaid and Other Current Assets | B11: =_xll.BDP('P1'!$B$9&" Equity","OTHER CURRENT ASSETS DETAILED","EQY FUND YEAR="&IS!$D$6) ->  | E11: =SUM(B11:D11) ->  | F11: =IS!G7*F53 ->  | G11: =IS!H7*G53 ->  | H11: =IS!I7*H53 ->  | I11: =IS!J7*I53 ->  | J11: =IS!K7*J53 ->  | K11: =IS!L7*K53 ->  | L11: =IS!M7*L53 ->  | M11: =IS!N7*M53 ->  | N11: =IS!O7*N53 ->  | O11: =IS!P7*O53 -> 
A12: Total Current Assets | B12: =SUM(B8:B11) ->  | E12: =SUM(E8:E11) ->  | F12: 462.946763 | G12: 492.0466408 | H12: 519.2266201 | I12: 543.9518345 | J12: 565.7099078 | K12: 588.3383042 | L12: 611.8718363 | M12: 636.3467098 | N12: 1170.771892 | O12: 1746.795315
A14: Property, Plant and Equipment, net | B14: =_xll.BDP('P1'!$B$9&" Equity","BS NET FIX ASSET","EQY FUND YEAR="&IS!$D$6) ->  | E14: =SUM(B14:D14) ->  | F14: =E14-CF!G10-CF!G25 ->  | G14: =F14-CF!H10-CF!H25 ->  | H14: =G14-CF!I10-CF!I25 ->  | I14: =H14-CF!J10-CF!J25 ->  | J14: =I14-CF!K10-CF!K25 ->  | K14: =J14-CF!L10-CF!L25 ->  | L14: =K14-CF!M10-CF!M25 ->  | M14: =L14-CF!N10-CF!N25 ->  | N14: =M14-CF!O10-CF!O25 ->  | O14: =N14-CF!P10-CF!P25 -> 
A15: Goodwill and Intangible Assets | B15: =_xll.BDP('P1'!$B$9&" Equity","BS DISCLOSED INTANGIBLES","EQY FUND YEAR="&IS!$D$6) ->  | C15: =TS!M10+D38 ->  | E15: =SUM(B15:D15) ->  | F15: =E15 -> 
A16: Other Assets | B16: =_xll.BDP('P1'!$B$9&" Equity","BS OTHER ASSETS DEF CHRG OTHER","EQY FUND YEAR="&IS!$D$6)-B15+_xll.BDP('P1'!$B$9&" Equity","BS LT INVEST","EQY FUND YEAR="&IS!$D$6) ->  | E16: =SUM(B16:D16) ->  | F16: =E16 -> 
A17: Deferred Financing Fees | B17: 0 | C17: =TS!I16 -> 80.05833331 | E17: =SUM(B17:D17) -> 80.05833331 | F17: =E17-IS!G38 ->  | G17: =F17-IS!H38 ->  | H17: =G17-IS!I38 ->  | I17: =H17-IS!J38 ->  | J17: =I17-IS!K38 ->  | K17: =J17-IS!L38 ->  | L17: =K17-IS!M38 ->  | M17: =L17-IS!N38 ->  | N17: =M17-IS!O38 ->  | O17: =N17-IS!P38 -> 
A18: Total Assets | B18: =SUM(B14:B17)+B12 ->  | E18: =SUM(E14:E17)+E12 ->  | F18: 5229.072901 | G18: 5248.360742 | H18: 5265.728684 | I18: 5280.641862 | J18: 5292.587898 | K18: 5305.404257 | L18: 5322.042419 | M18: 5339.621922 | N18: 5867.151734 | O18: 6442.675157
A20: Accounts Payable | B20: =_xll.BDP('P1'!$B$9&" Equity","BS ACCT PAYABLE","EQY FUND YEAR="&IS!$D$6) ->  | E20: =SUM(B20:D20) ->  | F20: =IF('A3'!$L$5=1,IS!G10/365*F57,F56*IS!G7) ->  | G20: =IF('A3'!$L$5=1,IS!H10/365*G57,G56*IS!H7) ->  | H20: =IF('A3'!$L$5=1,IS!I10/365*H57,H56*IS!I7) ->  | I20: =IF('A3'!$L$5=1,IS!J10/365*I57,I56*IS!J7) ->  | J20: =IF('A3'!$L$5=1,IS!K10/365*J57,J56*IS!K7) ->  | K20: =IF('A3'!$L$5=1,IS!L10/365*K57,K56*IS!L7) ->  | L20: =IF('A3'!$L$5=1,IS!M10/365*L57,L56*IS!M7) ->  | M20: =IF('A3'!$L$5=1,IS!N10/365*M57,M56*IS!N7) ->  | N20: =IF('A3'!$L$5=1,IS!O10/365*N57,N56*IS!O7) ->  | O20: =IF('A3'!$L$5=1,IS!P10/365*O57,O56*IS!P7) -> 
A21: Accrued Liabilities | B21: =_xll.BDP('P1'!$B$9&" Equity","BS ACCRUAL","EQY FUND YEAR="&IS!$D$6)+_xll.BDP('P1'!$B$9&" Equity","BS TAXES PAYABLE","EQY FUND YEAR="&IS!$D$6) ->  | E21: =SUM(B21:D21) ->  | F21: =F58*IS!G7 ->  | G21: =G58*IS!H7 ->  | H21: =H58*IS!I7 ->  | I21: =I58*IS!J7 ->  | J21: =J58*IS!K7 ->  | K21: =K58*IS!L7 ->  | L21: =L58*IS!M7 ->  | M21: =M58*IS!N7 ->  | N21: =N58*IS!O7 ->  | O21: =O58*IS!P7 -> 
A22: Other Current Liabilities | B22: =_xll.BDP('P1'!$B$9&" Equity","OTHER CURRENT LIABS SUB DETAILED","EQY FUND YEAR="&IS!$D$6)+_xll.BDP('P1'!$B$9&" Equity","BS INTEREST & DIVIDENDS PAYABLE","EQY FUND YEAR="&IS!$D$6) ->  | E22: =SUM(B22:D22) ->  | F22: =F59*IS!G7 ->  | G22: =G59*IS!H7 ->  | H22: =H59*IS!I7 ->  | I22: =I59*IS!J7 ->  | J22: =J59*IS!K7 ->  | K22: =K59*IS!L7 ->  | L22: =L59*IS!M7 ->  | M22: =M59*IS!N7 ->  | N22: =N59*IS!O7 ->  | O22: =O59*IS!P7 -> 
A23: Existing Short-Term Debt | B23: =_xll.BDP('P1'!$B$9&" Equity","BS ST BORROW","EQY FUND YEAR="&IS!$D$6) ->  | D23: =-TS!I11 ->  | E23: =SUM(B23:D23) ->  | F23: =DS!G82 ->  | G23: =DS!H82 ->  | H23: =DS!I82 ->  | I23: =DS!J82 ->  | J23: =DS!K82 ->  | K23: =DS!L82 ->  | L23: =DS!M82 ->  | M23: =DS!N82 ->  | N23: =DS!O82 ->  | O23: =DS!P82 -> 
A24: Total Current Liabilities | B24: =SUM(B20:B23) ->  | E24: =SUM(E20:E23) -> 
A26: Revolving Credit Facility | B26: 0 | C26: =TS!B10 -> 0 | E26: =SUM(B26:D26) -> 0 | F26: =DS!G25 -> 0 | G26: =DS!H25 -> 0 | H26: =DS!I25 -> 0 | I26: =DS!J25 -> 0 | J26: =DS!K25 -> 0 | K26: =DS!L25 -> 0 | L26: =DS!M25 -> 0 | M26: =DS!N25 -> 0 | N26: =DS!O25 -> 0 | O26: =DS!P25 -> 0
A27: Term Loan A | B27: 0 | C27: =TS!B11 -> 0 | E27: 0 | F27: =DS!G40 -> 0 | G27: =DS!H40 -> 0 | H27: =DS!I40 -> 0 | I27: =DS!J40 -> 0 | J27: =DS!K40 -> 0 | K27: =DS!L40 -> 0 | L27: =DS!M40 -> 0 | M27: =DS!N40 -> 0 | N27: =DS!O40 -> 0 | O27: =DS!P40 -> 0
A28: Term Loan B | B28: 0 | C28: =TS!B12 -> 3289.047618 | E28: 3289.047618 | F28: =DS!G54 -> 2965.930444 | G28: =DS!H54 -> 2617.029356 | H28: =DS!I54 -> 2243.746012 | I28: =DS!J54 -> 1847.171168 | J28: =DS!K54 -> 1429.002516 | K28: =DS!L54 -> 985.318802 | L28: =DS!M54 -> 515.646921 | M28: =DS!N54 -> 17.11800599 | N28: =DS!O54 -> 0 | O28: =DS!P54 -> 0
A29: Term Loan C | B29: 0 | C29: =TS!B13 -> 0 | E29: 0 | F29: =DS!G68 -> 0 | G29: =DS!H68 -> 0 | H29: =DS!I68 -> 0 | I29: =DS!J68 -> 0 | J29: =DS!K68 -> 0 | K29: =DS!L68 -> 0 | L29: =DS!M68 -> 0 | M29: =DS!N68 -> 0 | N29: =DS!O68 -> 0 | O29: =DS!P68 -> 0
A30: 2nd Lien | B30: 0 | C30: =TS!B14 -> 0 | E30: 0 | F30: =DS!G108 -> 0 | G30: =DS!H108 -> 0 | H30: =DS!I108 -> 0 | I30: =DS!J108 -> 0 | J30: =DS!K108 -> 0 | K30: =DS!L108 -> 0 | L30: =DS!M108 -> 0 | M30: =DS!N108 -> 0 | N30: =DS!O108 -> 0 | O30: =DS!P108 -> 0
A31: Senior Notes | B31: 0 | C31: =TS!B15 -> 0 | E31: 0 | F31: =DS!G120 -> 0 | G31: =DS!H120 -> 0 | H31: =DS!I120 -> 0 | I31: =DS!J120 -> 0 | J31: =DS!K120 -> 0 | K31: =DS!L120 -> 0 | L31: =DS!M120 -> 0 | M31: =DS!N120 -> 0 | N31: =DS!O120 -> 0 | O31: =DS!P120 -> 0
A32: Senior Subordinated Notes | B32: 0 | C32: =TS!B16 -> 0 | E32: 0 | F32: =E32 -> 0 | G32: 0 | H32: 0 | I32: 0 | J32: 0 | K32: 0 | L32: 0 | M32: 0 | N32: 0 | O32: 0
A33: Existing Long Term Borrowing | B33: =_xll.BDP('P1'!B9&" Equity","BS LT BORROW","EQY FUND YEAR="&IS!$D$6) ->  | D33: =-TS!I12 ->  | E33: =SUM(B33:D33) ->  | F33: =DS!G96 ->  | G33: =DS!H82 ->  | H33: =DS!I82 ->  | I33: =DS!J82 ->  | J33: =DS!K82 ->  | K33: =DS!L82 ->  | L33: =DS!M82 ->  | M33: =DS!N82 ->  | N33: =DS!O82 ->  | O33: =DS!P82 -> 
A34: Other Long-Term Liabilities | B34: =_xll.BDP('P1'!$B$9&" Equity","OTHER_NONCUR_LIABS_SUB_DETAILED","EQY FUND YEAR="&IS!$D$6) ->  | F34: =E34 -> 
A35: Total Liabilities | B35: =SUM(B26:B34)+B24 ->  | E35: =SUM(E26:E34)+E24 ->  | F35: 3189.534042 | G35: 2850.211936 | H35: 2485.875589 | I35: 2097.439693 | J35: 1686.433278 | K35: 1250.198289 | L35: 788.2730829 | M35: 297.8007096 | N35: 289.0615069 | O35: 297.7754624
A37: Noncontrolling Interest | B37: =_xll.BDP('P1'!$B$9&" Equity","MINORITY NONCONTROLLING INTEREST","EQY FUND YEAR="&IS!$D$6) ->  | E37: =SUM(B37:D37) ->  | F37: =E37 -> 
A38: Shareholders' Equity | B38: =_xll.BDP('P1'!$B$9&" Equity","TOTAL_EQUITY","EQY FUND YEAR="&IS!$D$6) ->  | C38: =TS!B17-TS!I17 ->  | D38: =IF(TS!I10>0,-B38,0) ->  | E38: =SUM(B38:D38) ->  | F38: =E38+IS!G45 -> 2039.538859 | G38: =F38+IS!H45 -> 2398.148806 | H38: =G38+IS!I45 -> 2779.853095 | I38: =H38+IS!J45 -> 3183.202169 | J38: =I38+IS!K45 -> 3606.15462 | K38: =J38+IS!L45 -> 4055.205968 | L38: =K38+IS!M45 -> 4533.769336 | M38: =L38+IS!N45 -> 5041.821213 | N38: =M38+IS!O45 -> 5578.090227 | O38: =N38+IS!P45 -> 6144.899695
A39: Total Shareholders' Equity | B39: =SUM(B37:B38) ->  | E39: =SUM(E37:E38) -> 
A40: Total Liabilities and Equity | B40: =B35+B39 ->  | E40: =SUM(E39,E35) -> 
A42: Balance Check | B42: =B18-B40 ->  | E42: =E18-E40 ->  | F42: 0 | G42: 0 | H42: 0 | I42: 0 | J42: 0 | K42: 0 | L42: 0 | M42: 0 | N42: 0 | O42: 0
A44: Net Working Capital | B44: =SUM(B9:B11)-SUM(B20:B22) ->  | E44: =SUM(E9:E11)-SUM(E20:E22) -> 
A45: (Increase) / Decrease in Net Working Capital | F45: =-(F44-E44) -> 
A46: (Increase) / Decrease in Net Working Capital (% of sales) | F46: =IF(ISERROR(F45/IS!G7),0,F45/IS!G7) -> 0 | G46: =IF(ISERROR(G45/IS!H7),0,G45/IS!H7) -> 0 | H46: =IF(ISERROR(H45/IS!I7),0,H45/IS!I7) -> 0 | I46: =IF(ISERROR(I45/IS!J7),0,I45/IS!J7) -> 0 | J46: =IF(ISERROR(J45/IS!K7),0,J45/IS!K7) -> 0 | K46: =IF(ISERROR(K45/IS!L7),0,K45/IS!L7) -> 0 | L46: =IF(ISERROR(L45/IS!M7),0,L45/IS!M7) -> 0 | M46: =IF(ISERROR(M45/IS!N7),0,M45/IS!N7) -> 0 | N46: =IF(ISERROR(N45/IS!O7),0,N45/IS!O7) -> 0 | O46: =IF(ISERROR(O45/IS!P7),0,O45/IS!P7) -> 0
A48: Balance Sheet Assumptions
A49: Current Assets
A50: Days Sales Outstanding (DSO) | B50: =B9/IS!F7*365 ->  | E50: =E9/IS!F7*365 ->  | F50: ='A2'!D8 ->  | G50: ='A2'!E8 ->  | H50: ='A2'!F8 ->  | I50: ='A2'!G8 ->  | J50: ='A2'!H8 ->  | K50: ='A2'!I8 ->  | L50: ='A2'!J8 ->  | M50: ='A2'!K8 ->  | N50: ='A2'!L8 ->  | O50: ='A2'!M8 -> 
A51: Inventories (% of sales) | B51: =B10/IS!D7 ->  | E51: =E10/IS!F7 ->  | F51: ='A2'!D15 ->  | G51: ='A2'!E15 ->  | H51: ='A2'!F15 ->  | I51: ='A2'!G15 ->  | J51: ='A2'!H15 ->  | K51: ='A2'!I15 ->  | L51: ='A2'!J15 ->  | M51: ='A2'!K15 ->  | N51: ='A2'!L15 ->  | O51: ='A2'!M15 -> 
A52: Days Inventory Held (DIH) | B52: =IF(ISERROR(B10/IS!F10*365),0,B10/IS!F10*365) -> 0 | E52: =IF(ISERROR(E10/IS!F10*365),0,E10/IS!F10*365) -> 0 | F52: ='A2'!D22 -> 0 | G52: ='A2'!E22 -> 0 | H52: ='A2'!F22 -> 0 | I52: ='A2'!G22 -> 0 | J52: ='A2'!H22 -> 0 | K52: ='A2'!I22 -> 0 | L52: ='A2'!J22 -> 0 | M52: ='A2'!K22 -> 0 | N52: ='A2'!L22 -> 0 | O52: ='A2'!M22 -> 0
A53: Prepaid and Other Current Assets (% of sales) | B53: =B11/IS!D7 ->  | E53: =E11/IS!E7 ->  | F53: ='A2'!D29 ->  | G53: ='A2'!E29 ->  | H53: ='A2'!F29 ->  | I53: ='A2'!G29 ->  | J53: ='A2'!H29 ->  | K53: ='A2'!I29 ->  | L53: ='A2'!J29 ->  | M53: ='A2'!K29 ->  | N53: ='A2'!L29 ->  | O53: ='A2'!M29 -> 
A55: Current Liabilities
A56: Accounts Payable (% of sales) | B56: =B20/IS!D7 ->  | E56: =E20/IS!F7 ->  | F56: ='A2'!D37 ->  | G56: ='A2'!E37 ->  | H56: ='A2'!F37 ->  | I56: ='A2'!G37 ->  | J56: ='A2'!H37 ->  | K56: ='A2'!I37 ->  | L56: ='A2'!J37 ->  | M56: ='A2'!K37 ->  | N56: ='A2'!L37 ->  | O56: ='A2'!M37 -> 
A57: Days Payable Outstanding (DPO) | B57: =IF(ISERROR(B20/IS!F10*365),0,B20/IS!F10*365) -> 0 | E57: =IF(ISERROR(E20/IS!F10*365),0,E20/IS!F10*365) -> 0 | F57: ='A2'!D44 -> 0 | G57: ='A2'!E44 -> 0 | H57: ='A2'!F44 -> 0 | I57: ='A2'!G44 -> 0 | J57: ='A2'!H44 -> 0 | K57: ='A2'!I44 -> 0 | L57: ='A2'!J44 -> 0 | M57: ='A2'!K44 -> 0 | N57: ='A2'!L44 -> 0 | O57: ='A2'!M44 -> 0
A58: Accrued Liabilities (% of sales) | B58: =B21/IS!F7 ->  | E58: =E21/IS!F7 ->  | F58: ='A2'!D51 ->  | G58: ='A2'!E51 ->  | H58: ='A2'!F51 ->  | I58: ='A2'!G51 ->  | J58: ='A2'!H51 ->  | K58: ='A2'!I51 ->  | L58: ='A2'!J51 ->  | M58: ='A2'!K51 ->  | N58: ='A2'!L51 ->  | O58: ='A2'!M51 -> 
A59: Other Current Liabilities (% of sales) | B59: =B22/IS!F7 ->  | E59: =E22/IS!F7 ->  | F59: ='A2'!D58 ->  | G59: ='A2'!E58 ->  | H59: ='A2'!F58 ->  | I59: ='A2'!G58 ->  | J59: ='A2'!H58 ->  | K59: ='A2'!I58 ->  | L59: ='A2'!J58 ->  | M59: ='A2'!K58 ->  | N59: ='A2'!L58 ->  | O59: ='A2'!M58 -> 

Sheet CF
A1: ='P1'!A1 -> OLD DOMINION FREIGHT LINE
A2: Cash Flow Statement
A3: =CONCATENATE("$ in millions, fiscal year ending ",_xll.BDP('P1'!B9&" Equity","CURRENT FULL FISCAL YEAR END")) -> 
G4: Projection Period
G5: Year 1 | H5: Year 2 | I5: Year 3 | J5: Year 4 | K5: Year 5 | L5: Year 6 | M5: Year 7 | N5: Year 8 | O5: Year 9 | P5: Year 10
G6: =BS!F6 ->  | H6: =G6+1 -> 
A8: Operating Activities
A9: Net Income | G9: =IS!G45 -> 334.7281437 | H9: =IS!H45 -> 358.6099466 | I9: =IS!I45 -> 381.7042892 | J9: =IS!J45 -> 403.3490735 | K9: =IS!K45 -> 422.9524519 | L9: =IS!L45 -> 449.0513476 | M9: =IS!M45 -> 478.5633681 | N9: =IS!N45 -> 508.0518764 | O9: =IS!O45 -> 536.2690148 | P9: =IS!P45 -> 566.8094677
A10: Plus: Depreciation & Amortization | G10: =IS!G21 ->  | H10: =IS!H21 ->  | I10: =IS!I21 ->  | J10: =IS!J21 ->  | K10: =IS!K21 ->  | L10: =IS!L21 ->  | M10: =IS!M21 ->  | N10: =IS!N21 ->  | O10: =IS!O21 ->  | P10: =IS!P21 -> 
A11: Plus: Amortization of Financing Fees | G11: =IS!G38 ->  | H11: =IS!H38 ->  | I11: =IS!I38 ->  | J11: =IS!J38 ->  | K11: =IS!K38 ->  | L11: =IS!L38 ->  | M11: =IS!M38 ->  | N11: =IS!N38 ->  | O11: =IS!O38 ->  | P11: =IS!P38 -> 
A13: Changes in Working Capital Items
A14: (Inc.) / Dec. in Accounts Receivable | G14: =BS!E9-BS!F9 ->  | H14: =BS!F9-BS!G9 ->  | I14: =BS!G9-BS!H9 ->  | J14: =BS!H9-BS!I9 ->  | K14: =BS!I9-BS!J9 ->  | L14: =BS!J9-BS!K9 ->  | M14: =BS!K9-BS!L9 ->  | N14: =BS!L9-BS!M9 ->  | O14: =BS!M9-BS!N9 ->  | P14: =BS!N9-BS!O9 -> 
A15: (Inc.) / Dec. in Inventories | G15: =BS!E10-BS!F10 ->  | H15: =BS!F10-BS!G10 ->  | I15: =BS!G10-BS!H10 ->  | J15: =BS!H10-BS!I10 ->  | K15: =BS!I10-BS!J10 ->  | L15: =BS!J10-BS!K10 ->  | M15: =BS!K10-BS!L10 ->  | N15: =BS!L10-BS!M10 ->  | O15: =BS!M10-BS!N10 ->  | P15: =BS!N10-BS!O10 -> 
A16: (Inc.) / Dec. in Prepaid and Other Current Assets | G16: =BS!E11-BS!F11 ->  | H16: =BS!F11-BS!G11 ->  | I16: =BS!G11-BS!H11 ->  | J16: =BS!H11-BS!I11 ->  | K16: =BS!I11-BS!J11 ->  | L16: =BS!J11-BS!K11 ->  | M16: =BS!K11-BS!L11 ->  | N16: =BS!L11-BS!M11 ->  | O16: =BS!M11-BS!N11 ->  | P16: =BS!N11-BS!O11 -> 
A18: Inc. / (Dec.) in Accounts Payable | G18: =BS!F20-BS!E20 ->  | H18: =BS!G20-BS!F20 ->  | I18: =BS!H20-BS!G20 ->  | J18: =BS!I20-BS!H20 ->  | K18: =BS!J20-BS!I20 ->  | L18: =BS!K20-BS!J20 ->  | M18: =BS!L20-BS!K20 ->  | N18: =BS!M20-BS!L20 ->  | O18: =BS!N20-BS!M20 ->  | P18: =BS!O20-BS!N20 -> 
A19: Inc. / (Dec.) in Accrued Liabilities | G19: =BS!F21-BS!E21 ->  | H19: =BS!G21-BS!F21 ->  | I19: =BS!H21-BS!G21 ->  | J19: =BS!I21-BS!H21 ->  | K19: =BS!J21-BS!I21 ->  | L19: =BS!K21-BS!J21 ->  | M19: =BS!L21-BS!K21 ->  | N19: =BS!M21-BS!L21 ->  | O19: =BS!N21-BS!M21 ->  | P19: =BS!O21-BS!N21 -> 
A20: Inc. / (Dec.) in Other Current Liabilities | G20: =BS!F22-BS!E22 ->  | H20: =BS!G22-BS!F22 ->  | I20: =BS!H22-BS!G22 ->  | J20: =BS!I22-BS!H22 ->  | K20: =BS!J22-BS!I22 ->  | L20: =BS!K22-BS!J22 ->  | M20: =BS!L22-BS!K22 ->  | N20: =BS!M22-BS!L22 ->  | O20: =BS!N22-BS!M22 ->  | P20: =BS!O22-BS!N22 -> 
A21: (Inc.) / Dec. in Net Working Capital | G21: =SUM(G14:G20) -> 
A22: Cash Flow from Operating Activities | G22: =SUM(G9:G11)+G21 -> 426.1006459 | H22: 458.3578893 | I22: 488.7863889 | J22: 517.5780638 | K22: 544.0120003 | L22: 574.5607965 | M22: 605.7840468 | N22: 640.0855675 | O22: 673.3082387 | P22: 702.6590753
A24: Investing Activities
A25: Capital Expenditures | G25: =-IS!G7*G48 ->  | H25: =-IS!H7*H48 ->  | I25: =-IS!I7*I48 ->  | J25: =-IS!J7*J48 ->  | K25: =-IS!K7*K48 ->  | L25: =-IS!L7*L48 ->  | M25: =-IS!M7*M48 ->  | N25: =-IS!N7*N48 ->  | O25: =-IS!O7*O48 ->  | P25: =-IS!P7*P48 -> 
A26: Other Investing Activities | G26: 0 | H26: 0 | I26: 0 | J26: 0 | K26: 0 | L26: 0 | M26: 0 | N26: 0 | O26: 0 | P26: 0
A27: Cash Flow from Investing Activities | G27: =SUM(G25:G26) -> 
A29: Financing Activities
A30: =BS!A26 -> Revolving Credit Facility | G30: =DS!G24 -> 0 | H30: =DS!H24 -> 0 | I30: =DS!I24 -> 0 | J30: =DS!J24 -> 0 | K30: =DS!K24 -> 0 | L30: =DS!L24 -> 0 | M30: =DS!M24 -> 0 | N30: =DS!N24 -> 0 | O30: =DS!O24 -> 0 | P30: =DS!P24 -> 0
A31: =BS!A27 -> Term Loan A | G31: =DS!G38+DS!G39 -> 0 | H31: =DS!H38+DS!H39 -> 0 | I31: =DS!I38+DS!I39 -> 0 | J31: =DS!J38+DS!J39 -> 0 | K31: =DS!K38+DS!K39 -> 0 | L31: =DS!L38+DS!L39 -> 0 | M31: =DS!M38+DS!M39 -> 0 | N31: =DS!N38+DS!N39 -> 0 | O31: =DS!O38+DS!O39 -> 0 | P31: =DS!P38+DS!P39 -> 0
A32: =BS!A28 -> Term Loan B | G32: =DS!G52+DS!G53 -> -323.1171732 | H32: =DS!H52+DS!H53 -> -348.9010881 | I32: =DS!I52+DS!I53 -> -373.2833446 | J32: =DS!J52+DS!J53 -> -396.5748441 | K32: =DS!K52+DS!K53 -> -418.1686518 | L32: =DS!L52+DS!L53 -> -443.683714 | M32: =DS!M52+DS!M53 -> -469.671881 | N32: =DS!N52+DS!N53 -> -498.528915 | O32: =DS!O52+DS!O53 -> -17.11800599 | P32: =DS!P52+DS!P53 -> 0
A33: =BS!A29 -> Term Loan C | G33: =DS!G66+DS!G67 -> 0 | H33: =DS!H66+DS!H67 -> 0 | I33: =DS!I66+DS!I67 -> 0 | J33: =DS!J66+DS!J67 -> 0 | K33: =DS!K66+DS!K67 -> 0 | L33: =DS!L66+DS!L67 -> 0 | M33: =DS!M66+DS!M67 -> 0 | N33: =DS!N66+DS!N67 -> 0 | O33: =DS!O66+DS!O67 -> 0 | P33: =DS!P66+DS!P67 -> 0
A34: =BS!A30 -> 2nd Lien | G34: =DS!G107 -> 0 | H34: =DS!H107 -> 0 | I34: =DS!I107 -> 0 | J34: =DS!J107 -> 0 | K34: =DS!K107 -> 0 | L34: =DS!L107 -> 0 | M34: =DS!M107 -> 0 | N34: =DS!N107 -> 0 | O34: =DS!O107 -> 0 | P34: =DS!P107 -> 0
A35: =BS!A31 -> Senior Notes | G35: =DS!G119 -> 0 | H35: =DS!H119 -> 0 | I35: =DS!I119 -> 0 | J35: =DS!J119 -> 0 | K35: =DS!K119 -> 0 | L35: =DS!L119 -> 0 | M35: =DS!M119 -> 0 | N35: =DS!N119 -> 0 | O35: =DS!O119 -> 0 | P35: =DS!P119 -> 0
A36: =BS!A32 -> Senior Subordinated Notes | G36: =DS!G130 -> 0 | H36: =DS!H130 -> 0 | I36: =DS!I130 -> 0 | J36: =DS!J130 -> 0 | K36: =DS!K130 -> 0 | L36: =DS!L130 -> 0 | M36: =DS!M130 -> 0 | N36: =DS!N130 -> 0 | O36: =DS!O130 -> 0 | P36: =DS!P130 -> 0
A37: Existing Short-Term Debt | G37: =SUM(DS!G80:G81) ->  | H37: =SUM(DS!H80:H81) ->  | I37: =SUM(DS!I80:I81) ->  | J37: =SUM(DS!J80:J81) ->  | K37: =SUM(DS!K80:K81) ->  | L37: =SUM(DS!L80:L81) ->  | M37: =SUM(DS!M80:M81) ->  | N37: =SUM(DS!N80:N81) ->  | O37: =SUM(DS!O80:O81) ->  | P37: =SUM(DS!P80:P81) -> 
A38: Existing Long-Term Debt | G38: =SUM(DS!G94:G95) ->  | H38: =SUM(DS!H94:H95) ->  | I38: =SUM(DS!I94:I95) ->  | J38: =SUM(DS!J94:J95) ->  | K38: =SUM(DS!K94:K95) ->  | L38: =SUM(DS!L94:L95) ->  | M38: =SUM(DS!M94:M95) ->  | N38: =SUM(DS!N94:N95) ->  | O38: =SUM(DS!O94:O95) ->  | P38: =SUM(DS!P94:P95) -> 
A39: Dividends | G39: 0 | H39: 0 | I39: 0 | J39: 0 | K39: 0 | L39: 0 | M39: 0 | N39: 0 | O39: 0 | P39: 0
A40: Equity Issuance / (Repurchase) | G40: 0 | H40: 0 | I40: 0 | J40: 0 | K40: 0 | L40: 0 | M40: 0 | N40: 0 | O40: 0 | P40: 0
A41: Cash Flow from Financing Activities | G41: =SUM(G30:G40) -> -323.1171732 | H41: -348.9010881 | I41: -373.2833446 | J41: -396.5748441 | K41: -418.1686518 | L41: -443.683714 | M41: -469.671881 | N41: -498.528915 | O41: -17.11800599 | P41: 0
A43: Excess Cash for the Period | G43: =SUM(G22,G27,G41) -> 0 | H43: 0 | I43: 0 | J43: 0 | K43: 0 | L43: 0 | M43: 0 | N43: 0 | O43: 508.9713142 | P43: 549.5514
A44: Beginning Cash Balance | G44: =BS!E8 ->  | H44: =BS!F8 -> 0 | I44: =BS!G8 -> 0 | J44: =BS!H8 -> 0 | K44: =BS!I8 -> 0 | L44: =BS!J8 -> 0 | M44: =BS!K8 -> 0 | N44: =BS!L8 -> 0 | O44: =BS!M8 -> 0 | P44: =BS!N8 -> 508.9713142
A45: Ending Cash Balance | G45: =SUM(G43:G44) -> 0 | H45: 0 | I45: 0 | J45: 0 | K45: 0 | L45: 0 | M45: 0 | N45: 0 | O45: 508.9713142 | P45: 1058.522714
A47: Cash Flow Statement Assumptions
A48: Capital Expenditures (% of sales) | G48: ='A1'!D51 ->  | H48: ='A1'!E51 ->  | I48: ='A1'!F51 ->  | J48: ='A1'!G51 ->  | K48: ='A1'!H51 ->  | L48: ='A1'!I51 ->  | M48: ='A1'!J51 ->  | N48: ='A1'!K51 ->  | O48: ='A1'!L51 ->  | P48: ='A1'!M51 -> 

Sheet DS
A1: ='P1'!A1 -> OLD DOMINION FREIGHT LINE
A2: Debt Schedule
A3: =CONCATENATE("$ in millions, fiscal year ending ",_xll.BDP('P1'!B9&" Equity","CURRENT FULL FISCAL YEAR END")) -> 
G4: Projection Period
F5: =TS!F24 -> Pro Forma | G5: Year 1 | H5: Year 2 | I5: Year 3 | J5: Year 4 | K5: Year 5 | L5: Year 6 | M5: Year 7 | N5: Year 8 | O5: Year 9 | P5: Year 10
A6: Bloomberg function <FWCV> | F6: =TS!F25 ->  | G6: =BS!F6 ->  | H6: =G6+1 -> 
A7: Forward LIBOR Curve | F7: 0.0145 | G7: 0.0145484 | H7: 0.015915 | I7: 0.017041 | J7: 0.01799 | K7: 0.0188429 | L7: 0.0195 | M7: 0.020356 | N7: 0.021 | O7: 0.0215715 | P7: 0.02208
A10: Cash Flow from Operating Activities | G10: =CF!G22 -> 426.1006459 | H10: =CF!H22 -> 458.3578893 | I10: =CF!I22 -> 488.7863889 | J10: =CF!J22 -> 517.5780638 | K10: =CF!K22 -> 544.0120003 | L10: =CF!L22 -> 574.5607965 | M10: =CF!M22 -> 605.7840468 | N10: =CF!N22 -> 640.0855675 | O10: =CF!O22 -> 673.3082387 | P10: =CF!P22 -> 702.6590753
A11: Cash Flow from Investing Activities | G11: =CF!G27 ->  | H11: =CF!H27 ->  | I11: =CF!I27 ->  | J11: =CF!J27 ->  | K11: =CF!K27 ->  | L11: =CF!L27 ->  | M11: =CF!M27 ->  | N11: =CF!N27 ->  | O11: =CF!O27 ->  | P11: =CF!P27 -> 
A12: Cash Available for Debt Repayment | G12: =SUM(G10:G11) -> 323.1171732 | H12: 348.9010881 | I12: 373.2833446 | J12: 396.5748441 | K12: 418.1686518 | L12: 443.683714 | M12: 469.671881 | N12: 498.528915 | O12: 526.0893201 | P12: 549.5514
A13: Total Mandatory Repayments | F13: MinCash | G13: =G38+G52+G66+G80+G94 ->  | H13: -32.89047618 | I13: -32.89047618 | J13: -32.89047618 | K13: -32.89047618 | L13: -32.89047618 | M13: -32.89047618 | N13: -32.89047618 | O13: 0 | P13: 0
A14: Cash From Balance Sheet | F14: 0 | G14: =IF(TS!$P$18=1,BS!E8-$F$14,0) ->  | H14: =IF(TS!$P$18=1,BS!F8-$F$14,0) -> 0 | I14: =IF(TS!$P$18=1,BS!G8-$F$14,0) -> 0 | J14: =IF(TS!$P$18=1,BS!H8-$F$14,0) -> 0 | K14: =IF(TS!$P$18=1,BS!I8-$F$14,0) -> 0 | L14: =IF(TS!$P$18=1,BS!J8-$F$14,0) -> 0 | M14: =IF(TS!$P$18=1,BS!K8-$F$14,0) -> 0 | N14: =IF(TS!$P$18=1,BS!L8-$F$14,0) -> 0 | O14: =IF(TS!$P$18=1,BS!M8-$F$14,0) -> 0 | P14: =IF(TS!$P$18=1,BS!N8-$F$14,0) -> 508.9713142
A15: Cash Available for Optional Debt Repayment | G15: =SUM(G12:G14) -> 290.226697 | H15: 316.0106119 | I15: 340.3928685 | J15: 363.6843679 | K15: 385.2781756 | L15: 410.7932378 | M15: 436.7814048 | N15: 465.6384389 | O15: 526.0893201 | P15: 1058.522714
A17: Revolving Credit Facility
A18: Revolving Credit Facility Size | F18: =CHOOSE(TS!$P$15,'A3'!B7,'A3'!C7,'A3'!D7,'A3'!E7,'A3'!F7) -> 1000
A19: Spread | F19: 0.025
A20: Term | F20: 6
A21: Commitment Fee on Unused Portion | F21: 0.005
A23: Beginning Balance | G23: =BS!E26 -> 0 | H23: =G25 -> 0 | I23: 0 | J23: 0 | K23: 0 | L23: 0 | M23: 0 | N23: 0 | O23: 0 | P23: 0
A24: Drawdown/(Repayment) | G24: =IF(G15>0,-MIN(G15,G23),-MIN(G15,0)) -> 0 | H24: =IF(H15>0,-MIN(H15,H23),-MIN(H15,0)) -> 0 | I24: 0 | J24: 0 | K24: 0 | L24: 0 | M24: 0 | N24: 0 | O24: 0 | P24: 0
A25: Ending Balance | G25: =SUM(G23:G24) -> 0 | H25: 0 | I25: 0 | J25: 0 | K25: 0 | L25: 0 | M25: 0 | N25: 0 | O25: 0 | P25: 0
A27: Interest Rate | G27: =$F$19+G7 -> 0.0395484 | H27: 0.040915 | I27: 0.042041 | J27: 0.04299 | K27: 0.0438429 | L27: 0.0445 | M27: 0.045356 | N27: 0.046 | O27: 0.0465715 | P27: 0.04708
A28: =IF(TS!P19=1,"Average Interest Expense","Interest Expense") -> Average Interest Expense | G28: =IF(TS!$P$19=1,G27*AVERAGE(G23,G25),G27*G25) -> 0 | H28: =IF(TS!$P$19=1,H27*AVERAGE(H23,H25),H27*H25) -> 0 | I28: =IF(TS!$P$19=1,I27*AVERAGE(I23,I25),I27*I25) -> 0 | J28: =IF(TS!$P$19=1,J27*AVERAGE(J23,J25),J27*J25) -> 0 | K28: =IF(TS!$P$19=1,K27*AVERAGE(K23,K25),K27*K25) -> 0 | L28: =IF(TS!$P$19=1,L27*AVERAGE(L23,L25),L27*L25) -> 0 | M28: =IF(TS!$P$19=1,M27*AVERAGE(M23,M25),M27*M25) -> 0 | N28: =IF(TS!$P$19=1,N27*AVERAGE(N23,N25),N27*N25) -> 0 | O28: =IF(TS!$P$19=1,O27*AVERAGE(O23,O25),O27*O25) -> 0 | P28: =IF(TS!$P$19=1,P27*AVERAGE(P23,P25),P27*P25) -> 0
A29: Commitment Fee | G29: =$F$21*($F$18-AVERAGE(G23,G25)) -> 5 | H29: 5 | I29: 5 | J29: 5 | K29: 5 | L29: 5 | M29: 5 | N29: 5 | O29: 5 | P29: 5
A31: Term Loan A Facility
A32: Size | F32: =TS!B11 -> 0
A33: Spread | F33: 0
A34: Term | F34: 0
A35: Repayment Schedule | G35: 0 | H35: 0 | I35: 0 | J35: 0 | K35: 0 | L35: =1-SUM(G35:K35) -> 1
A37: Beginning Balance | G37: =BS!E27 -> 0 | H37: =G40 -> 0 | I37: 0 | J37: 0 | K37: 0 | L37: 0 | M37: 0 | N37: 0 | O37: 0 | P37: 0
A38: Mandatory Repayments | G38: =IF((AND(G37>0,G37>($F$32*G35))),$F$32*-G35,0) -> 0 | H38: 0 | I38: 0 | J38: 0 | K38: 0 | L38: 0 | M38: 0 | N38: 0 | O38: 0 | P38: 0
A39: Optional Repayments | G39: =IF(TS!$P$17=1,-MIN(G15+G24,G37+G38),0) -> 0 | H39: =IF(TS!$P$17=1,-MIN(H15+H24,H37+H38),0) -> 0 | I39: =IF(TS!$P$17=1,-MIN(I15+I24,I37+I38),0) -> 0 | J39: =IF(TS!$P$17=1,-MIN(J15+J24,J37+J38),0) -> 0 | K39: =IF(TS!$P$17=1,-MIN(K15+K24,K37+K38),0) -> 0 | L39: =IF(TS!$P$17=1,-MIN(L15+L24,L37+L38),0) -> 0 | M39: =IF(TS!$P$17=1,-MIN(M15+M24,M37+M38),0) -> 0 | N39: =IF(TS!$P$17=1,-MIN(N15+N24,N37+N38),0) -> 0 | O39: =IF(TS!$P$17=1,-MIN(O15+O24,O37+O38),0) -> 0 | P39: =IF(TS!$P$17=1,-MIN(P15+P24,P37+P38),0) -> 0
A40: Ending Balanace | G40: =SUM(G37:G39) -> 0 | H40: 0 | I40: 0 | J40: 0 | K40: 0 | L40: 0 | M40: 0 | N40: 0 | O40: 0 | P40: 0
A42: Interest Rate | G42: =$F$33+G7 -> 0.0145484 | H42: 0.015915 | I42: 0.017041 | J42: 0.01799 | K42: 0.0188429 | L42: 0.0195 | M42: 0.020356 | N42: 0.021 | O42: 0.0215715 | P42: 0.02208
A43: Interest Expense | G43: =IF(TS!$P$19,G42*AVERAGE(G37,G40),G42*G40) -> 0 | H43: =IF(TS!$P$19,H42*AVERAGE(H37,H40),H42*H40) -> 0 | I43: =IF(TS!$P$19,I42*AVERAGE(I37,I40),I42*I40) -> 0 | J43: =IF(TS!$P$19,J42*AVERAGE(J37,J40),J42*J40) -> 0 | K43: =IF(TS!$P$19,K42*AVERAGE(K37,K40),K42*K40) -> 0 | L43: =IF(TS!$P$19,L42*AVERAGE(L37,L40),L42*L40) -> 0 | M43: =IF(TS!$P$19,M42*AVERAGE(M37,M40),M42*M40) -> 0 | N43: =IF(TS!$P$19,N42*AVERAGE(N37,N40),N42*N40) -> 0 | O43: =IF(TS!$P$19,O42*AVERAGE(O37,O40),O42*O40) -> 0 | P43: =IF(TS!$P$19,P42*AVERAGE(P37,P40),P42*P40) -> 0
A45: Term Loan B Facility
A46: Size | F46: =TS!B12 -> 3289.047618
A47: Spread | F47: 0.01
A48: Term | F48: 9
A49: Repayment Schedule | F49: 0.01 | G49: Per Annum, Bullet at Maturity
A51: Beginning Balance | G51: =BS!E28 -> 3289.047618 | H51: =G54 -> 2965.930444 | I51: 2617.029356 | J51: 2243.746012 | K51: 1847.171168 | L51: 1429.002516 | M51: 985.318802 | N51: 515.646921 | O51: 17.11800599 | P51: 0
A52: Mandatory Repayments | G52: =IF((AND(G51>0,G51>($F46*$F49))),$F46*-$F49,0) -> -32.89047618 | H52: -32.89047618 | I52: -32.89047618 | J52: -32.89047618 | K52: -32.89047618 | L52: -32.89047618 | M52: -32.89047618 | N52: -32.89047618 | O52: 0 | P52: 0
A53: Optional Repayments | G53: =IF(TS!$P$17=1,-MIN(G15+G24+G39,G51+G52),0) -> -290.226697 | H53: =IF(TS!$P$17=1,-MIN(H15+H24+H39,H51+H52),0) -> -316.0106119 | I53: =IF(TS!$P$17=1,-MIN(I15+I24+I39,I51+I52),0) -> -340.3928685 | J53: =IF(TS!$P$17=1,-MIN(J15+J24+J39,J51+J52),0) -> -363.6843679 | K53: =IF(TS!$P$17=1,-MIN(K15+K24+K39,K51+K52),0) -> -385.2781756 | L53: =IF(TS!$P$17=1,-MIN(L15+L24+L39,L51+L52),0) -> -410.7932378 | M53: =IF(TS!$P$17=1,-MIN(M15+M24+M39,M51+M52),0) -> -436.7814048 | N53: =IF(TS!$P$17=1,-MIN(N15+N24+N39,N51+N52),0) -> -465.6384389 | O53: =IF(TS!$P$17=1,-MIN(O15+O24+O39,O51+O52),0) -> -17.11800599 | P53: =IF(TS!$P$17=1,-MIN(P15+P24+P39,P51+P52),0) -> 0
A54: Ending Balanace | G54: =SUM(G51:G53) -> 2965.930444 | H54: 2617.029356 | I54: 2243.746012 | J54: 1847.171168 | K54: 1429.002516 | L54: 985.318802 | M54: 515.646921 | N54: 17.11800599 | O54: 0 | P54: 0
A56: Interest Rate | G56: =$F$47+G7 -> 0.0245484 | H56: 0.025915 | I56: 0.027041 | J56: 0.02799 | K56: 0.0288429 | L56: 0.0295 | M56: 0.030356 | N56: 0.031 | O56: 0.0315715 | P56: 0.03208
A57: Interest Expense | G57: =IF(TS!$P$19=1,G56*AVERAGE(G51,G54),G56*G54) -> 76.77485173 | H57: =IF(TS!$P$19=1,H56*AVERAGE(H51,H54),H56*H54) -> 72.34120162 | I57: =IF(TS!$P$19=1,I56*AVERAGE(I51,I54),I56*I54) -> 65.72011337 | J57: =IF(TS!$P$19=1,J56*AVERAGE(J51,J54),J56*J54) -> 57.25238593 | K57: =IF(TS!$P$19=1,K56*AVERAGE(K51,K54),K56*K54) -> 47.24717497 | L57: =IF(TS!$P$19=1,L56*AVERAGE(L51,L54),L56*L54) -> 35.61123944 | M57: =IF(TS!$P$19=1,M56*AVERAGE(M51,M54),M56*M54) -> 22.78165774 | N57: =IF(TS!$P$19=1,N56*AVERAGE(N51,N54),N56*N54) -> 8.257856369 | O57: =IF(TS!$P$19=1,O56*AVERAGE(O51,O54),O56*O54) -> 0.2702205631 | P57: =IF(TS!$P$19=1,P56*AVERAGE(P51,P54),P56*P54) -> 0
A59: Term Loan C Facility
A60: Size | F60: =TS!B13 -> 0
A61: Spread | F61: 0
A62: Term | F62: 0
A63: Repayment Schedule | F63: 0.01 | G63: Per Annum, Bullet at Maturity
A65: Beginning Balance | G65: =BS!E29 -> 0 | H65: =G68 -> 0 | I65: 0 | J65: 0 | K65: 0 | L65: 0 | M65: 0 | N65: 0 | O65: 0 | P65: 0
A66: Mandatory Repayments | G66: =IF((AND(G65>0,G65>($F60*$F63))),$F60*-$F63,0) -> 0 | H66: 0 | I66: 0 | J66: 0 | K66: 0 | L66: 0 | M66: 0 | N66: 0 | O66: 0 | P66: 0
A67: Optional Repayments | G67: =IF(TS!$P$17=1,-MIN(G15+G24+G39+G53,G65+G66),0) -> 0 | H67: =IF(TS!$P$17=1,-MIN(H15+H24+H39+H53,H65+H66),0) -> 0 | I67: =IF(TS!$P$17=1,-MIN(I15+I24+I39+I53,I65+I66),0) -> 0 | J67: =IF(TS!$P$17=1,-MIN(J15+J24+J39+J53,J65+J66),0) -> 0 | K67: =IF(TS!$P$17=1,-MIN(K15+K24+K39+K53,K65+K66),0) -> 0 | L67: =IF(TS!$P$17=1,-MIN(L15+L24+L39+L53,L65+L66),0) -> 0 | M67: =IF(TS!$P$17=1,-MIN(M15+M24+M39+M53,M65+M66),0) -> 0 | N67: =IF(TS!$P$17=1,-MIN(N15+N24+N39+N53,N65+N66),0) -> 0 | O67: =IF(TS!$P$17=1,-MIN(O15+O24+O39+O53,O65+O66),0) -> 0 | P67: =IF(TS!$P$17=1,-MIN(P15+P24+P39+P53,P65+P66),0) -> 0
A68: Ending Balanace | G68: =SUM(G65:G67) -> 0 | H68: 0 | I68: 0 | J68: 0 | K68: 0 | L68: 0 | M68: 0 | N68: 0 | O68: 0 | P68: 0
A70: Interest Rate | G70: =$F61+G$7 -> 0.0145484 | H70: 0.015915 | I70: 0.017041 | J70: 0.01799 | K70: 0.0188429 | L70: 0.0195 | M70: 0.020356 | N70: 0.021 | O70: 0.0215715 | P70: 0.02208
A71: Interest Expense | G71: =IF(TS!$P$19=1,G70*AVERAGE(G65,G68),G70*G68) -> 0 | H71: =IF(TS!$P$19=1,H70*AVERAGE(H65,H68),H70*H68) -> 0 | I71: =IF(TS!$P$19=1,I70*AVERAGE(I65,I68),I70*I68) -> 0 | J71: =IF(TS!$P$19=1,J70*AVERAGE(J65,J68),J70*J68) -> 0 | K71: =IF(TS!$P$19=1,K70*AVERAGE(K65,K68),K70*K68) -> 0 | L71: =IF(TS!$P$19=1,L70*AVERAGE(L65,L68),L70*L68) -> 0 | M71: =IF(TS!$P$19=1,M70*AVERAGE(M65,M68),M70*M68) -> 0 | N71: =IF(TS!$P$19=1,N70*AVERAGE(N65,N68),N70*N68) -> 0 | O71: =IF(TS!$P$19=1,O70*AVERAGE(O65,O68),O70*O68) -> 0 | P71: =IF(TS!$P$19=1,P70*AVERAGE(P65,P68),P70*P68) -> 0
A73: Existing Short-Term Debt
A74: Size | F74: 0
A75: Spread | F75: 0
A76: Remaining Term | F76: 0
A77: Repayment Schedule | F77: 0 | G77: Per Annum, Bullet at Maturity
A79: Beginning Balance | G79: =BS!E23 ->  | H79: =G82 -> 
A80: Mandatory Repayments | G80: =IF((AND(G79>0,G79>($F74*$F77))),$F74*-$F77,0) -> 
A81: Optional Repayments | G81: =IF(TS!$P$17=1,-MIN(G15+G24+G39+G53+G67,G79+G80),0) -> 0 | H81: =IF(TS!$P$17=1,-MIN(H15+H24+H39+H53+H67,H79+H80),0) -> 0 | I81: =IF(TS!$P$17=1,-MIN(I15+I24+I39+I53+I67,I79+I80),0) -> 0 | J81: =IF(TS!$P$17=1,-MIN(J15+J24+J39+J53+J67,J79+J80),0) -> 0 | K81: =IF(TS!$P$17=1,-MIN(K15+K24+K39+K53+K67,K79+K80),0) -> 0 | L81: =IF(TS!$P$17=1,-MIN(L15+L24+L39+L53+L67,L79+L80),0) -> 0 | M81: =IF(TS!$P$17=1,-MIN(M15+M24+M39+M53+M67,M79+M80),0) -> 0 | N81: =IF(TS!$P$17=1,-MIN(N15+N24+N39+N53+N67,N79+N80),0) -> 0 | O81: =IF(TS!$P$17=1,-MIN(O15+O24+O39+O53+O67,O79+O80),0) -> 0 | P81: =IF(TS!$P$17=1,-MIN(P15+P24+P39+P53+P67,P79+P80),0) -> 0
A82: Ending Balanace | G82: =SUM(G79:G81) -> 
A84: Interest Rate | G84: =$F75+G$7 -> 0.0145484 | H84: 0.015915 | I84: 0.017041 | J84: 0.01799 | K84: 0.0188429 | L84: 0.0195 | M84: 0.020356 | N84: 0.021 | O84: 0.0215715 | P84: 0.02208
A85: Interest Expense | G85: =IF(TS!$P$19=1,G84*AVERAGE(G79,G82),G84*G82) ->  | H85: =IF(TS!$P$19=1,H84*AVERAGE(H79,H82),H84*H82) ->  | I85: =IF(TS!$P$19=1,I84*AVERAGE(I79,I82),I84*I82) ->  | J85: =IF(TS!$P$19=1,J84*AVERAGE(J79,J82),J84*J82) ->  | K85: =IF(TS!$P$19=1,K84*AVERAGE(K79,K82),K84*K82) ->  | L85: =IF(TS!$P$19=1,L84*AVERAGE(L79,L82),L84*L82) ->  | M85: =IF(TS!$P$19=1,M84*AVERAGE(M79,M82),M84*M82) ->  | N85: =IF(TS!$P$19=1,N84*AVERAGE(N79,N82),N84*N82) ->  | O85: =IF(TS!$P$19=1,O84*AVERAGE(O79,O82),O84*O82) ->  | P85: =IF(TS!$P$19=1,P84*AVERAGE(P79,P82),P84*P82) -> 
A87: Existing Long-Term Debt
A88: Size | F88: 0
A89: Spread | F89: 0
A90: Remaining Term | F90: 0
A91: Repayment Schedule | F91: 0 | G91: Per Annum, Bullet at Maturity
A93: Beginning Balance | G93: =BS!E33 ->  | H93: =G96 -> 
A94: Mandatory Repayments | G94: =IF((AND(G93>0,G93>($F88*$F91))),$F88*-$F91,0) -> 
A95: Optional Repayments | G95: =IF(TS!$P$17=1,-MIN(G15+G24+G39+G53+G67+G81,G93+G94),0) -> 0 | H95: =IF(TS!$P$17=1,-MIN(H15+H24+H39+H53+H67+H81,H93+H94),0) -> 0 | I95: =IF(TS!$P$17=1,-MIN(I15+I24+I39+I53+I67+I81,I93+I94),0) -> 0 | J95: =IF(TS!$P$17=1,-MIN(J15+J24+J39+J53+J67+J81,J93+J94),0) -> 0 | K95: =IF(TS!$P$17=1,-MIN(K15+K24+K39+K53+K67+K81,K93+K94),0) -> 0 | L95: =IF(TS!$P$17=1,-MIN(L15+L24+L39+L53+L67+L81,L93+L94),0) -> 0 | M95: =IF(TS!$P$17=1,-MIN(M15+M24+M39+M53+M67+M81,M93+M94),0) -> 0 | N95: =IF(TS!$P$17=1,-MIN(N15+N24+N39+N53+N67+N81,N93+N94),0) -> 0 | O95: =IF(TS!$P$17=1,-MIN(O15+O24+O39+O53+O67+O81,O93+O94),0) -> 0 | P95: =IF(TS!$P$17=1,-MIN(P15+P24+P39+P53+P67+P81,P93+P94),0) -> 0
A96: Ending Balanace | G96: =SUM(G93:G95) -> 
A98: Interest Rate | G98: =$F89+G$7 -> 0.0145484 | H98: 0.015915 | I98: 0.017041 | J98: 0.01799 | K98: 0.0188429 | L98: 0.0195 | M98: 0.020356 | N98: 0.021 | O98: 0.0215715 | P98: 0.02208
A99: Interest Expense | G99: =IF(TS!$P$19=1,G98*AVERAGE(G93,G96),G98*G96) ->  | H99: =IF(TS!$P$19=1,H98*AVERAGE(H93,H96),H98*H96) ->  | I99: =IF(TS!$P$19=1,I98*AVERAGE(I93,I96),I98*I96) ->  | J99: =IF(TS!$P$19=1,J98*AVERAGE(J93,J96),J98*J96) ->  | K99: =IF(TS!$P$19=1,K98*AVERAGE(K93,K96),K98*K96) ->  | L99: =IF(TS!$P$19=1,L98*AVERAGE(L93,L96),L98*L96) ->  | M99: =IF(TS!$P$19=1,M98*AVERAGE(M93,M96),M98*M96) ->  | N99: =IF(TS!$P$19=1,N98*AVERAGE(N93,N96),N98*N96) ->  | O99: =IF(TS!$P$19=1,O98*AVERAGE(O93,O96),O98*O96) ->  | P99: =IF(TS!$P$19=1,P98*AVERAGE(P93,P96),P98*P96) -> 
A101: 2nd Lien
A102: Size | F102: =TS!B14 -> 0
A103: Spread | F103: 0
A104: Term | F104: 0
A106: Beginning Balance | G106: =TS!B14 -> 0 | H106: =G108 -> 0 | I106: 0 | J106: 0 | K106: 0 | L106: 0 | M106: 0 | N106: 0 | O106: 0 | P106: 0
A107: Repayment | G107: 0 | H107: 0 | I107: 0 | J107: 0 | K107: 0 | L107: 0 | M107: 0 | N107: 0 | O107: 0 | P107: 0
A108: Ending Balanace | G108: =SUM(G106:G107) -> 0 | H108: 0 | I108: 0 | J108: 0 | K108: 0 | L108: 0 | M108: 0 | N108: 0 | O108: 0 | P108: 0
A110: Interest Rate | G110: =$F103+G$7 -> 0.0145484 | H110: 0.015915 | I110: 0.017041 | J110: 0.01799 | K110: 0.0188429 | L110: 0.0195 | M110: 0.020356 | N110: 0.021 | O110: 0.0215715 | P110: 0.02208
A111: Interest Expense | G111: =IF(TS!$P$19=1,G110*AVERAGE(G106,G108),G110*G108) -> 0 | H111: =IF(TS!$P$19=1,H110*AVERAGE(H106,H108),H110*H108) -> 0 | I111: =IF(TS!$P$19=1,I110*AVERAGE(I106,I108),I110*I108) -> 0 | J111: =IF(TS!$P$19=1,J110*AVERAGE(J106,J108),J110*J108) -> 0 | K111: =IF(TS!$P$19=1,K110*AVERAGE(K106,K108),K110*K108) -> 0 | L111: =IF(TS!$P$19=1,L110*AVERAGE(L106,L108),L110*L108) -> 0 | M111: =IF(TS!$P$19=1,M110*AVERAGE(M106,M108),M110*M108) -> 0 | N111: =IF(TS!$P$19=1,N110*AVERAGE(N106,N108),N110*N108) -> 0 | O111: =IF(TS!$P$19=1,O110*AVERAGE(O106,O108),O110*O108) -> 0 | P111: =IF(TS!$P$19=1,P110*AVERAGE(P106,P108),P110*P108) -> 0
A113: Senior Notes
A114: Size | F114: =TS!B15 -> 0
A115: Coupon | F115: 0
A116: Term | F116: 0
A118: Beginning Balance | G118: =BS!E31 -> 0 | H118: =G120 -> 0 | I118: 0 | J118: 0 | K118: 0 | L118: 0 | M118: 0 | N118: 0 | O118: 0 | P118: 0
A119: Repayment | G119: 0 | H119: 0 | I119: 0 | J119: 0 | K119: 0 | L119: 0 | M119: 0 | N119: 0 | O119: 0 | P119: 0
A120: Ending Balanace | G120: =SUM(G118:G119) -> 0 | H120: 0 | I120: 0 | J120: 0 | K120: 0 | L120: 0 | M120: 0 | N120: 0 | O120: 0 | P120: 0
A122: Interest Expense | G122: =$F$115*AVERAGE(G118,G120) -> 0 | H122: 0 | I122: 0 | J122: 0 | K122: 0 | L122: 0 | M122: 0 | N122: 0 | O122: 0 | P122: 0
A124: Senior Subordinated Notes
A125: Size | F125: =TS!B16 -> 0
A126: Coupon | F126: 0
A127: Term | F127: 10
A129: Beginning Balance | G129: =BS!E32 -> 0 | H129: =G131 -> 0 | I129: 0 | J129: 0 | K129: 0 | L129: 0 | M129: 0 | N129: 0 | O129: 0 | P129: 0
A130: Repayment | G130: 0 | H130: 0 | I130: 0 | J130: 0 | K130: 0 | L130: 0 | M130: 0 | N130: 0 | O130: 0 | P130: 0
A131: Ending Balanace | G131: =SUM(G129:G130) -> 0 | H131: 0 | I131: 0 | J131: 0 | K131: 0 | L131: 0 | M131: 0 | N131: 0 | O131: 0 | P131: 0
A133: Interest Expense | G133: =$F$126*AVERAGE(G129,G131) -> 0 | H133: 0 | I133: 0 | J133: 0 | K133: 0 | L133: 0 | M133: 0 | N133: 0 | O133: 0 | P133: 0

Sheet RA
A1: ='P1'!A1 -> OLD DOMINION FREIGHT LINE
A2: Returns Analysis
A3: =CONCATENATE("$ in millions, fiscal year ending ",_xll.BDP('P1'!B9&" Equity","CURRENT FULL FISCAL YEAR END")) -> 
E4: Projection Period
D5: =TS!F24 -> Pro Forma | E5: Year 1 | F5: Year 2 | G5: Year 3 | H5: Year 4 | I5: Year 5 | J5: Year 6 | K5: Year 7 | L5: Year 8 | M5: Year 9 | N5: Year 10
D6: =TS!F25 ->  | E6: =BS!F6 ->  | F6: =E6+1 -> 
A7: Entry EBITDA Multiple | C7: 9.4
A8: Initial Equity Investment | D8: =TS!B17 -> 
A9: EBITDA | E9: =IS!G18 ->  | F9: =IS!H18 ->  | G9: =IS!I18 ->  | H9: =IS!J18 ->  | I9: =IS!K18 ->  | J9: =IS!L18 ->  | K9: =IS!M18 ->  | L9: =IS!N18 ->  | M9: =IS!O18 ->  | N9: =IS!P18 -> 
A10: Exit EBITDA Multiple | C10: 8
A11: Enterprise Value at Exit | E11: =E9*$C$10 -> 
A13: Less: Net Debt
A14: Revolving Credit Facility | E14: =BS!F26 -> 0 | F14: =BS!G26 -> 0 | G14: =BS!H26 -> 0 | H14: =BS!I26 -> 0 | I14: =BS!J26 -> 0 | J14: =BS!K26 -> 0 | K14: =BS!L26 -> 0 | L14: =BS!M26 -> 0 | M14: =BS!N26 -> 0 | N14: =BS!O26 -> 0
A15: Term Loan A | E15: =BS!F27 -> 0 | F15: =BS!G27 -> 0 | G15: =BS!H27 -> 0 | H15: =BS!I27 -> 0 | I15: =BS!J27 -> 0 | J15: =BS!K27 -> 0 | K15: =BS!L27 -> 0 | L15: =BS!M27 -> 0 | M15: =BS!N27 -> 0 | N15: =BS!O27 -> 0
A16: Term Loan B | E16: =BS!F28 -> 2965.930444 | F16: =BS!G28 -> 2617.029356 | G16: =BS!H28 -> 2243.746012 | H16: =BS!I28 -> 1847.171168 | I16: =BS!J28 -> 1429.002516 | J16: =BS!K28 -> 985.318802 | K16: =BS!L28 -> 515.646921 | L16: =BS!M28 -> 17.11800599 | M16: =BS!N28 -> 0 | N16: =BS!O28 -> 0
A17: Term Loan C | E17: =BS!F29 -> 0 | F17: =BS!G29 -> 0 | G17: =BS!H29 -> 0 | H17: =BS!I29 -> 0 | I17: =BS!J29 -> 0 | J17: =BS!K29 -> 0 | K17: =BS!L29 -> 0 | L17: =BS!M29 -> 0 | M17: =BS!N29 -> 0 | N17: =BS!O29 -> 0
A18: 2nd Lien | E18: =BS!F30 -> 0 | F18: =BS!G30 -> 0 | G18: =BS!H30 -> 0 | H18: =BS!I30 -> 0 | I18: =BS!J30 -> 0 | J18: =BS!K30 -> 0 | K18: =BS!L30 -> 0 | L18: =BS!M30 -> 0 | M18: =BS!N30 -> 0 | N18: =BS!O30 -> 0
A19: Senior Notes | E19: =BS!F31 -> 0 | F19: =BS!G31 -> 0 | G19: =BS!H31 -> 0 | H19: =BS!I31 -> 0 | I19: =BS!J31 -> 0 | J19: =BS!K31 -> 0 | K19: =BS!L31 -> 0 | L19: =BS!M31 -> 0 | M19: =BS!N31 -> 0 | N19: =BS!O31 -> 0
A20: Senior Subordinated Notes | E20: =BS!F32 -> 0 | F20: =BS!G32 -> 0 | G20: =BS!H32 -> 0 | H20: =BS!I32 -> 0 | I20: =BS!J32 -> 0 | J20: =BS!K32 -> 0 | K20: =BS!L32 -> 0 | L20: =BS!M32 -> 0 | M20: =BS!N32 -> 0 | N20: =BS!O32 -> 0
A21: Existing Long Term Borrowing | E21: =BS!F33 ->  | F21: =BS!G33 ->  | G21: =BS!H33 ->  | H21: =BS!I33 ->  | I21: =BS!J33 ->  | J21: =BS!K33 ->  | K21: =BS!L33 ->  | L21: =BS!M33 ->  | M21: =BS!N33 ->  | N21: =BS!O33 -> 
A22: Total Debt | E22: =SUM(E14:E21) -> 2965.930444 | F22: 2617.029356 | G22: 2243.746012 | H22: 1847.171168 | I22: 1429.002516 | J22: 985.318802 | K22: 515.646921 | L22: 17.11800599 | M22: 0 | N22: 0
A23: Less: Cash and Cash Equivalents | E23: =BS!F8 -> 0 | F23: =BS!G8 -> 0 | G23: =BS!H8 -> 0 | H23: =BS!I8 -> 0 | I23: =BS!J8 -> 0 | J23: =BS!K8 -> 0 | K23: =BS!L8 -> 0 | L23: =BS!M8 -> 0 | M23: =BS!N8 -> 508.9713142 | N23: =BS!O8 -> 1058.522714
A24: Net Debt | E24: =E22-E23 -> 2965.930444 | F24: 2617.029356 | G24: 2243.746012 | H24: 1847.171168 | I24: 1429.002516 | J24: 985.318802 | K24: 515.646921 | L24: 17.11800599 | M24: -508.9713142 | N24: -1058.522714
A26: Equity Value at Exit | E26: =E11-E24 -> 2525.166143 | F26: 3219.226227 | G26: 3914.896298 | H26: 4604.741451 | I26: 5280.986607 | J26: 5993.069886 | K26: 6741.877315 | L26: 7530.707199 | M26: 8358.709527 | N26: 9222.250456
A28: Cash Return | E28: =IF(ISERROR(E26/$D$8),"NM",E26/$D$8) -> 1.468281434 | F28: 1.87184915 | G28: 2.276353009 | H28: 2.677469915 | I28: 3.070678976 | J28: 3.484726448 | K28: 3.920127519 | L28: 4.378800022 | M28: 4.860249707 | N28: 5.362363644
E30: =E5 -> Year 1 | F30: Year 2 | G30: Year 3 | H30: Year 4 | I30: Year 5 | J30: Year 6 | K30: Year 7 | L30: Year 8 | M30: Year 9 | N30: Year 10
E31: =E6 -> 
A32: Initial Equity Investment | E32: =-D8 ->  | F32: =E32 -> 
A33: Equity Proceeds | E33: =E26 -> 2525.166143 | F33: 0 | G33: 0 | H33: 0 | I33: 0 | J33: 0 | K33: 0 | L33: 0 | M33: 0 | N33: 0
F34: =F$26+SUM(F33) -> 3219.226227 | G34: 0 | H34: 0 | I34: 0 | J34: 0 | K34: 0 | L34: 0 | M34: 0 | N34: 0
G35: =G$26+SUM(G33:G34) -> 3914.896298 | H35: 0 | I35: 0 | J35: 0 | K35: 0 | L35: 0 | M35: 0 | N35: 0
H36: =H$26+SUM(H33:H35) -> 4604.741451 | I36: 0 | J36: 0 | K36: 0 | L36: 0 | M36: 0 | N36: 0
I37: =I$26+SUM(I33:I36) -> 5280.986607 | J37: 0 | K37: 0 | L37: 0 | M37: 0 | N37: 0
J38: =J$26+SUM(J33:J37) -> 5993.069886 | K38: 0 | L38: 0 | M38: 0 | N38: 0
K39: =K$26+SUM(K33:K38) -> 6741.877315 | L39: 0 | M39: 0 | N39: 0
L40: =L$26+SUM(L33:L39) -> 7530.707199 | M40: 0 | N40: 0
M41: =M$26+SUM(M33:M40) -> 8358.709527 | N41: 0
N42: =N$26+SUM(N33:N41) -> 9222.250456
A43: IRR | E43: =IF(ISERROR(IRR(E32:E42)),"NA",IRR(E32:E42)) -> NA | F43: NA | G43: NA | H43: NA | I43: NA | J43: NA | K43: NA | L43: NA | M43: NA | N43: NA

Sheet A1
A1: Assumptions Page 1 - Income Statement and Cash Flow Statement
D3: Projection Period
D4: Year 1 | E4: Year 2 | F4: Year 3 | G4: Year 4 | H4: Year 5 | I4: Year 6 | J4: Year 7 | K4: Year 8 | L4: Year 9 | M4: Year 10
D5: =TS!G25 ->  | E5: =D5+1 -> 
A7: Income Statement Assumptions
A8: Sales (% growth) | D8: =CHOOSE(TS!$P$16,D9,D10,D11,D12,D13) ->  | E8: =CHOOSE(TS!$P$16,E9,E10,E11,E12,E13) ->  | F8: =CHOOSE(TS!$P$16,F9,F10,F11,F12,F13) ->  | G8: =CHOOSE(TS!$P$16,G9,G10,G11,G12,G13) ->  | H8: =CHOOSE(TS!$P$16,H9,H10,H11,H12,H13) -> 0.04 | I8: =CHOOSE(TS!$P$16,I9,I10,I11,I12,I13) -> 0.04 | J8: =CHOOSE(TS!$P$16,J9,J10,J11,J12,J13) -> 0.04 | K8: =CHOOSE(TS!$P$16,K9,K10,K11,K12,K13) -> 0.04 | L8: =CHOOSE(TS!$P$16,L9,L10,L11,L12,L13) -> 0.04 | M8: =CHOOSE(TS!$P$16,M9,M10,M11,M12,M13) -> 0.04
A9: Base | C9: 1 | D9: =_xll.BDP('P1'!$B$9&" Equity","BEST SALES MEDIAN","BEST FPERIOD OVERRIDE=2FY")/IS!F7-1 ->  | E9: =D9+($H$9-$D$9)/4 ->  | F9: =E9+($H$9-$D$9)/4 ->  | H9: 0.04 | I9: =H9 -> 0.04 | J9: =I9 -> 0.04 | K9: 0.04 | L9: 0.04 | M9: 0.04
A10: Sponsor | C10: 2
A11: Management | C11: 3
A12: Downside 1 | C12: 4
A13: Downside 2 | C13: 5
A15: Cost of Goods Sold (% sales) | D15: =CHOOSE(TS!$P$16,D16,D17,D18,D19,D20) ->  | E15: =CHOOSE(TS!$P$16,E16,E17,E18,E19,E20) ->  | F15: =CHOOSE(TS!$P$16,F16,F17,F18,F19,F20) ->  | G15: =CHOOSE(TS!$P$16,G16,G17,G18,G19,G20) ->  | H15: =CHOOSE(TS!$P$16,H16,H17,H18,H19,H20) ->  | I15: =CHOOSE(TS!$P$16,I16,I17,I18,I19,I20) ->  | J15: =CHOOSE(TS!$P$16,J16,J17,J18,J19,J20) ->  | K15: =CHOOSE(TS!$P$16,K16,K17,K18,K19,K20) ->  | L15: =CHOOSE(TS!$P$16,L16,L17,L18,L19,L20) ->  | M15: =CHOOSE(TS!$P$16,M16,M17,M18,M19,M20) -> 
A16: Base | C16: 1 | D16: =IS!F50 ->  | E16: =D16 ->  | F16: =E16 -> 
A17: Sponsor | C17: 2
A18: Management | C18: 3
A19: Downside 1 | C19: 4
A20: Downside 2 | C20: 5
A22: SG&A (% of sales) | D22: =CHOOSE(TS!$P$16,D23,D24,D25,D26,D27) ->  | E22: =CHOOSE(TS!$P$16,E23,E24,E25,E26,E27) ->  | F22: =CHOOSE(TS!$P$16,F23,F24,F25,F26,F27) ->  | G22: =CHOOSE(TS!$P$16,G23,G24,G25,G26,G27) ->  | H22: =CHOOSE(TS!$P$16,H23,H24,H25,H26,H27) ->  | I22: =CHOOSE(TS!$P$16,I23,I24,I25,I26,I27) ->  | J22: =CHOOSE(TS!$P$16,J23,J24,J25,J26,J27) ->  | K22: =CHOOSE(TS!$P$16,K23,K24,K25,K26,K27) ->  | L22: =CHOOSE(TS!$P$16,L23,L24,L25,L26,L27) ->  | M22: =CHOOSE(TS!$P$16,M23,M24,M25,M26,M27) -> 
A23: Base | C23: 1 | D23: =IS!F51 ->  | E23: =D23 ->  | F23: =E23 -> 
A24: Sponsor | C24: 2
A25: Management | C25: 3
A26: Downside 1 | C26: 4
A27: Downside 2 | C27: 5
A29: Other Expense / (Income) (% of sales) | D29: =CHOOSE(TS!$P$16,D30,D31,D32,D33,D34) ->  | E29: =CHOOSE(TS!$P$16,E30,E31,E32,E33,E34) ->  | F29: =CHOOSE(TS!$P$16,F30,F31,F32,F33,F34) ->  | G29: =CHOOSE(TS!$P$16,G30,G31,G32,G33,G34) ->  | H29: =CHOOSE(TS!$P$16,H30,H31,H32,H33,H34) ->  | I29: =CHOOSE(TS!$P$16,I30,I31,I32,I33,I34) ->  | J29: =CHOOSE(TS!$P$16,J30,J31,J32,J33,J34) ->  | K29: =CHOOSE(TS!$P$16,K30,K31,K32,K33,K34) ->  | L29: =CHOOSE(TS!$P$16,L30,L31,L32,L33,L34) ->  | M29: =CHOOSE(TS!$P$16,M30,M31,M32,M33,M34) -> 
A30: Base | C30: 1 | D30: =IS!F52 ->  | E30: =D30 ->  | F30: =E30 -> 
A31: Sponsor | C31: 2
A32: Management | C32: 3
A33: Downside 1 | C33: 4
A34: Downside 2 | C34: 5
A36: Depreciation & Amortization (% sales) | D36: =CHOOSE(TS!$P$16,D37,D38,D39,D40,D41) ->  | E36: =CHOOSE(TS!$P$16,E37,E38,E39,E40,E41) ->  | F36: =CHOOSE(TS!$P$16,F37,F38,F39,F40,F41) ->  | G36: =CHOOSE(TS!$P$16,G37,G38,G39,G40,G41) ->  | H36: =CHOOSE(TS!$P$16,H37,H38,H39,H40,H41) ->  | I36: =CHOOSE(TS!$P$16,I37,I38,I39,I40,I41) ->  | J36: =CHOOSE(TS!$P$16,J37,J38,J39,J40,J41) ->  | K36: =CHOOSE(TS!$P$16,K37,K38,K39,K40,K41) ->  | L36: =CHOOSE(TS!$P$16,L37,L38,L39,L40,L41) ->  | M36: =CHOOSE(TS!$P$16,M37,M38,M39,M40,M41) -> 
A37: Base | C37: 1 | D37: =IS!F53 ->  | E37: =D37 ->  | F37: =E37 -> 
A38: Sponsor | C38: 2
A39: Management | C39: 3
A40: Downside 1 | C40: 4
A41: Downside 2 | C41: 5
A43: Interest Income | D43: =CHOOSE(TS!$P$16,D44,D45,D46,D47,D48) ->  | E43: =CHOOSE(TS!$P$16,E44,E45,E46,E47,E48) ->  | F43: =CHOOSE(TS!$P$16,F44,F45,F46,F47,F48) ->  | G43: =CHOOSE(TS!$P$16,G44,G45,G46,G47,G48) ->  | H43: =CHOOSE(TS!$P$16,H44,H45,H46,H47,H48) ->  | I43: =CHOOSE(TS!$P$16,I44,I45,I46,I47,I48) ->  | J43: =CHOOSE(TS!$P$16,J44,J45,J46,J47,J48) ->  | K43: =CHOOSE(TS!$P$16,K44,K45,K46,K47,K48) ->  | L43: =CHOOSE(TS!$P$16,L44,L45,L46,L47,L48) ->  | M43: =CHOOSE(TS!$P$16,M44,M45,M46,M47,M48) -> 
A44: Base | C44: 1 | D44: =IS!F54 ->  | E44: =D44 ->  | F44: =E44 -> 
A45: Sponsor | C45: 2
A46: Management | C46: 3
A47: Downside 1 | C47: 4
A48: Downside 2 | C48: 5
A50: Cash Flow Statement Assumptions
A51: Capital Expenditures (% of sales) | D51: =CHOOSE(TS!$P$16,D52,D53,D54,D55,D56) ->  | E51: =CHOOSE(TS!$P$16,E52,E53,E54,E55,E56) ->  | F51: =CHOOSE(TS!$P$16,F52,F53,F54,F55,F56) ->  | G51: =CHOOSE(TS!$P$16,G52,G53,G54,G55,G56) ->  | H51: =CHOOSE(TS!$P$16,H52,H53,H54,H55,H56) ->  | I51: =CHOOSE(TS!$P$16,I52,I53,I54,I55,I56) ->  | J51: =CHOOSE(TS!$P$16,J52,J53,J54,J55,J56) ->  | K51: =CHOOSE(TS!$P$16,K52,K53,K54,K55,K56) ->  | L51: =CHOOSE(TS!$P$16,L52,L53,L54,L55,L56) ->  | M51: =CHOOSE(TS!$P$16,M52,M53,M54,M55,M56) -> 
A52: Base | C52: 1 | D52: =CAPEX!E16 ->  | E52: =D52 ->  | F52: =E52 -> 
A53: Sponsor | C53: 2
A54: Management | C54: 3
A55: Downside 1 | C55: 4
A56: Downside 2 | C56: 5

Sheet A2
A1: Assumptions Page 2 - Balance Sheet
D3: Projection Period
D4: Year 1 | E4: Year 2 | F4: Year 3 | G4: Year 4 | H4: Year 5 | I4: Year 6 | J4: Year 7 | K4: Year 8 | L4: Year 9 | M4: Year 10
D5: =TS!G25 ->  | E5: =D5+1 -> 
A7: Current Assets
A8: Days Sales Outstanding (DSO) | D8: =CHOOSE(TS!$P$16,D9,D10,D11,D12,D13) ->  | E8: =CHOOSE(TS!$P$16,E9,E10,E11,E12,E13) ->  | F8: =CHOOSE(TS!$P$16,F9,F10,F11,F12,F13) ->  | G8: =CHOOSE(TS!$P$16,G9,G10,G11,G12,G13) ->  | H8: =CHOOSE(TS!$P$16,H9,H10,H11,H12,H13) ->  | I8: =CHOOSE(TS!$P$16,I9,I10,I11,I12,I13) ->  | J8: =CHOOSE(TS!$P$16,J9,J10,J11,J12,J13) ->  | K8: =CHOOSE(TS!$P$16,K9,K10,K11,K12,K13) ->  | L8: =CHOOSE(TS!$P$16,L9,L10,L11,L12,L13) ->  | M8: =CHOOSE(TS!$P$16,M9,M10,M11,M12,M13) -> 
A9: Base | C9: 1 | D9: =BS!E50 ->  | E9: =D9 ->  | F9: =E9 -> 
A10: Sponsor | C10: 2
A11: Management | C11: 3
A12: Downside 1 | C12: 4
A13: Downside 2 | C13: 5
A15: Inventories (% sales) | D15: =CHOOSE(TS!$P$16,D16,D17,D18,D19,D20) ->  | E15: =CHOOSE(TS!$P$16,E16,E17,E18,E19,E20) ->  | F15: =CHOOSE(TS!$P$16,F16,F17,F18,F19,F20) ->  | G15: =CHOOSE(TS!$P$16,G16,G17,G18,G19,G20) ->  | H15: =CHOOSE(TS!$P$16,H16,H17,H18,H19,H20) ->  | I15: =CHOOSE(TS!$P$16,I16,I17,I18,I19,I20) ->  | J15: =CHOOSE(TS!$P$16,J16,J17,J18,J19,J20) ->  | K15: =CHOOSE(TS!$P$16,K16,K17,K18,K19,K20) ->  | L15: =CHOOSE(TS!$P$16,L16,L17,L18,L19,L20) ->  | M15: =CHOOSE(TS!$P$16,M16,M17,M18,M19,M20) -> 
A16: Base | C16: 1 | D16: =BS!E51 ->  | E16: =D16 ->  | F16: =E16 -> 
A17: Sponsor | C17: 2
A18: Management | C18: 3
A19: Downside 1 | C19: 4
A20: Downside 2 | C20: 5
A22: Days Inventory Held (DIH) | D22: =CHOOSE(TS!$P$16,D23,D24,D25,D26,D27) -> 0 | E22: =CHOOSE(TS!$P$16,E23,E24,E25,E26,E27) -> 0 | F22: =CHOOSE(TS!$P$16,F23,F24,F25,F26,F27) -> 0 | G22: =CHOOSE(TS!$P$16,G23,G24,G25,G26,G27) -> 0 | H22: =CHOOSE(TS!$P$16,H23,H24,H25,H26,H27) -> 0 | I22: =CHOOSE(TS!$P$16,I23,I24,I25,I26,I27) -> 0 | J22: =CHOOSE(TS!$P$16,J23,J24,J25,J26,J27) -> 0 | K22: =CHOOSE(TS!$P$16,K23,K24,K25,K26,K27) -> 0 | L22: =CHOOSE(TS!$P$16,L23,L24,L25,L26,L27) -> 0 | M22: =CHOOSE(TS!$P$16,M23,M24,M25,M26,M27) -> 0
A23: Base | C23: 1 | D23: =BS!E52 -> 0 | E23: =D23 -> 0 | F23: =E23 -> 0 | G23: 0 | H23: 0 | I23: 0 | J23: 0 | K23: 0 | L23: 0 | M23: 0
A24: Sponsor | C24: 2
A25: Management | C25: 3
A26: Downside 1 | C26: 4
A27: Downside 2 | C27: 5
A29: Prepaids and Other Current Assets (% sales) | D29: =CHOOSE(TS!$P$16,D30,D31,D32,D33,D34) ->  | E29: =CHOOSE(TS!$P$16,E30,E31,E32,E33,E34) ->  | F29: =CHOOSE(TS!$P$16,F30,F31,F32,F33,F34) ->  | G29: =CHOOSE(TS!$P$16,G30,G31,G32,G33,G34) ->  | H29: =CHOOSE(TS!$P$16,H30,H31,H32,H33,H34) ->  | I29: =CHOOSE(TS!$P$16,I30,I31,I32,I33,I34) ->  | J29: =CHOOSE(TS!$P$16,J30,J31,J32,J33,J34) ->  | K29: =CHOOSE(TS!$P$16,K30,K31,K32,K33,K34) ->  | L29: =CHOOSE(TS!$P$16,L30,L31,L32,L33,L34) ->  | M29: =CHOOSE(TS!$P$16,M30,M31,M32,M33,M34) -> 
A30: Base | C30: 1 | D30: =BS!E53 ->  | E30: =D30 ->  | F30: =E30 -> 
A31: Sponsor | C31: 2
A32: Management | C32: 3
A33: Downside 1 | C33: 4
A34: Downside 2 | C34: 5
A36: Current Liabilities
A37: Accounts Payable (% sales) | D37: =CHOOSE(TS!$P$16,D38,D39,D40,D41,D42) ->  | E37: =CHOOSE(TS!$P$16,E38,E39,E40,E41,E42) ->  | F37: =CHOOSE(TS!$P$16,F38,F39,F40,F41,F42) ->  | G37: =CHOOSE(TS!$P$16,G38,G39,G40,G41,G42) ->  | H37: =CHOOSE(TS!$P$16,H38,H39,H40,H41,H42) ->  | I37: =CHOOSE(TS!$P$16,I38,I39,I40,I41,I42) ->  | J37: =CHOOSE(TS!$P$16,J38,J39,J40,J41,J42) ->  | K37: =CHOOSE(TS!$P$16,K38,K39,K40,K41,K42) ->  | L37: =CHOOSE(TS!$P$16,L38,L39,L40,L41,L42) ->  | M37: =CHOOSE(TS!$P$16,M38,M39,M40,M41,M42) -> 
A38: Base | C38: 1 | D38: =BS!E56 ->  | E38: =D38 ->  | F38: =E38 -> 
A39: Sponsor | C39: 2
A40: Management | C40: 3
A41: Downside 1 | C41: 4
A42: Downside 2 | C42: 5
A44: Days Payable Outstanding (DPO) | D44: =CHOOSE(TS!$P$16,D45,D46,D47,D48,D49) -> 0 | E44: =CHOOSE(TS!$P$16,E45,E46,E47,E48,E49) -> 0 | F44: =CHOOSE(TS!$P$16,F45,F46,F47,F48,F49) -> 0 | G44: =CHOOSE(TS!$P$16,G45,G46,G47,G48,G49) -> 0 | H44: =CHOOSE(TS!$P$16,H45,H46,H47,H48,H49) -> 0 | I44: =CHOOSE(TS!$P$16,I45,I46,I47,I48,I49) -> 0 | J44: =CHOOSE(TS!$P$16,J45,J46,J47,J48,J49) -> 0 | K44: =CHOOSE(TS!$P$16,K45,K46,K47,K48,K49) -> 0 | L44: =CHOOSE(TS!$P$16,L45,L46,L47,L48,L49) -> 0 | M44: =CHOOSE(TS!$P$16,M45,M46,M47,M48,M49) -> 0
A45: Base | C45: 1 | D45: =BS!E57 -> 0 | E45: =D45 -> 0 | F45: =E45 -> 0 | G45: 0 | H45: 0 | I45: 0 | J45: 0 | K45: 0 | L45: 0 | M45: 0
A46: Sponsor | C46: 2
A47: Management | C47: 3
A48: Downside 1 | C48: 4
A49: Downside 2 | C49: 5
A51: Accrued Liabilities (% sales) | D51: =CHOOSE(TS!$P$16,D52,D53,D54,D55,D56) ->  | E51: =CHOOSE(TS!$P$16,E52,E53,E54,E55,E56) ->  | F51: =CHOOSE(TS!$P$16,F52,F53,F54,F55,F56) ->  | G51: =CHOOSE(TS!$P$16,G52,G53,G54,G55,G56) ->  | H51: =CHOOSE(TS!$P$16,H52,H53,H54,H55,H56) ->  | I51: =CHOOSE(TS!$P$16,I52,I53,I54,I55,I56) ->  | J51: =CHOOSE(TS!$P$16,J52,J53,J54,J55,J56) ->  | K51: =CHOOSE(TS!$P$16,K52,K53,K54,K55,K56) ->  | L51: =CHOOSE(TS!$P$16,L52,L53,L54,L55,L56) ->  | M51: =CHOOSE(TS!$P$16,M52,M53,M54,M55,M56) -> 
A52: Base | C52: 1 | D52: =BS!E58 ->  | E52: =D52 ->  | F52: =E52 -> 
A53: Sponsor | C53: 2
A54: Management | C54: 3
A55: Downside 1 | C55: 4
A56: Downside 2 | C56: 5
A58: Other Current Liabilities (% sales) | D58: =CHOOSE(TS!$P$16,D59,D60,D61,D62,D63) ->  | E58: =CHOOSE(TS!$P$16,E59,E60,E61,E62,E63) ->  | F58: =CHOOSE(TS!$P$16,F59,F60,F61,F62,F63) ->  | G58: =CHOOSE(TS!$P$16,G59,G60,G61,G62,G63) ->  | H58: =CHOOSE(TS!$P$16,H59,H60,H61,H62,H63) ->  | I58: =CHOOSE(TS!$P$16,I59,I60,I61,I62,I63) ->  | J58: =CHOOSE(TS!$P$16,J59,J60,J61,J62,J63) ->  | K58: =CHOOSE(TS!$P$16,K59,K60,K61,K62,K63) ->  | L58: =CHOOSE(TS!$P$16,L59,L60,L61,L62,L63) ->  | M58: =CHOOSE(TS!$P$16,M59,M60,M61,M62,M63) -> 
A59: Base | C59: 1 | D59: =BS!E59 ->  | E59: =D59 ->  | F59: =E59 -> 
A60: Sponsor | C60: 2
A61: Management | C61: 3
A62: Downside 1 | C62: 4
A63: Downside 2 | C63: 5

Sheet A3
A1: Assumptions Page 3 - Financing Structures and Fees
A3: Financing Structures | H3: Purchase Price
B4: Structure | H4: Public / Private Target | L4: 1
B5: 1 | C5: 2 | D5: 3 | E5: 4 | F5: 5 | H5: Product / Service Target | L5: 1
A6: Source of Funds | B6: Structure 1 | C6: Structure 2 | D6: Structure 3 | E6: Structure 4 | F6: Status Quo | H6: =IF(L4=1,"Offer Price per Share"," ") -> Offer Price per Share | L6: 18.72961794
A7: Revolving Credit Facility Size | B7: 1000 | C7: 1000 | D7: 1000 | E7: 1000 | F7: 0 | H7: =IF(L4=1," ","Entry EBITDA Multiple") ->  | L7: =IF(L4=1," ",RA!C7) -> 
A8: Revolving Credit Facility Draw | B8: 0 | C8: 0 | D8: 250 | E8: 0 | F8: 0 | H8: =IF(L4=1,"Fully Diluted Shares Outstanding","LTM "&TS!E25&" EBITDA") -> Fully Diluted Shares Outstanding | L8: =IF(L4=1,L27,TS!F30) -> 
A9: Term Loan A | B9: 0 | C9: 0 | D9: 0 | E9: 0 | F9: 0 | H9: =IF(L4=1,"Equity Purchase Price","Enterprise Value") -> Equity Purchase Price | L9: =IF(L4=1,L6*L8,L7*L8) -> 
A10: Term Loan B | B10: 3289.047618 | C10: 0 | D10: 0 | E10: 0 | F10: 0
A11: Term Loan C | B11: 0 | C11: 0 | D11: 0 | E11: 0 | F11: 0 | H11: =IF(L4=1,"Plus: Total Debt","Less: Total Debt") -> Plus: Total Debt | L11: =IF($L$4=1,SUM(BS!B23,BS!B33),-SUM(BS!B23,BS!B33)) -> 
A12: 2nd Lien | B12: 0 | C12: 0 | D12: 0 | E12: 0 | F12: 0 | H12: =IF(L4=1,"Plus: Preferred Securities","Less: Preferred Securities") -> Plus: Preferred Securities | L12: =IF($L$4=1,_xll.BDP('P1'!B9&" Equity","BS PFD EQTY & HYBRID CPTL","FUND PER=Y"),-_xll.BDP('P1'!B9&" Equity","BS PFD EQTY & HYBRID CPTL","FUND PER=Y")) ->  | R12: % of Total
A13: Senior Notes | B13: 0 | C13: 0 | D13: 0 | E13: 0 | F13: 0 | H13: =IF(L4=1,"Plus: Noncontrolling Interest","Less: Noncontrolling Interest") -> Plus: Noncontrolling Interest | L13: =IF($L$4=1,_xll.BDP('P1'!B9&" Equity","MINORITY_NONCONTROLLING_INTEREST","FUND PER=Y"),-_xll.BDP('P1'!B9&" Equity","MINORITY_NONCONTROLLING_INTEREST","FUND PER=Y")) ->  | R13: Sources
A14: Senior Subordinated Notes | B14: 0 | C14: 0 | D14: 0 | E14: 0 | F14: 0 | H14: =IF(L4=1,"Plus: Other Claims on Assets","Less: Other Claims on Assets") -> Plus: Other Claims on Assets | L14: 0 | Q14: Equity Contribution | R14: =TS!C17 -> 
A15: Equity Contribution | B15: =SUM(B22:B32)-SUM(B8:B14,B16:B18) ->  | C15: =SUM(C22:C32)-SUM(C8:C14,C16:C18) ->  | D15: =SUM(D22:D32)-SUM(D8:D14,D16:D18) ->  | E15: =SUM(E22:E32)-SUM(E8:E14,E16:E18) ->  | F15: =SUM(F22:F32)-SUM(F8:F14,F16:F18) ->  | H15: =IF(L4=1,"Less: Financial Subsidiary Adjustment","Plus: Financial Subsidiary Adjustment") -> Less: Financial Subsidiary Adjustment | L15: =IF($L$4=1,-IF(_xll.BDP('P1'!B9&" Equity","ENTERPRISE VALUE ADJUSTMENT","FUND PER=Y")="#N/A N/A",0,_xll.BDP('P1'!B9&" Equity","ENTERPRISE VALUE ADJUSTMENT","FUND PER=Y")),IF(_xll.BDP('P1'!B9&" Equity","ENTERPRISE VALUE ADJUSTMENT","FUND PER=Y")="#N/A N/A",0,_xll.BDP('P1'!B9&" Equity","ENTERPRISE VALUE ADJUSTMENT","FUND PER=Y"))) -> 
A16: Rollover Equity | B16: 0 | C16: 0 | D16: 0 | E16: 0 | F16: 0 | H16: =IF(L4=1,"Less: Cash and Cash Equivalents","Plus: Cash and Cash Equivalents") -> Less: Cash and Cash Equivalents | L16: =IF($L$4=1,-_xll.BDP('P1'!B9&" Equity","CASH_AND_MARKETABLE_SECURITIES","FUND PER=Y"),_xll.BDP('P1'!B9&" Equity","CASH_AND_MARKETABLE_SECURITIES","FUND PER=Y")) ->  | Q16: Enterprise Value | R16: =V!C7 -> 
A17: Cash on Hand | B17: =BS!B8 ->  | C17: =B17 ->  | D17: =C17 ->  | F17: 0 | H17: =IF(L4=1,"Enterprise Value","Equity Purchase Price") -> Enterprise Value | L17: =SUM(L9:L16) ->  | Q17: Estimate
A18: - | B18: 0 | C18: 0 | D18: 0 | E18: 0 | F18: 0
A19: Total Sources of Funds | B19: =SUM(B8:B18) ->  | C19: =SUM(C8:C18) ->  | D19: =SUM(D8:D18) ->  | E19: =SUM(E8:E18) ->  | F19: =SUM(F8:F18) ->  | H19: Calculation of Fully Diluted Shares Outstanding
H20: Offer Price per Share | L20: =IF(L4=1,L6," ") -> 18.72961794
A21: Uses of Funds
A22: Equity Purchase Price | B22: =IF($L$4=1,$L$9,$L$17) ->  | C22: =IF($L$4=1,$L$9,$L$17) ->  | D22: =IF($L$4=1,$L$9,$L$17) ->  | E22: =IF($L$4=1,$L$9,$L$17) ->  | F22: =IF($L$4=1,$L$9,$L$17) ->  | H22: Basic Shares Outstanding | L22: =_xll.BDP('P1'!B9&" Equity","IS AVG NUM SH FOR EPS","FUND PER=Y") -> 
A23: Repay Existing Short-Term Debt | B23: =+BS!$B$23 ->  | C23: =+BS!$B$23 ->  | D23: =+BS!$B$23 ->  | E23: =+BS!$B$23 ->  | F23: =+BS!$B$23 ->  | H23: Plus: Shares from In-the Money Options | L23: =K37 -> 0
A24: Repay Existing Long-Term Debt | B24: =BS!$B$33 ->  | C24: =BS!$B$33 ->  | D24: =BS!$B$33 ->  | E24: =BS!$B$33 ->  | F24: =BS!$B$33 ->  | H24: Less: Shares Repurchased | L24: =IF(ISERROR(-L37/L20),0,-L37/L20) -> 0
A25: Preferred Securities | B25: =_xll.BDP('P1'!$B$9&" Equity","BS PFD EQTY & HYBRID CPTL","FUND PER=Y") ->  | C25: =_xll.BDP('P1'!$B$9&" Equity","BS PFD EQTY & HYBRID CPTL","FUND PER=Y") ->  | D25: =_xll.BDP('P1'!$B$9&" Equity","BS PFD EQTY & HYBRID CPTL","FUND PER=Y") ->  | E25: =_xll.BDP('P1'!$B$9&" Equity","BS PFD EQTY & HYBRID CPTL","FUND PER=Y") ->  | F25: =_xll.BDP('P1'!$B$9&" Equity","BS PFD EQTY & HYBRID CPTL","FUND PER=Y") ->  | H25: Net New Shares from Options | L25: =IF(ISERROR(L23+L24),0,L23+L24) -> 0
A26: Noncontrolling Interest | B26: =_xll.BDP('P1'!$B$9&" Equity","MINORITY_NONCONTROLLING_INTEREST","FUND PER=Y") ->  | C26: =_xll.BDP('P1'!$B$9&" Equity","MINORITY_NONCONTROLLING_INTEREST","FUND PER=Y") ->  | D26: =_xll.BDP('P1'!$B$9&" Equity","MINORITY_NONCONTROLLING_INTEREST","FUND PER=Y") ->  | E26: =_xll.BDP('P1'!$B$9&" Equity","MINORITY_NONCONTROLLING_INTEREST","FUND PER=Y") ->  | F26: =_xll.BDP('P1'!$B$9&" Equity","MINORITY_NONCONTROLLING_INTEREST","FUND PER=Y") ->  | H26: Plus: Shares from Convertible Securities | L26: =L47 -> 0
A27: Tender / Call Premiums | B27: 0 | C27: 0 | D27: 0 | E27: 0 | F27: 0 | H27: Fully Diluted Shares Outstanding | L27: =_xll.BDP('P1'!B9&" Equity","IS SH FOR DILUTED EPS","FUND PER=Y") -> 
A28: Financing Fees | B28: =F48 -> 80.05833331 | C28: =F48 -> 80.05833331 | D28: =F48 -> 80.05833331 | E28: =F48 -> 80.05833331 | F28: =F48 -> 80.05833331
A29: Other Fees and Expenses | B29: 15 | C29: 15 | D29: 15 | E29: 15 | F29: 0 | H29: Options/Warrants
A30: - | B30: 0 | C30: 0 | D30: 0 | E30: 0 | F30: 0 | I30: Number of | J30: Exercise | K30: In-the-Money
A31: - | B31: 0 | C31: 0 | D31: 0 | E31: 0 | F31: 0 | H31: Tranche | I31: Shares | J31: Price | K31: Shares | L31: Proceeds
A32: - | B32: 0 | C32: 0 | D32: 0 | E32: 0 | F32: 0 | H32: Tranche 1 | I32: 0 | J32: 0 | K32: =IF(J32<$L$20,I32,0) -> 0 | L32: =K32*J32 -> 0
A33: Total Uses of Funds | B33: =SUM(B22:B32) ->  | C33: =SUM(C22:C32) ->  | D33: =SUM(D22:D32) ->  | E33: =SUM(E22:E32) ->  | F33: =SUM(F22:F32) ->  | H33: Tranche 2 | I33: 0 | J33: 0 | K33: =IF(J33<$L$20,I33,0) -> 0 | L33: =K33*J33 -> 0
H34: Tranche 3 | I34: 0 | J34: 0 | K34: =IF(J34<$L$20,I34,0) -> 0 | L34: =K34*J34 -> 0
A35: Financing Fees | H35: Tranche 4 | I35: 0 | J35: 0 | K35: =IF(J35<$L$20,I35,0) -> 0 | L35: =K35*J35 -> 0
E36: Fees | H36: Tranche 5 | I36: 0 | J36: 0 | K36: =IF(J36<$L$20,I36,0) -> 0 | L36: =K36*J36 -> 0
B37: =CHOOSE(TS!P15,B6,C6,D6,E6,F6) -> Structure 1 | D37: Size | E37: (%) | F37: ($) | H37: Total | I37: =SUM(I32:I36) -> 0 | K37: =SUM(K32:K36) -> 0 | L37: =SUM(L32:L36) -> 0
A38: =A7 -> Revolving Credit Facility Size | D38: =CHOOSE(TS!$P$15,B7,C7,D7,E7,F7) -> 1000 | E38: 0.0175 | F38: =D38*E38 -> 17.5
A39: =A9 -> Term Loan A | D39: =CHOOSE(TS!$P$15,B9,C9,D9,E9,F9) -> 0 | E39: 0.0175 | F39: 0 | H39: Convertible Securities
A40: Term Loan B | D40: =CHOOSE(TS!$P$15,B10,C10,D10,E10,F10) -> 3289.047618 | E40: 0.0175 | F40: 57.55833331 | J40: Conversion | K40: Conversion | L40: New
A41: Term Loan C | D41: =CHOOSE(TS!$P$15,B11,C11,D11,E11,F11) -> 0 | E41: 0 | F41: 0 | I41: Amount | J41: Price | K41: Ratio | L41: Shares
A42: 2nd Lien | D42: =CHOOSE(TS!$P$15,B12,C12,D12,E12,F12) -> 0 | E42: 0 | F42: 0 | H42: Issue 1 | I42: 0 | J42: 0 | K42: =IF(ISERROR(1000/J42),0,(1000/J42)) -> 0 | L42: =IF(J42<$L$20,IF(ISERROR(I42/J42),0,I42/J42),0) -> 0
A43: Senior Notes | D43: =CHOOSE(TS!$P$15,B13,C13,D13,E13,F13) -> 0 | E43: 0.0225 | F43: 0 | H43: Issue 2 | I43: 0 | J43: 0 | K43: =IF(ISERROR(1000/J43),0,(1000/J43)) -> 0 | L43: =IF(J43<$L$20,IF(ISERROR(I43/J43),0,I43/J43),0) -> 0
A44: Senior Subordinated Notes | D44: =CHOOSE(TS!$P$15,B14,C14,D14,E14,F14) -> 0 | E44: 0.0225 | F44: 0 | H44: Issue 3 | I44: 0 | J44: 0 | K44: =IF(ISERROR(1000/J44),0,(1000/J44)) -> 0 | L44: =IF(J44<$L$20,IF(ISERROR(I44/J44),0,I44/J44),0) -> 0
A45: Senior Bridge Facility | D45: =D43 -> 0 | E45: 0.01 | F45: 0 | H45: Issue 4 | I45: 0 | J45: 0 | K45: =IF(ISERROR(1000/J45),0,(1000/J45)) -> 0 | L45: =IF(J45<$L$20,IF(ISERROR(I45/J45),0,I45/J45),0) -> 0
A46: Senior Subordinated Bridge Facility | D46: =D44 -> 0 | E46: 0.01 | F46: 0 | H46: Issue 5 | I46: 0 | J46: 0 | K46: =IF(ISERROR(1000/J46),0,(1000/J46)) -> 0 | L46: =IF(J46<$L$20,IF(ISERROR(I46/J46),0,I46/J46),0) -> 0
A47: Other Financing Fees & Expenses | F47: 5 | H47: Total | L47: =SUM(L42:L46) -> 0
A48: Total Financing Fees | F48: =SUM(F38:F47) -> 80.05833331
A50: Amortization of Financing Fees
C51: =IS!G5 -> Year 1 | D51: =IS!H5 -> Year 2 | E51: =IS!I5 -> Year 3 | F51: =IS!J5 -> Year 4 | G51: =IS!K5 -> Year 5 | H51: =IS!L5 -> Year 6 | I51: =IS!M5 -> Year 7 | J51: =IS!N5 -> Year 8 | K51: =IS!O5 -> Year 9 | L51: =IS!P5 -> Year 10
B52: Term | C52: =IS!G6 ->  | D52: =IS!H6 ->  | E52: =IS!I6 ->  | F52: =IS!J6 ->  | G52: =IS!K6 ->  | H52: =IS!L6 ->  | I52: =IS!M6 ->  | J52: =IS!N6 ->  | K52: =IS!O6 ->  | L52: =IS!P6 -> 
A53: =A38 -> Revolving Credit Facility Size | B53: =DS!F20 -> 6 | C53: =IF(C$52-YEAR(TODAY())<=$B53,$F38/$B53,0) -> 
A54: =A39 -> Term Loan A | B54: =DS!F34 -> 0 | C54: =IF(C$52-YEAR(TODAY())<=$B54,$F39/$B54,0) -> 
A55: Term Loan B | B55: =DS!F48 -> 9 | C55: =IF(C$52-YEAR(TODAY())<=$B55,$F40/$B55,0) -> 
A56: Term Loan C | B56: =DS!F62 -> 0 | C56: =IF(C$52-YEAR(TODAY())<=$B56,$F41/$B56,0) -> 
A57: 2nd Lien | B57: =DS!F104 -> 0 | C57: =IF(C$52-YEAR(TODAY())<=$B57,$F42/$B57,0) -> 
A58: Senior Notes | B58: =DS!F116 -> 0 | C58: =IF(C$52-YEAR(TODAY())<=$B58,$F43/$B58,0) -> 
A59: Senior Subordinated Notes | B59: =DS!F127 -> 10 | C59: =IF(C$52-YEAR(TODAY())<=$B59,$F44/$B59,0) -> 
A60: Senior Bridge Facility | B60: =B58 -> 0 | C60: =IF(C$52-YEAR(TODAY())<=$B60,$F45/$B60,0) -> 
A61: Senior Subordinated Bridge Facility | B61: =B59 -> 10 | C61: =IF(C$52-YEAR(TODAY())<=$B61,$F46/$B61,0) -> 
A62: =A47 -> Other Financing Fees & Expenses | B62: =B61 -> 10 | C62: =IF(C$52-YEAR(TODAY())<=$B62,$F47/$B62,0) -> 
A63: Annual Amortization | C63: =IF(TS!$P$20=1,SUM(C53:C62),0) ->  | D63: =IF(TS!$P$20=1,SUM(D53:D62),0) ->  | E63: =IF(TS!$P$20=1,SUM(E53:E62),0) ->  | F63: =IF(TS!$P$20=1,SUM(F53:F62),0) ->  | G63: =IF(TS!$P$20=1,SUM(G53:G62),0) ->  | H63: =IF(TS!$P$20=1,SUM(H53:H62),0) ->  | I63: =IF(TS!$P$20=1,SUM(I53:I62),0) ->  | J63: =IF(TS!$P$20=1,SUM(J53:J62),0) ->  | K63: =IF(TS!$P$20=1,SUM(K53:K62),0) ->  | L63: =IF(TS!$P$20=1,SUM(L53:L62),0) -> 
A65: Administrative Agent Fee | C65: =IF(DS!$F$18>0,0.15,0) -> 0.15 | D65: =IF(DS!$F$18>0,0.15,0) -> 0.15 | E65: =IF(DS!$F$18>0,0.15,0) -> 0.15 | F65: =IF(DS!$F$18>0,0.15,0) -> 0.15 | G65: =IF(DS!$F$18>0,0.15,0) -> 0.15 | H65: =IF(DS!$F$18>0,0.15,0) -> 0.15 | I65: =IF(DS!$F$18>0,0.15,0) -> 0.15 | J65: =IF(DS!$F$18>0,0.15,0) -> 0.15 | K65: =IF(DS!$F$18>0,0.15,0) -> 0.15 | L65: =IF(DS!$F$18>0,0.15,0) -> 0.15

Sheet Notes (hidden)
A1: Other Claims on Assets | B1: =IF('A3'!L4=1,_xll.BDP('P1'!B9&" Equity","OTHER NONCUR LIABS SUB DETAILED","FUND PER=Y")+_xll.BDP('P1'!B9&" Equity","OTHER CURRENT LIABS SUB DETAILED","FUND PER=Y")-_xll.BDP('P1'!B9&" Equity","BS OTHER ASSETS DEF CHRG OTHER","FUND PER=Y")-_xll.BDP('P1'!B9&" Equity","OTHER CURRENT ASSETS DETAILED","FUND PER=Y"),-(_xll.BDP('P1'!B9&" Equity","OTHER NONCUR LIABS SUB DETAILED","FUND PER=Y")+_xll.BDP('P1'!B9&" Equity","OTHER CURRENT LIABS SUB DETAILED","FUND PER=Y")-_xll.BDP('P1'!B9&" Equity","BS OTHER ASSETS DEF CHRG OTHER","FUND PER=Y")-_xll.BDP('P1'!B9&" Equity","OTHER CURRENT ASSETS DETAILED","FUND PER=Y"))) -> 
